Workbook

Sheet Introduktion

Sheet Ordregiver
B2: TCO-værktøj til tilbudsevaluering
B3: Tekstiler i sundhedssektoren til flergangsbrug
B5: Ordregiver
B8: 1 Baggrundsdata
C9: 1. år for brugsperiode | D9: årstal | E9: 2025
C10: TCO-evalueringsperiode | D10: år
C12: Vaskeriomkostninger pr. kg tekstil gennem vaskeriet inkl. transport | D12: kr./kg
C14: Diskonteringsrente | D14: %/år | E14: 0.035
C16: Vaskeriets gennemsnitlige ressourceforbrug pr. kg tekstil
C17: Elforbrug | D17: kWh/kg
C18: Vandforbrug | D18: m3/kg
C19: Gasforbrug | D19: m3/kg
C20: Fjernvarmeforbrug | D20: kWh/kg
C21: Fyringsolieforbrug | D21: l/kg
B25: 2 Oplysninger om brugen
C26: Antal produkter der skal indkøbes | D26: Antal
C27: Samlet antal brugsgange (beregning) | D27: Antal brugsgange (beregning) | E27: =IFERROR(VLOOKUP(E29,Baggrundsdata!F54:I63,4,FALSE),0)*E26 -> 0
C29: Produkttype | D29: Vælg fra liste
C31: Anvendelse af standardvægtning af produktegenskaber? | D31: ja/nej | E31: Ja
C32: Standardvægtning
C33: Rivstyrke (Newton) | D33: % | E33: =IFERROR(HLOOKUP($E$29,Baggrundsdata!$E$11:$N$19,2,FALSE),0) -> 0
C34: Bristestyrke (kPa) | D34: % | E34: =IFERROR(HLOOKUP($E$29,Baggrundsdata!$E$11:$N$19,3,FALSE),0) -> 0
C35: Dimensionsændring (%) | D35: % | E35: =IFERROR(HLOOKUP($E$29,Baggrundsdata!$E$11:$N$19,4,FALSE),0) -> 0
C36: Pilling (Grade) | D36: % | E36: =IFERROR(HLOOKUP($E$29,Baggrundsdata!$E$11:$N$19,5,FALSE),0) -> 0
C37: Farveændring (Grade) | D37: % | E37: =IFERROR(HLOOKUP($E$29,Baggrundsdata!$E$11:$N$19,6,FALSE),0) -> 0
C38: Slidstyrke (turns) | D38: % | E38: =IFERROR(HLOOKUP($E$29,Baggrundsdata!$E$11:$N$19,7,FALSE),0) -> 0
C39: Væsketæthed (mm) | D39: % | E39: =IFERROR(HLOOKUP($E$29,Baggrundsdata!$E$11:$N$19,8,FALSE),0) -> 0
C40: Vandafvisning (mm) | D40: % | E40: =IFERROR(HLOOKUP($E$29,Baggrundsdata!$E$11:$N$19,9,FALSE),0) -> 0
C42: Egen vægtning
C43: Rivstyrke (Newton) | D43: %
C44: Bristestyrke (kPa) | D44: %
C45: Dimensionsændring (%) | D45: %
C46: Pilling (Grade) | D46: %
C47: Farveændring (Grade) | D47: %
C48: Slidstyrke (turns) | D48: %
C49: Væsketæthed (mm) | D49: %
C50: Vandafvisning (mm) | D50: %
C51: Sum af vægtning | D51: % | E51: =IFERROR(IF(E33>0,E43)+IF(E34>0,E44)+IF(E35>0,E45)+IF(E36>0,E46)+IF(E37>0,E47)+IF(E38>0,E48)+IF(E39>0,E49)+IF(E40>0,E50),0) -> 0
B55: 3 Værdisætning af samfundsøkonomiske omkostninger ved eksterne virkninger på miljøet
C56: Skal de eksterne virkninger på miljøet inkluderes i denne TCO-beregning? | E56: Ja
C58: Anvendelse af standard-CO2-emissionsfaktor for elforbrug? | E58: Ja
C59: Standard-CO2-emissionsfaktor for elforbrug | D59: kg CO2e/kWh | E59: =IFERROR(VLOOKUP(Ordregiver!E$9,'Standard-fremskrivning '!$C$12:$V$40,7,FALSE),"-") -> 0.05892
C60: Egen CO2-emissionsfaktor for elforbrug | D60: kg CO2e/kWh
C62: Anvendelse af standard-CO2-emissionsfaktor for vandforbrug? | E62: Ja
C63: Standard-CO2-emissionsfaktor for vandforbrug | D63: kg CO2e/m3 | E63: =IFERROR(VLOOKUP(Ordregiver!E$9,'Standard-fremskrivning '!$C$12:$V$40,10,FALSE),"-") -> 0.0936828
C64: Egen CO2-emissionsfaktor for vandforbrug | D64: kg CO2e/m3
C66: Anvendelse af standard-CO2-emissionsfaktor for gasforbrug? | E66: Ja
C67: Standard-CO2-emissionsfaktor for gasforbrug | D67: kg CO2e/m3 | E67: =IFERROR(VLOOKUP(Ordregiver!E$9,'Standard-fremskrivning '!$C$12:$V$40,12,FALSE),"-") -> 1.1207929
C68: Egen CO2-emissionsfaktor for gasforbrug | D68: kg CO2e/m3
C70: Anvendelse af standard-CO2-emissionsfaktor for fjernvarmeforbrug? | E70: Ja
C71: Standard-CO2-emissionsfaktor for fjernvarmeforbrug | D71: kg CO2e/kWh | E71: =IFERROR(VLOOKUP(Ordregiver!E$9,'Standard-fremskrivning '!$C$12:$V$40,18,FALSE),"-") -> 0.04627
C72: Egen CO2-emissionsfaktor for fjernvarmeforbrug | D72: kg CO2e/kWh
C74: Anvendelse af standard-CO2-emissionsfaktor for olieforbrug? | E74: Ja
C75: Standard-CO2-emissionsfaktor for olieforbrug | D75: kg CO2e/L | E75: =IFERROR(VLOOKUP(Ordregiver!E$9,'Standard-fremskrivning '!$C$12:$V$40,17,FALSE),"-") -> 3.15
C76: Egen CO2-emissionsfaktor for olieforbrug | D76: kg CO2e/L
C78: Anvendelse af standard-værdisætning af samfundsøkonomiske omkostninger? | E78: Ja
C79: Standard-værdisætning | D79: kr./tons CO2e | E79: ='Standard-fremskrivning '!U12 -> 1500
C80: Egen værdisætning | D80: kr./tons CO2e

Sheet Tilbudsgiver
B2: TCO-værktøj til tilbudsevaluering
B3: Tekstiler i sundhedssektoren til flergangsbrug
B5: Tilbudsgiver
B8: 4 Tilbudsgiver: Oplysninger om produktet
C9: Produkttype (defineret af ordregiver) | E9: =IF(Ordregiver!$E$29="","Ingen produktgruppe specificeret",Ordregiver!$E$29) -> Ingen produktgruppe specificeret | G9: =IF(Ordregiver!$E$29="","Ingen produktgruppe specificeret",Ordregiver!$E$29) -> Ingen produktgruppe specificeret | I9: =IF(Ordregiver!$E$29="","Ingen produktgruppe specificeret",Ordregiver!$E$29) -> Ingen produktgruppe specificeret | K9: =IF(Ordregiver!$E$29="","Ingen produktgruppe specificeret",Ordregiver!$E$29) -> Ingen produktgruppe specificeret | M9: =IF(Ordregiver!$E$29="","Ingen produktgruppe specificeret",Ordregiver!$E$29) -> Ingen produktgruppe specificeret | O9: =IF(Ordregiver!$E$29="","Ingen produktgruppe specificeret",Ordregiver!$E$29) -> Ingen produktgruppe specificeret | Q9: =IF(Ordregiver!$E$29="","Ingen produktgruppe specificeret",Ordregiver!$E$29) -> Ingen produktgruppe specificeret | S9: =IF(Ordregiver!$E$29="","Ingen produktgruppe specificeret",Ordregiver!$E$29) -> Ingen produktgruppe specificeret
C11: Produktets navn | D11: Egen reference | E11: PRODUKT 1 | G11: PRODUKT 2 | I11: PRODUKT 3 | K11: PRODUKT 4 | M11: PRODUKT 5 | O11: PRODUKT 6 | Q11: PRODUKT 7 | S11: PRODUKT 8
C12: Produktbeskrivelse | D12: Egen reference
C13: Varenr. | D13: Egen reference
C15: Investeringsomkostninger
C16: Indkøbspris | D16: kr./produkt
C18: Produktion og vask
C19: Vægt | D19: g/produkt
C21: Produktegenskaber (ud fra test i henhold til standarder)
C22: Rivstyrke (ISO 13937 eller tilsvarende) | D22: Newton
C23: Bristestyrke (ISO 938-1 eller tilsvarende) | D23: kPa
C24: Dimensionsændring (ISO 6330 eller tilsvarende) | D24: %
C25: Pilling (ISO 12945-2 eller tilsvarende) | D25: grade
C26: Farveændring (ISO 105-A02 eller tilsvarende) | D26: grade
C27: Slidstyrke (ISO 12947-2 eller tilsvarende) | D27: turns
C28: Væsketæthed (ISO 811 eller tilsvarende) | D28: mm
C29: Vandafvisning (ISO 811 eller tilsvarende) | D29: mm
C31: Beregnet levetid | D31: Brugsgange / produkt | E31: =IFERROR(IF(E16=0,0,'IB - Hospitalstekstiler'!E$14),0) -> 0 | G31: =IFERROR(IF(G16=0,0,'IB - Hospitalstekstiler'!G$14),0) -> 0 | I31: =IFERROR(IF(I16=0,0,'IB - Hospitalstekstiler'!I$14),0) -> 0 | K31: =IFERROR(IF(K16=0,0,'IB - Hospitalstekstiler'!K$14),0) -> 0 | M31: =IFERROR(IF(M16=0,0,'IB - Hospitalstekstiler'!M$14),0) -> 0 | O31: =IFERROR(IF(O16=0,0,'IB - Hospitalstekstiler'!O$14),0) -> 0 | Q31: =IFERROR(IF(Q16=0,0,'IB - Hospitalstekstiler'!Q$14),0) -> 0 | S31: =IFERROR(IF(S16=0,0,'IB - Hospitalstekstiler'!S$14),0) -> 0
B35: 5 Resultat
C37: Antal produkter til at opfylde behov | D37: stk | E37: =IFERROR(Ordregiver!$E$27/E31,"-") -> - | G37: =IFERROR(Ordregiver!$E$27/G31,"-") -> - | I37: =IFERROR(Ordregiver!$E$27/I31,"-") -> - | K37: =IFERROR(Ordregiver!$E$27/K31,"-") -> - | M37: =IFERROR(Ordregiver!$E$27/M31,"-") -> - | O37: =IFERROR(Ordregiver!$E$27/O31,"-") -> - | Q37: =IFERROR(Ordregiver!$E$27/Q31,"-") -> - | S37: =IFERROR(Ordregiver!$E$27/S31,"-") -> -
C39: Investeringsomkostninger i alt | D39: kr. | E39: =IFERROR((E16/E31)*Ordregiver!$E$27,"-") -> - | G39: =IFERROR((G16/G31)*Ordregiver!$E$27,"-") -> - | I39: =IFERROR((I16/I31)*Ordregiver!$E$27,"-") -> - | K39: =IFERROR((K16/K31)*Ordregiver!$E$27,"-") -> - | M39: =IFERROR((M16/M31)*Ordregiver!$E$27,"-") -> - | O39: =IFERROR((O16/O31)*Ordregiver!$E$27,"-") -> - | Q39: =IFERROR((Q16/Q31)*Ordregiver!$E$27,"-") -> - | S39: =IFERROR((S16/S31)*Ordregiver!$E$27,"-") -> -
C40: Driftsomkostning i alt | D40: kr. | E40: =IFERROR(SUMIFS('IB - Hospitalstekstiler'!E18:E37,'IB - Hospitalstekstiler'!$B$18:$B$37,"<="&Ordregiver!$E$10),"-") -> 0 | G40: =IFERROR(SUMIFS('IB - Hospitalstekstiler'!G18:G37,'IB - Hospitalstekstiler'!$B$18:$B$37,"<="&Ordregiver!$E$10),"-") -> 0 | I40: =IFERROR(SUMIFS('IB - Hospitalstekstiler'!I18:I37,'IB - Hospitalstekstiler'!$B$18:$B$37,"<="&Ordregiver!$E$10),"-") -> 0 | K40: =IFERROR(SUMIFS('IB - Hospitalstekstiler'!K18:K37,'IB - Hospitalstekstiler'!$B$18:$B$37,"<="&Ordregiver!$E$10),"-") -> 0 | M40: =IFERROR(SUMIFS('IB - Hospitalstekstiler'!M18:M37,'IB - Hospitalstekstiler'!$B$18:$B$37,"<="&Ordregiver!$E$10),"-") -> 0 | O40: =IFERROR(SUMIFS('IB - Hospitalstekstiler'!O18:O37,'IB - Hospitalstekstiler'!$B$18:$B$37,"<="&Ordregiver!$E$10),"-") -> 0 | Q40: =IFERROR(SUMIFS('IB - Hospitalstekstiler'!Q18:Q37,'IB - Hospitalstekstiler'!$B$18:$B$37,"<="&Ordregiver!$E$10),"-") -> 0 | S40: =IFERROR(SUMIFS('IB - Hospitalstekstiler'!S18:S37,'IB - Hospitalstekstiler'!$B$18:$B$37,"<="&Ordregiver!$E$10),"-") -> 0
C41: =IF(Ordregiver!E56="nej","","Samfundsøkonomiske omkostninger af eksterne virkninger på miljøet") -> Samfundsøkonomiske omkostninger af eksterne virkninger på miljøet | D41: =IF(C41="","","kr.") -> kr. | E41: =IFERROR(IF(Ordregiver!$E$56="nej","",SUM('IB - Hospitalstekstiler'!E159:E178)),"-") -> - | G41: =IFERROR(IF(Ordregiver!$E$56="nej","",SUM('IB - Hospitalstekstiler'!G159:G178)),"-") -> - | I41: =IFERROR(IF(Ordregiver!$E$56="nej","",SUM('IB - Hospitalstekstiler'!I159:I178)),"-") -> - | K41: =IFERROR(IF(Ordregiver!$E$56="nej","",SUM('IB - Hospitalstekstiler'!K159:K178)),"-") -> - | M41: =IFERROR(IF(Ordregiver!$E$56="nej","",SUM('IB - Hospitalstekstiler'!M159:M178)),"-") -> - | O41: =IFERROR(IF(Ordregiver!$E$56="nej","",SUM('IB - Hospitalstekstiler'!O159:O178)),"-") -> - | Q41: =IFERROR(IF(Ordregiver!$E$56="nej","",SUM('IB - Hospitalstekstiler'!Q159:Q178)),"-") -> - | S41: =IFERROR(IF(Ordregiver!$E$56="nej","",SUM('IB - Hospitalstekstiler'!S159:S178)),"-") -> -
C43: Samlet TCO | D43: kr. | E43: =SUM(E39:E41) -> 0 | G43: =SUM(G39:G41) -> 0 | I43: =SUM(I39:I41) -> 0 | K43: =SUM(K39:K41) -> 0 | M43: =SUM(M39:M41) -> 0 | O43: =SUM(O39:O41) -> 0 | Q43: =SUM(Q39:Q41) -> 0 | S43: =SUM(S39:S41) -> 0
C44: Gennemsnitlig TCO pr. brugsgang | D44: kr./brugsgang | E44: =IFERROR(E43/Ordregiver!$E$27,0) -> 0 | G44: =IFERROR(G43/Ordregiver!$E$27,0) -> 0 | I44: =IFERROR(I43/Ordregiver!$E$27,0) -> 0 | K44: =IFERROR(K43/Ordregiver!$E$27,0) -> 0 | M44: =IFERROR(M43/Ordregiver!$E$27,0) -> 0 | O44: =IFERROR(O43/Ordregiver!$E$27,0) -> 0 | Q44: =IFERROR(Q43/Ordregiver!$E$27,0) -> 0 | S44: =IFERROR(S43/Ordregiver!$E$27,0) -> 0
E91: =E11 -> PRODUKT 1 | G91: =G11 -> PRODUKT 2 | I91: =I11 -> PRODUKT 3 | K91: =K11 -> PRODUKT 4 | M91: =M11 -> PRODUKT 5 | O91: =O11 -> PRODUKT 6 | Q91: =Q11 -> PRODUKT 7 | S91: =S11 -> PRODUKT 8
D92: ='IB - Hospitalstekstiler'!C182 ->  | E92: ='IB - Hospitalstekstiler'!E182 ->  | G92: ='IB - Hospitalstekstiler'!G182 ->  | I92: ='IB - Hospitalstekstiler'!I182 ->  | K92: ='IB - Hospitalstekstiler'!K182 ->  | M92: ='IB - Hospitalstekstiler'!M182 ->  | O92: ='IB - Hospitalstekstiler'!O182 ->  | Q92: ='IB - Hospitalstekstiler'!Q182 ->  | S92: ='IB - Hospitalstekstiler'!S182 -> 
D93: ='IB - Hospitalstekstiler'!C183 ->  | E93: ='IB - Hospitalstekstiler'!E183 ->  | G93: ='IB - Hospitalstekstiler'!G183 ->  | I93: ='IB - Hospitalstekstiler'!I183 ->  | K93: ='IB - Hospitalstekstiler'!K183 ->  | M93: ='IB - Hospitalstekstiler'!M183 ->  | O93: ='IB - Hospitalstekstiler'!O183 ->  | Q93: ='IB - Hospitalstekstiler'!Q183 ->  | S93: ='IB - Hospitalstekstiler'!S183 -> 
D94: ='IB - Hospitalstekstiler'!C184 ->  | E94: ='IB - Hospitalstekstiler'!E184 ->  | G94: ='IB - Hospitalstekstiler'!G184 ->  | I94: ='IB - Hospitalstekstiler'!I184 ->  | K94: ='IB - Hospitalstekstiler'!K184 ->  | M94: ='IB - Hospitalstekstiler'!M184 ->  | O94: ='IB - Hospitalstekstiler'!O184 ->  | Q94: ='IB - Hospitalstekstiler'!Q184 ->  | S94: ='IB - Hospitalstekstiler'!S184 -> 
D95: ='IB - Hospitalstekstiler'!C185 ->  | E95: ='IB - Hospitalstekstiler'!E185 ->  | G95: ='IB - Hospitalstekstiler'!G185 ->  | I95: ='IB - Hospitalstekstiler'!I185 ->  | K95: ='IB - Hospitalstekstiler'!K185 ->  | M95: ='IB - Hospitalstekstiler'!M185 ->  | O95: ='IB - Hospitalstekstiler'!O185 ->  | Q95: ='IB - Hospitalstekstiler'!Q185 ->  | S95: ='IB - Hospitalstekstiler'!S185 -> 
D96: ='IB - Hospitalstekstiler'!C186 ->  | E96: ='IB - Hospitalstekstiler'!E186 ->  | G96: ='IB - Hospitalstekstiler'!G186 ->  | I96: ='IB - Hospitalstekstiler'!I186 ->  | K96: ='IB - Hospitalstekstiler'!K186 ->  | M96: ='IB - Hospitalstekstiler'!M186 ->  | O96: ='IB - Hospitalstekstiler'!O186 ->  | Q96: ='IB - Hospitalstekstiler'!Q186 ->  | S96: ='IB - Hospitalstekstiler'!S186 -> 
D97: ='IB - Hospitalstekstiler'!C187 ->  | E97: ='IB - Hospitalstekstiler'!E187 ->  | G97: ='IB - Hospitalstekstiler'!G187 ->  | I97: ='IB - Hospitalstekstiler'!I187 ->  | K97: ='IB - Hospitalstekstiler'!K187 ->  | M97: ='IB - Hospitalstekstiler'!M187 ->  | O97: ='IB - Hospitalstekstiler'!O187 ->  | Q97: ='IB - Hospitalstekstiler'!Q187 ->  | S97: ='IB - Hospitalstekstiler'!S187 -> 
D98: ='IB - Hospitalstekstiler'!C188 ->  | E98: ='IB - Hospitalstekstiler'!E188 ->  | G98: ='IB - Hospitalstekstiler'!G188 ->  | I98: ='IB - Hospitalstekstiler'!I188 ->  | K98: ='IB - Hospitalstekstiler'!K188 ->  | M98: ='IB - Hospitalstekstiler'!M188 ->  | O98: ='IB - Hospitalstekstiler'!O188 ->  | Q98: ='IB - Hospitalstekstiler'!Q188 ->  | S98: ='IB - Hospitalstekstiler'!S188 -> 
D99: ='IB - Hospitalstekstiler'!C189 ->  | E99: ='IB - Hospitalstekstiler'!E189 ->  | G99: ='IB - Hospitalstekstiler'!G189 ->  | I99: ='IB - Hospitalstekstiler'!I189 ->  | K99: ='IB - Hospitalstekstiler'!K189 ->  | M99: ='IB - Hospitalstekstiler'!M189 ->  | O99: ='IB - Hospitalstekstiler'!O189 ->  | Q99: ='IB - Hospitalstekstiler'!Q189 ->  | S99: ='IB - Hospitalstekstiler'!S189 -> 
D100: ='IB - Hospitalstekstiler'!C190 ->  | E100: ='IB - Hospitalstekstiler'!E190 ->  | G100: ='IB - Hospitalstekstiler'!G190 ->  | I100: ='IB - Hospitalstekstiler'!I190 ->  | K100: ='IB - Hospitalstekstiler'!K190 ->  | M100: ='IB - Hospitalstekstiler'!M190 ->  | O100: ='IB - Hospitalstekstiler'!O190 ->  | Q100: ='IB - Hospitalstekstiler'!Q190 ->  | S100: ='IB - Hospitalstekstiler'!S190 -> 
D101: ='IB - Hospitalstekstiler'!C191 ->  | E101: ='IB - Hospitalstekstiler'!E191 ->  | G101: ='IB - Hospitalstekstiler'!G191 ->  | I101: ='IB - Hospitalstekstiler'!I191 ->  | K101: ='IB - Hospitalstekstiler'!K191 ->  | M101: ='IB - Hospitalstekstiler'!M191 ->  | O101: ='IB - Hospitalstekstiler'!O191 ->  | Q101: ='IB - Hospitalstekstiler'!Q191 ->  | S101: ='IB - Hospitalstekstiler'!S191 -> 
D102: ='IB - Hospitalstekstiler'!C192 ->  | E102: ='IB - Hospitalstekstiler'!E192 ->  | G102: ='IB - Hospitalstekstiler'!G192 ->  | I102: ='IB - Hospitalstekstiler'!I192 ->  | K102: ='IB - Hospitalstekstiler'!K192 ->  | M102: ='IB - Hospitalstekstiler'!M192 ->  | O102: ='IB - Hospitalstekstiler'!O192 ->  | Q102: ='IB - Hospitalstekstiler'!Q192 ->  | S102: ='IB - Hospitalstekstiler'!S192 -> 
D103: ='IB - Hospitalstekstiler'!C193 ->  | E103: ='IB - Hospitalstekstiler'!E193 ->  | G103: ='IB - Hospitalstekstiler'!G193 ->  | I103: ='IB - Hospitalstekstiler'!I193 ->  | K103: ='IB - Hospitalstekstiler'!K193 ->  | M103: ='IB - Hospitalstekstiler'!M193 ->  | O103: ='IB - Hospitalstekstiler'!O193 ->  | Q103: ='IB - Hospitalstekstiler'!Q193 ->  | S103: ='IB - Hospitalstekstiler'!S193 -> 
D104: ='IB - Hospitalstekstiler'!C194 ->  | E104: ='IB - Hospitalstekstiler'!E194 ->  | G104: ='IB - Hospitalstekstiler'!G194 ->  | I104: ='IB - Hospitalstekstiler'!I194 ->  | K104: ='IB - Hospitalstekstiler'!K194 ->  | M104: ='IB - Hospitalstekstiler'!M194 ->  | O104: ='IB - Hospitalstekstiler'!O194 ->  | Q104: ='IB - Hospitalstekstiler'!Q194 ->  | S104: ='IB - Hospitalstekstiler'!S194 -> 
D105: ='IB - Hospitalstekstiler'!C195 ->  | E105: ='IB - Hospitalstekstiler'!E195 ->  | G105: ='IB - Hospitalstekstiler'!G195 ->  | I105: ='IB - Hospitalstekstiler'!I195 ->  | K105: ='IB - Hospitalstekstiler'!K195 ->  | M105: ='IB - Hospitalstekstiler'!M195 ->  | O105: ='IB - Hospitalstekstiler'!O195 ->  | Q105: ='IB - Hospitalstekstiler'!Q195 ->  | S105: ='IB - Hospitalstekstiler'!S195 -> 
D106: ='IB - Hospitalstekstiler'!C196 ->  | E106: ='IB - Hospitalstekstiler'!E196 ->  | G106: ='IB - Hospitalstekstiler'!G196 ->  | I106: ='IB - Hospitalstekstiler'!I196 ->  | K106: ='IB - Hospitalstekstiler'!K196 ->  | M106: ='IB - Hospitalstekstiler'!M196 ->  | O106: ='IB - Hospitalstekstiler'!O196 ->  | Q106: ='IB - Hospitalstekstiler'!Q196 ->  | S106: ='IB - Hospitalstekstiler'!S196 -> 
D107: ='IB - Hospitalstekstiler'!C197 ->  | E107: ='IB - Hospitalstekstiler'!E197 ->  | G107: ='IB - Hospitalstekstiler'!G197 ->  | I107: ='IB - Hospitalstekstiler'!I197 ->  | K107: ='IB - Hospitalstekstiler'!K197 ->  | M107: ='IB - Hospitalstekstiler'!M197 ->  | O107: ='IB - Hospitalstekstiler'!O197 ->  | Q107: ='IB - Hospitalstekstiler'!Q197 ->  | S107: ='IB - Hospitalstekstiler'!S197 -> 
D108: ='IB - Hospitalstekstiler'!C198 ->  | E108: ='IB - Hospitalstekstiler'!E198 ->  | G108: ='IB - Hospitalstekstiler'!G198 ->  | I108: ='IB - Hospitalstekstiler'!I198 ->  | K108: ='IB - Hospitalstekstiler'!K198 ->  | M108: ='IB - Hospitalstekstiler'!M198 ->  | O108: ='IB - Hospitalstekstiler'!O198 ->  | Q108: ='IB - Hospitalstekstiler'!Q198 ->  | S108: ='IB - Hospitalstekstiler'!S198 -> 
D109: ='IB - Hospitalstekstiler'!C199 ->  | E109: ='IB - Hospitalstekstiler'!E199 ->  | G109: ='IB - Hospitalstekstiler'!G199 ->  | I109: ='IB - Hospitalstekstiler'!I199 ->  | K109: ='IB - Hospitalstekstiler'!K199 ->  | M109: ='IB - Hospitalstekstiler'!M199 ->  | O109: ='IB - Hospitalstekstiler'!O199 ->  | Q109: ='IB - Hospitalstekstiler'!Q199 ->  | S109: ='IB - Hospitalstekstiler'!S199 -> 
D110: ='IB - Hospitalstekstiler'!C200 ->  | E110: ='IB - Hospitalstekstiler'!E200 ->  | G110: ='IB - Hospitalstekstiler'!G200 ->  | I110: ='IB - Hospitalstekstiler'!I200 ->  | K110: ='IB - Hospitalstekstiler'!K200 ->  | M110: ='IB - Hospitalstekstiler'!M200 ->  | O110: ='IB - Hospitalstekstiler'!O200 ->  | Q110: ='IB - Hospitalstekstiler'!Q200 ->  | S110: ='IB - Hospitalstekstiler'!S200 -> 
D111: ='IB - Hospitalstekstiler'!C201 ->  | E111: ='IB - Hospitalstekstiler'!E201 ->  | G111: ='IB - Hospitalstekstiler'!G201 ->  | I111: ='IB - Hospitalstekstiler'!I201 ->  | K111: ='IB - Hospitalstekstiler'!K201 ->  | M111: ='IB - Hospitalstekstiler'!M201 ->  | O111: ='IB - Hospitalstekstiler'!O201 ->  | Q111: ='IB - Hospitalstekstiler'!Q201 ->  | S111: ='IB - Hospitalstekstiler'!S201 -> 

Sheet Baggrundsdata
C2: Baggrundsdata
C6: Holdbarhed
C8: Tabel 1: Tabellen nedenfor angiver, hvor meget hver produktegenskab vægtes i beregning af teoretisk levetid. Vægtningerne er defineret ud fra statistik over kasserede tekstiler hos vaskeriet midtVask. Beregning af levetid er beskrevet under "Beregningsmetode". Hvis der ikke benyttes denne standardvægtning, indtastes egen vægtning i arket "Ordregiver".
C10: Standardvægtning for forskellige produkttyper | E10: Produkttypers standardvægtning
E11: Fladvare, vævet, alm. brug | F11: Fladvare, vævet, operation, væsketæt | G11: Fladvare, vævet, operation, væskeafvisende | H11: Fyldvare, vævet, alm. brug | I11: Fyldvare, vævet operation | J11: Beklædning, vævet, alm. brug | K11: Beklædning, vævet, operation, væsketæt | L11: Beklædning, vævet, operation, væskeafvisende | M11: Beklædning, strikket, alm. brug | N11: Beklædning, strikket, operation
C12: Rivstyrke | E12: 0.4 | F12: 0.2 | G12: 0.2 | H12: 0.4 | I12: 0.3 | J12: 0.3 | K12: 0.2 | L12: 0.2
C13: Bristestyrke | M13: 0.3 | N13: 0.3
C14: Dimensionsændring | E14: 0.05 | F14: 0.15 | G14: 0.15 | H14: 0.05 | I14: 0.2 | J14: 0.2 | K14: 0.1 | L14: 0.1 | M14: 0.3 | N14: 0.3
C15: Pilling | E15: 0.15 | F15: 0.2 | G15: 0.2 | H15: 0.15 | I15: 0.25 | J15: 0.15 | K15: 0.2 | L15: 0.2 | M15: 0.25 | N15: 0.25
C16: Farveændring | E16: 0.05 | F16: 0.05 | G16: 0.05 | H16: 0.05 | I16: 0.05 | J16: 0.15 | K16: 0.1 | L16: 0.1 | M16: 0.15 | N16: 0.15
C17: Slidstyrke | E17: 0.35 | F17: 0.15 | G17: 0.15 | H17: 0.35 | I17: 0.2 | J17: 0.2 | K17: 0.15 | L17: 0.15
C18: Væsketæthed | F18: 0.25 | K18: 0.25
C19: Vandafvisning | G19: 0.25 | L19: 0.25
C20: Total | E20: =SUM(E12:E19) -> 1 | F20: 1 | G20: 1 | H20: 1 | I20: 1 | J20: 1 | K20: 1 | L20: =SUM(L12:L19) -> 1 | M20: =SUM(M12:M19) -> 1 | N20: =SUM(N12:N19) -> 1
C22: Tabel 2: Tabellen nedenfor angiver grænseværdier for produktegenskaber, og hvor mange point der gives for hvert niveau.
C24: Performance | D24: Niveau | E24: Grænseværdier | O24: Point
E25: Fladvare, vævet, alm. brug | F25: Fladvare, vævet, operation, væsketæt | G25: Fladvare, vævet, operation, væskeafvisende | H25: Fyldvare, vævet, alm. brug | I25: Fyldvare, vævet operation | J25: Beklædning, vævet, alm. brug | K25: Beklædning, vævet, operation, væsketæt | L25: Beklædning, vævet, operation, væskeafvisende | M25: Beklædning, strikket, alm. brug | N25: Beklædning, strikket, operation
C26: Rivstyrke | D26: Lav | E26: < 20 Newton | F26: < 20 Newton | G26: < 20 Newton | H26: < 20 Newton | I26: < 20 Newton | J26: < 20 Newton | K26: < 20 Newton | L26: < 20 Newton | O26: 5
D27: Mellem | E27: 20 – 30 Newton | F27: 20 – 30 Newton | G27: 20 – 30 Newton | H27: 20 – 30 Newton | I27: 20 – 30 Newton | J27: 20 – 25 Newton | K27: 20 – 25 Newton | L27: 20 – 25 Newton | O27: 10
D28: Høj | E28: 30 Newton | F28: > 30 Newton | G28: > 30 Newton | H28: > 30 Newton | I28: > 30 Newton | J28: > 25 Newton | K28: > 25 Newton | L28: > 25 Newton | O28: 15
C29: Bristestyrke | D29: Lav | M29: > 150 kPa | N29: > 150 kPa | O29: 5
D30: Mellem | M30: 150-200 kPa | N30: 150-200 kPa | O30: 10
D31: Høj | M31: > 200 kPa | N31: > 200 kPa | O31: 15
C32: Dimensionsændring | D32: Lav | E32: > +/- 5% | F32: > +/- 5% | G32: > +/- 5% | H32: > +/- 5% | I32: > +/- 5% | J32: > +/- 5% | K32: > +/- 5% | L32: > +/- 5% | M32: > +/- 6% | N32: > +/- 6% | O32: 5
D33: Mellem | E33: +/- 2,4 – 5% | F33: +/- 2,4 – 5% | G33: +/- 2,4 – 5% | H33: +/- 2,4 – 5% | I33: +/- 2,4 – 5% | J33: +/- 2,4 – 5% | K33: +/- 2,4 – 5% | L33: +/- 2,4 – 5% | M33: +/- 4 – 6% | N33: +/- 4 – 6% | O33: 10
D34: Høj | E34: +/- 0 – 2,4% | F34: +/- 0 – 2,4% | G34: +/- 0 – 2,4% | H34: +/- 0 – 2,4% | I34: +/- 0 – 2,4% | J34: +/- 0 – 2,4% | K34: +/- 0 – 2,4% | L34: +/- 0 – 2,4% | M34: +/- 0 – 4% | N34: +/- 0 – 4% | O34: 15
C35: Pilling | D35: Lav | E35: < 2 | F35: < 2 | G35: < 2 | H35: < 2 | I35: < 2 | J35: < 2 | K35: < 2 | L35: < 2 | M35: < 2 | N35: < 2 | O35: 5
D36: Mellem | E36: 2 – 3 | F36: 2 – 3/4 | G36: 2 – 3/4 | H36: 2 – 3 | I36: 2 – 3/4 | J36: 2 – 3 | K36: 2 – 3/4 | L36: 2 – 3/4 | M36: 2 – 3 | N36: 2 – 3/4 | O36: 10
D37: Høj | E37: >3/4 | F37: >4 | G37: >4 | H37: >3/4 | I37: >4 | J37: >3/4 | K37: >4 | L37: >4 | M37: >3/4 | N37: >4 | O37: 15
C38: Farveændring | D38: Lav | E38: < 2 | F38: < 2 | G38: < 2 | H38: < 2 | I38: < 2 | J38: < 2 | K38: < 2 | L38: < 2 | M38: < 2 | N38: < 2 | O38: 5
D39: Mellem | E39: 2 – 3 | F39: 2 – 3 | G39: 2 – 3 | H39: 2 – 3 | I39: 2 – 3 | J39: 2 – 3 | K39: 2 – 3 | L39: 2 – 3 | M39: 2 – 3 | N39: 2 – 3 | O39: 10
D40: Høj | E40: >3 | F40: >3 | G40: >3 | H40: >3 | I40: >3 | J40: >3 | K40: >3 | L40: >3 | M40: >3 | N40: >3 | O40: 15
C41: Slidstyrke | D41: Lav | E41: < 15.000 turns | F41: < 15.000 turns | G41: < 15.000 turns | H41: < 15.000 turns | I41: < 15.000 turns | J41: < 15.000 turns | K41: < 15.000 turns | L41: < 15.000 turns | O41: 5
D42: Mellem | E42: 15.000 – 20.000 turns | F42: 15.000 – 20.000 turns | G42: 15.000 – 20.000 turns | H42: 15.000 – 20.000 turns | I42: 15.000 – 20.000 turns | J42: 15.000 – 25.000 turns | K42: 15.000 – 25.000 turns | L42: 15.000 – 25.000 turns | O42: 10
D43: Høj | E43: > 20.000 turns | F43: > 20.000 turns | G43: > 20.000 turns | H43: > 20.000 turns | I43: > 20.000 turns | J43: > 25.000 turns | K43: > 25.000 turns | L43: > 25.000 turns | O43: 15
C44: Væsketæthed | D44: Lav | F44: < 5.000 mm | K44: < 5.000 mm | O44: 5
D45: Mellem | F45: 5.000 – 10.000 mm | K45: 5.000 – 10.000 mm | O45: 10
D46: Høj | F46: > 10.000 mm | K46: > 10.000 mm | O46: 15
C47: Vandafvisning | D47: Lav | G47: < 500 mm | L47: < 500 mm | O47: 5
D48: Mellem | G48: 500 – 1000 mm | L48: 500 – 1000 mm | O48: 10
D49: Høj | G49: > 1.000 mm | L49: > 1.000 mm | O49: 15
C51: Tabel 3: Tabellen nedenfor angiver hvilken faktor, der skal ganges på den gennemsnitlige levetid for at beregne den teoretiske levetid. Jo bedre produktegenskaber tekstilet har, jo højere vil levetidsfaktoren være. | F51: Tabel 4: Det gennemsnitlige antal brugsgange pr. tekstil er defineret på baggrund af vurdering fra samarbejdspartnere for forventet levetid for tekstiler i sundhedssektoren til flergangsbrug.
C53: Point opnået | D53: Levetidsfaktor | F53: Produkttype | I53: Gennemsnits-levetid (antal brugsgange)
C54: 0 | D54: 0.67 | F54: Fladvare, vævet, alm. brug | I54: 100
C55: 1 | D55: 0.84 | F55: Fladvare, vævet, operation, væsketæt | I55: 100
C56: 2 | D56: 0.84 | F56: Fladvare, vævet, operation, væskeafvisende | I56: 100
C57: 3 | D57: 0.84 | F57: Fyldvare, vævet, alm. brug | I57: 100
C58: 4 | D58: 1 | F58: Fyldvare, vævet operation | I58: 100
C59: 5 | D59: 1 | F59: Beklædning, vævet, alm. brug | I59: 100
C60: 6 | D60: 1 | F60: Beklædning, vævet, operation, væsketæt | I60: 100
C61: 7 | D61: 1 | F61: Beklædning, vævet, operation, væskeafvisende | I61: 100
C62: 8 | D62: 1.17 | F62: Beklædning, strikket, alm. brug | I62: 100
C63: 9 | D63: 1.17 | F63: Beklædning, strikket, operation | I63: 100
C64: 10 | D64: 1.17
C65: 11 | D65: 1.17
C66: 12 | D66: 1.45
C67: 13 | D67: 1.45
C68: 14 | D68: 1.45
C69: 15 | D69: 1.45

Sheet Beregningsmetode

Sheet Standard-fremskrivning
C1: Emissionsfaktorer og samfundsøkonomi
C6: Valgt referenceår: | D6: =Ordregiver!E9 -> 2025 | E6: El (kWh) | J6: Vand (m3) | M6: Gas (Nm3) (ledningsgas) | O6: Benzin (liter) | Q6: Diesel (liter) | S6: Fyringsolie (liter) | T6: Fjernvarme (kWh) | U6: Samfundsøkonomiske omkostninger ved CO2-emissioner | V6: Diskonteringsrente
C8: Beskrivelse | E8: Standard elpris (TOTAL) | F8: Standard elpris uden afgifter, ankomst kunde (Spotpris) | G8: Elafgift, alm. elafgift | H8: Transport- og anvance tillæg, el | I8: Standard-CO2-emissionsfaktorer | J8: Standard vandpris, ankomst kunde inkl. afgifter ekskl. moms | K8: Årlig prisstigning | L8: Standard-CO2e-emissionsfaktor | M8: Standard gaspris, ankomst kunde, inkl. transport og avance omkostninger, ekskl. sunk cost | N8: Standard-CO2-emissionsfaktorer | O8: Standard benzinpris, ankomst kunde | P8: Standard CO2-emissionsfaktorer | Q8: Standard dieselpris, ankomst kunde | R8: Standard CO2-emissionsfaktorer for diesel | S8: Standard CO2-emissionsfaktorer for fyringsolie | T8: Standard CO2-emissionsfaktorer for fjernvarme | U8: Standard værdisætning af samfundsøkonomiske omkostninger ved CO2-emissioner | V8: Diskonteringsrente
C9: Enhed | E9: kr./kWh | F9: kr./kWh | G9: kr./kWh | H9: kr./kWh | I9: kg CO2e/kWh | J9: kr./m3 | K9: % | L9: kg CO2e/m3 | M9: kr./m3 | N9: kg CO2e/Nm3 | O9: kr./liter | P9: kg CO2e/liter | Q9: kr./liter | R9: kg CO2e/liter | S9: kg CO2e/liter | T9: kg CO2e/kWh | U9: kr./tons CO2e | V9: %
C10: Kilde | E10: ENS, samfundsøkonomiske beregningsforusætninger 2022, tabel 8: https://ens.dk/sites/ens.dk/files/Analyser/soeb22.pdf | F10: ENS, samfundsøkonomiske beregningsforusætninger 2022, tabel 8: https://ens.dk/sites/ens.dk/files/Analyser/soeb22.pdf | G10: Energiaftale, 2018: https://kefm.dk/media/6646/energiaftale2018.pdf & 'En ny reformpakke for dansk økonomi", 2022: https://www.skm.dk/media/10908/lempelse-af-elafgiften.pdf | H10: ENS, samfundsøkonomiske beregningsforusætninger 2022, tabel 7, < 20MWh: https://ens.dk/sites/ens.dk/files/Analyser/soeb22.pdf | I10: Energistyrelsen, fremtidige el- emissionsfaktorer: https://ens.dk/analyser-og-statistik/beregning-af-klimaaftryk | J10: Fremskrivning på baggrund af DANVA statistik - se ark "Prisudvikling for vand, DANVA" | K10: Årlig pristigning på baggrund af beregninger fra arket - "Prisudvikling for vand, DANVA" | L10: DANVA, Vand i 2024 - 1,59 kWh/m3 *gældende EF for el: Kilde: DANVA "Vand i tal 2024". | M10: ENS, samfundsøkonomiske beregningsforusætninger 2022, tabel 11: https://ens.dk/sites/ens.dk/files/Analyser/soeb22.pdf | N10: Klimastatus og fremskrivning, 2024, national energibalance - https://www.kefm.dk/klima/klimastatus-og-fremskrivning | O10: ENS, samfundsøkonomiske beregningsforusætninger 2022, tabel 6: https://ens.dk/sites/ens.dk/files/Analyser/soeb22.pdf | P10: Baggrundsrapport, Viegand Maagøe 2020 for TCO - Anvender IPCC 4. vurderingsrapports Emiissionsfaktorer for benzin og diesel. | Q10: ENS, samfundsøkonomiske beregningsforusætninger 2022, tabel 6: https://ens.dk/sites/ens.dk/files/Analyser/soeb22.pdf | R10: Baggrundsrapport, Viegand Maagøe 2020 for TCO - Anvender IPCC 4. vurderingsrapports Emiissionsfaktorer for benzin og diesel. | S10: Beregnet fra: Energistatistik 2018 (Energistyrelsen, 2019) og UK Government GHG Conversion Factors for Company Reporting (DEFRA, 2020) | T10: Klimastatus og fremskrivning, 2024, national energibalance - https://www.kefm.dk/klima/klimastatus-og-fremskrivning | U10: Klimarådets anbefaling; https://klimaraadet.dk/da/rapport/statusrapport-2022 | V10: Finansministeriet, https://fm.dk/media/18371/dokumentationsnotat-for-den-samfundsoekonomiske-diskonteringsrente_7-januar-2021.pdf
C11: Årstal | D11: År
C12: 2025 | D12: =C12-($D$6-1) -> 1 | E12: =F12+G12+H12 -> 2.302 | F12: =1260/1000 -> 1.26 | G12: 0.763 | H12: 0.279 | I12: 0.05892 | J12: 49.29 | K12: 0.028 | L12: =1.59*I12 -> 0.0936828 | M12: 5.162536 | N12: 1.1207929 | O12: 4.73697 | P12: 2.52 | Q12: 4.4290575 | R12: 2.98 | S12: 3.15 | T12: =46.27/1000 -> 0.04627 | U12: 1500 | V12: 0.035
C13: 2026 | D13: =C13-($D$6-1) -> 2 | E13: =F13+G13+H13 -> 1.67 | F13: =660/1000 -> 0.66 | G13: 0.731 | H13: 0.279 | I13: 0.0508 | J13: =J12*(1+K12) -> 50.67012 | K13: 0.028 | L13: =1.55*I13 -> 0.07874 | M13: 3.139487 | N13: 0.7933836 | O13: 4.667985 | P13: 2.52 | Q13: 4.3586025 | R13: 2.98 | S13: 3.15 | T13: =43.88/1000 -> 0.04388 | U13: 1500 | V13: 0.035
C14: 2027 | D14: 3 | E14: 1.54 | F14: =560/1000 -> 0.56 | G14: 0.701 | H14: 0.279 | I14: 0.04306 | J14: =J13*(1+K13) -> 52.08888336 | K14: 0.028 | L14: 0.066743 | M14: 1.70237 | N14: 0.3808558 | O14: 4.562865 | P14: 2.52 | Q14: 4.259325 | R14: 2.98 | S14: 3.15 | T14: =40.35/1000 -> 0.04035 | U14: 1500 | V14: 0.035
C15: 2028 | D15: 4 | E15: 1.458 | F15: =540/1000 -> 0.54 | G15: 0.639 | H15: 0.279 | I15: 0.03542 | J15: 53.54737209 | K15: 0.028 | L15: 0.054901 | M15: 1.563805 | N15: 0.1571723 | O15: 4.470885 | P15: 2.52 | Q15: 4.1664525 | R15: 2.98 | S15: 3.15 | T15: =39.36/1000 -> 0.03936 | U15: 1500 | V15: 0.035
C16: 2029 | D16: 5 | E16: 1.448 | F16: =530/1000 -> 0.53 | G16: 0.639 | H16: 0.279 | I16: 0.03008 | J16: 55.04669851 | K16: 0.028 | L16: 0.046624 | M16: 1.62319 | N16: 0 | O16: 4.46103 | P16: 2.52 | Q16: 4.156845 | R16: 2.98 | S16: 3.15 | T16: =33.93/1000 -> 0.03393 | U16: 1500 | V16: 0.035
C17: 2030 | D17: 6 | E17: 1.428 | F17: =510/1000 -> 0.51 | G17: 0.639 | H17: 0.279 | I17: 0.02524 | J17: 56.58800607 | K17: 0.028 | L17: 0.039122 | M17: 1.682575 | N17: 0 | O17: 4.457745 | P17: 2.52 | Q17: 4.156845 | R17: 2.98 | S17: 3.15 | T17: =33.72/1000 -> 0.03372 | U17: 1500 | V17: 0.035
C18: 2031 | D18: 7 | E18: 1.408 | F18: =490/1000 -> 0.49 | G18: 0.639 | H18: 0.279 | I18: 0.02206 | J18: 58.17247024 | K18: 0.028 | L18: 0.034193 | M18: 1.74196 | N18: 0 | O18: 4.464315 | P18: 2.52 | Q18: 4.1600475 | R18: 2.98 | S18: 3.15 | T18: =33.83/1000 -> 0.03383 | U18: 1500 | V18: 0.035
C19: 2032 | D19: 8 | E19: 1.368 | F19: =450/1000 -> 0.45 | G19: 0.639 | H19: 0.279 | I19: 0.02202 | J19: 59.80129941 | K19: 0.028 | L19: =1.55*I19 -> 0.034131 | M19: 1.797386 | N19: 0 | O19: 4.4676 | P19: 2.52 | Q19: 4.1664525 | R19: 2.98 | S19: 3.15 | T19: =33.47/1000 -> 0.03347 | U19: 1500 | V19: 0.035
C20: 2033 | D20: 9 | E20: 1.298 | F20: =390/1000 -> 0.39 | G20: 0.629 | H20: 0.279 | I20: 0.02132 | J20: 61.47573579 | K20: 0.028 | L20: 0.033046 | M20: 1.852812 | N20: 0 | O20: 4.470885 | P20: 2.52 | Q20: 4.169655 | R20: 2.98 | S20: 3.15 | T20: =31.37/1000 -> 0.03137 | U20: 1500 | V20: 0.035
C21: 2034 | D21: 10 | E21: 1.298 | F21: 0.39 | G21: 0.629 | H21: 0.279 | I21: 0.02054 | J21: 63.19705639 | K21: 0.028 | L21: 0.031837 | M21: 1.90032 | N21: 0 | O21: 4.50045 | P21: 2.52 | Q21: 4.1984775 | R21: 2.98 | S21: 3.15 | T21: =28.88/1000 -> 0.02888 | U21: 1500 | V21: 0.035
C22: 2035 | D22: 11 | E22: 1.298 | F22: 0.39 | G22: 0.629 | H22: 0.279 | I22: 0.01878 | J22: 64.96657397 | K22: 0.028 | L22: 0.029109 | M22: 1.943869 | N22: 0 | O22: 4.530015 | P22: 2.52 | Q22: 4.2273 | R22: 2.98 | S22: 3.15 | T22: =24.59/1000 -> 0.02459 | U22: 1500 | V22: 0.035
C23: 2036 | D23: 12 | E23: 1.298 | F23: 0.39 | G23: 0.629 | H23: 0.279 | I23: 0.01878 | J23: 66.78563804 | K23: 0.028 | L23: 0.029109 | M23: 1.991377 | N23: 0 | O23: 4.556295 | P23: 2.52 | Q23: 4.25292 | R23: 2.98 | S23: 3.15 | T23: =24.59/1000 -> 0.02459 | U23: 1500 | V23: 0.035
C24: 2037 | D24: 13 | E24: 1.298 | F24: 0.39 | G24: 0.629 | H24: 0.279 | I24: 0.01878 | J24: 68.65563591 | K24: 0.028 | L24: 0.029109 | M24: 5.316937 | N24: 0 | O24: 4.582575 | P24: 2.52 | Q24: 4.27854 | R24: 2.98 | S24: 3.15 | T24: 0.02459 | U24: 1500 | V24: 0.035
C25: 2038 | D25: 14 | E25: 1.298 | F25: 0.39 | G25: 0.629 | H25: 0.279 | I25: 0.01878 | J25: 70.57799371 | K25: 0.028 | L25: 0.029109 | M25: 5.316937 | N25: 0 | O25: 4.60557 | P25: 2.52 | Q25: 4.3009575 | R25: 2.98 | S25: 3.15 | T25: 0.02459 | U25: 1500 | V25: 0.035
C26: 2039 | D26: 15 | E26: 1.298 | F26: 0.39 | G26: 0.629 | H26: 0.279 | I26: 0.01878 | J26: 72.55417754 | K26: 0.028 | L26: 0.029109 | M26: 5.316937 | N26: 0 | O26: 4.621995 | P26: 2.52 | Q26: 4.31697 | R26: 2.98 | S26: 3.15 | T26: 0.02459 | U26: 1500 | V26: 0.035
C27: 2040 | D27: 16 | E27: 1.298 | F27: 0.39 | G27: 0.629 | H27: 0.279 | I27: 0.01878 | J27: 74.58569451 | K27: 0.028 | L27: 0.029109 | M27: 5.316937 | N27: 0 | O27: 4.635135 | P27: 2.52 | Q27: 4.32978 | R27: 2.98 | S27: 3.15 | T27: 0.02459 | U27: 1500 | V27: 0.035
C28: 2041 | D28: 17 | E28: 1.298 | F28: 0.39 | G28: 0.629 | H28: 0.279 | I28: 0.01878 | J28: 76.67409396 | K28: 0.028 | L28: 0.029109 | M28: 5.316937 | N28: 0 | O28: 4.648275 | P28: 2.52 | Q28: 4.34259 | R28: 2.98 | S28: 3.15 | T28: 0.02459 | U28: 1500 | V28: 0.035
C29: 2042 | D29: 18 | E29: 1.298 | F29: 0.39 | G29: 0.629 | H29: 0.279 | I29: 0.01878 | J29: 78.82096859 | K29: 0.028 | L29: 0.029109 | M29: 5.316937 | N29: 0 | O29: 4.661415 | P29: 2.52 | Q29: 4.3521975 | R29: 2.98 | S29: 3.15 | T29: 0.02459 | U29: 1500 | V29: 0.035
C30: 2043 | D30: 19 | E30: 1.298 | F30: 0.39 | G30: 0.629 | H30: 0.279 | I30: 0.01878 | J30: 81.02795571 | K30: 0.028 | L30: 0.029109 | M30: 5.316937 | N30: 0 | O30: 4.67127 | P30: 2.52 | Q30: 4.3650075 | R30: 2.98 | S30: 3.15 | T30: 0.02459 | U30: 1500 | V30: 0.035
C31: 2044 | D31: 20 | E31: 1.298 | F31: 0.39 | G31: 0.629 | H31: 0.279 | I31: 0.01878 | J31: 83.29673847 | K31: 0.028 | L31: 0.029109 | M31: 5.316937 | N31: 0 | O31: 4.67127 | P31: 2.52 | Q31: 4.3650075 | R31: 2.98 | S31: 3.15 | T31: 0.02459 | U31: 1500 | V31: 0.035
C32: 2045 | D32: 21 | E32: 1.298 | F32: 0.39 | G32: 0.629 | H32: 0.279 | I32: 0.01878 | J32: 85.62904714 | K32: 0.028 | L32: 0.029109 | M32: 5.316937 | N32: 0 | O32: 4.67127 | P32: 2.52 | Q32: 4.3650075 | R32: 2.98 | S32: 3.15 | T32: 0.02459 | U32: 1500 | V32: 0.035
C33: 2046 | D33: 22 | E33: 1.298 | F33: 0.39 | G33: 0.629 | H33: 0.279 | I33: 0.01878 | J33: 88.02666046 | K33: 0.028 | L33: 0.029109 | M33: 5.316937 | N33: 0 | O33: 4.67127 | P33: 2.52 | Q33: 4.3650075 | R33: 2.98 | S33: 3.15 | T33: 0.02459 | U33: 1500 | V33: 0.035
C34: 2047 | D34: 23 | E34: 1.298 | F34: 0.39 | G34: 0.629 | H34: 0.279 | I34: 0.01878 | J34: 90.49140696 | K34: 0.028 | L34: 0.029109 | M34: 5.316937 | N34: 0 | O34: 4.67127 | P34: 2.52 | Q34: 4.3650075 | R34: 2.98 | S34: 3.15 | T34: 0.02459 | U34: 1500 | V34: 0.035
C35: 2048 | D35: 24 | E35: 1.298 | F35: 0.39 | G35: 0.629 | H35: 0.279 | I35: 0.01878 | J35: 93.02516635 | K35: 0.028 | L35: 0.029109 | M35: 5.316937 | N35: 0 | O35: 4.67127 | P35: 2.52 | Q35: 4.3650075 | R35: 2.98 | S35: 3.15 | T35: 0.02459 | U35: 1500 | V35: 0.035
C36: 2049 | D36: 25 | E36: 1.298 | F36: 0.39 | G36: 0.629 | H36: 0.279 | I36: 0.01878 | J36: 95.62987101 | K36: 0.028 | L36: 0.029109 | M36: 0 | N36: 0 | O36: 0 | P36: 3.52 | Q36: 0 | R36: 2.98 | S36: 3.15 | T36: 0.02459 | U36: 1500 | V36: 0.035
C37: 2050 | D37: 26 | E37: 1.298 | F37: 0.39 | G37: 0.629 | H37: 0.279 | I37: 0.01878 | J37: 98.3075074 | K37: 0.028 | L37: 0.029109 | M37: 0 | N37: 0 | O37: 0 | P37: 4.52 | Q37: 0 | R37: 2.98 | S37: 3.15 | T37: 0.02459 | U37: 1500 | V37: 0.035
C38: 2051 | D38: 27 | E38: 1.298 | F38: 0.39 | G38: 0.629 | H38: 0.279 | I38: 0.01878 | J38: 101.0601176 | K38: 0.028 | L38: 0.029109 | M38: 0 | N38: 0 | O38: 0 | P38: 5.52 | Q38: 0 | R38: 2.98 | S38: 3.15 | T38: 0.02459 | U38: 1500 | V38: 0.035
C39: 2052 | D39: 28 | E39: 1.298 | F39: 0.39 | G39: 0.629 | H39: 0.279 | I39: 0.01878 | J39: 103.8898009 | K39: 0.028 | L39: 0.029109 | M39: 0 | N39: 0 | O39: 0 | P39: 6.52 | Q39: 0 | R39: 2.98 | S39: 3.15 | T39: 0.02459 | U39: 1500 | V39: 0.035
C40: 2053 | D40: 29 | E40: 1.298 | F40: 0.39 | G40: 0.629 | H40: 0.279 | I40: 0.01878 | J40: 106.7987153 | K40: 0.028 | L40: 0.029109 | M40: 0 | N40: 0 | O40: 0 | P40: 7.52 | Q40: 0 | R40: 2.98 | S40: 3.15 | T40: 0.02459 | U40: 1500 | V40: 0.035
P91: 1 | Q91: 2 | R91: 3
N92: 0.5
Q99: =ELPRIS*42 -> 21

Sheet IB - Hospitalstekstiler (hidden)
B2: Levetid | C2: Vægtning | E2: PRODUKT 1 | G2: PRODUKT 2 | I2: PRODUKT 3 | K2: PRODUKT 4 | M2: PRODUKT 5 | O2: PRODUKT 6 | Q2: PRODUKT 7 | S2: PRODUKT 8 | V2: Vælg fra liste | W2: Vælg fra liste | AA2: Vælg fra liste | AB2: År | AE2: Nuværende år
V3: Fladvare, vævet, alm. brug | W3: Ja | AA3: =YEAR((AE3)) -> 2025 | AB3: 1 | AE3: =TODAY() -> 2025-11-13
B4: Rivstyrke | C4: =IFERROR(IF(Ordregiver!$E$31="Ja",HLOOKUP(Ordregiver!$E$29,Baggrundsdata!$E$11:$N$19,2,FALSE),Ordregiver!$E43),0) -> 0 | E4: =IFERROR(VLOOKUP(Tilbudsgiver!#REF!,$X$16:$Y$19,2,FALSE),0) -> 0 | G4: =IFERROR(VLOOKUP(Tilbudsgiver!G$22,$X$16:$Y$19,2,FALSE),0) -> 0 | I4: =IFERROR(VLOOKUP(Tilbudsgiver!I$22,$X$16:$Y$19,2,FALSE),0) -> 0 | K4: =IFERROR(VLOOKUP(Tilbudsgiver!K$22,$X$16:$Y$19,2,FALSE),0) -> 0 | M4: =IFERROR(VLOOKUP(Tilbudsgiver!#REF!,$X$16:$Y$19,2,FALSE),0) -> 0 | O4: =IFERROR(VLOOKUP(Tilbudsgiver!O$22,$X$16:$Y$19,2,FALSE),0) -> 0 | Q4: =IFERROR(VLOOKUP(Tilbudsgiver!Q$22,$X$16:$Y$19,2,FALSE),0) -> 0 | S4: =IFERROR(VLOOKUP(Tilbudsgiver!S$22,$X$16:$Y$19,2,FALSE),0) -> 0 | V4: Fladvare, vævet, operation, væsketæt | W4: Nej | AA4: =AB4-1+YEAR(($AE$3)) -> 2026 | AB4: 2
B5: Bristestyrke | C5: =IFERROR(IF(Ordregiver!$E$31="Ja",HLOOKUP(Ordregiver!$E$29,Baggrundsdata!$E$11:$N$19,3,FALSE),Ordregiver!$E44),0) -> 0 | E5: =IFERROR(VLOOKUP(Tilbudsgiver!E$22,$X$20:$Y$23,2,FALSE),0) -> 0 | G5: =IFERROR(VLOOKUP(Tilbudsgiver!G$23,$X$20:$Y$23,2,FALSE),0) -> 0 | I5: =IFERROR(VLOOKUP(Tilbudsgiver!I$23,$X$20:$Y$23,2,FALSE),0) -> 0 | K5: =IFERROR(VLOOKUP(Tilbudsgiver!K$23,$X$20:$Y$23,2,FALSE),0) -> 5 | M5: =IFERROR(VLOOKUP(Tilbudsgiver!M$22,$X$20:$Y$23,2,FALSE),0) -> 0 | O5: =IFERROR(VLOOKUP(Tilbudsgiver!O$23,$X$20:$Y$23,2,FALSE),0) -> 5 | Q5: =IFERROR(VLOOKUP(Tilbudsgiver!Q$23,$X$20:$Y$23,2,FALSE),0) -> 5 | S5: =IFERROR(VLOOKUP(Tilbudsgiver!S$23,$X$20:$Y$23,2,FALSE),0) -> 5 | V5: Fladvare, vævet, operation, væskeafvisende | AA5: =AB5-1+YEAR(($AE$3)) -> 2027 | AB5: 3
B6: Dimensionsændring | C6: =IFERROR(IF(Ordregiver!$E$31="Ja",HLOOKUP(Ordregiver!$E$29,Baggrundsdata!$E$11:$N$19,4,FALSE),Ordregiver!$E45),0) -> 0 | E6: =IFERROR(VLOOKUP(Tilbudsgiver!#REF!,$X$24:$Y$27,2,FALSE),0) -> 0 | G6: =IFERROR(VLOOKUP(Tilbudsgiver!G$24,$X$24:$Y$27,2,FALSE),0) -> 0 | I6: =IFERROR(VLOOKUP(Tilbudsgiver!I$24,$X$24:$Y$27,2,FALSE),0) -> 0 | K6: =IFERROR(VLOOKUP(Tilbudsgiver!K$24,$X$24:$Y$27,2,FALSE),0) -> 0 | M6: =IFERROR(VLOOKUP(Tilbudsgiver!M$24,$X$24:$Y$27,2,FALSE),0) -> 0 | O6: =IFERROR(VLOOKUP(Tilbudsgiver!O$24,$X$24:$Y$27,2,FALSE),0) -> 0 | Q6: =IFERROR(VLOOKUP(Tilbudsgiver!Q$24,$X$24:$Y$27,2,FALSE),0) -> 0 | S6: =IFERROR(VLOOKUP(Tilbudsgiver!S$24,$X$24:$Y$27,2,FALSE),0) -> 0 | V6: Fyldvare, vævet, alm. brug | AA6: 2028 | AB6: 4
B7: Pilling | C7: =IFERROR(IF(Ordregiver!$E$31="Ja",HLOOKUP(Ordregiver!$E$29,Baggrundsdata!$E$11:$N$19,5,FALSE),Ordregiver!$E46),0) -> 0 | E7: =IFERROR(VLOOKUP(Tilbudsgiver!E$25,$X$28:$Y$31,2,FALSE),0) -> 0 | G7: =IFERROR(VLOOKUP(Tilbudsgiver!G$25,$X$28:$Y$31,2,FALSE),0) -> 0 | I7: =IFERROR(VLOOKUP(Tilbudsgiver!I$25,$X$28:$Y$31,2,FALSE),0) -> 0 | K7: =IFERROR(VLOOKUP(Tilbudsgiver!K$25,$X$28:$Y$31,2,FALSE),0) -> 0 | M7: =IFERROR(VLOOKUP(Tilbudsgiver!M$25,$X$28:$Y$31,2,FALSE),0) -> 0 | O7: =IFERROR(VLOOKUP(Tilbudsgiver!O$25,$X$28:$Y$31,2,FALSE),0) -> 0 | Q7: =IFERROR(VLOOKUP(Tilbudsgiver!Q$25,$X$28:$Y$31,2,FALSE),0) -> 0 | S7: =IFERROR(VLOOKUP(Tilbudsgiver!S$25,$X$28:$Y$31,2,FALSE),0) -> 0 | V7: Fyldvare, vævet operation | AA7: 2029 | AB7: 5
B8: Farveændring | C8: =IFERROR(IF(Ordregiver!$E$31="Ja",HLOOKUP(Ordregiver!$E$29,Baggrundsdata!$E$11:$N$19,6,FALSE),Ordregiver!$E47),0) -> 0 | E8: =IFERROR(VLOOKUP(Tilbudsgiver!E$26,$X$32:$Y$35,2,FALSE),0) -> 0 | G8: =IFERROR(VLOOKUP(Tilbudsgiver!G$26,$X$32:$Y$35,2,FALSE),0) -> 0 | I8: =IFERROR(VLOOKUP(Tilbudsgiver!I$26,$X$32:$Y$35,2,FALSE),0) -> 0 | K8: =IFERROR(VLOOKUP(Tilbudsgiver!K$26,$X$32:$Y$35,2,FALSE),0) -> 0 | M8: =IFERROR(VLOOKUP(Tilbudsgiver!M$26,$X$32:$Y$35,2,FALSE),0) -> 0 | O8: =IFERROR(VLOOKUP(Tilbudsgiver!O$26,$X$32:$Y$35,2,FALSE),0) -> 0 | Q8: =IFERROR(VLOOKUP(Tilbudsgiver!Q$26,$X$32:$Y$35,2,FALSE),0) -> 0 | S8: =IFERROR(VLOOKUP(Tilbudsgiver!S$26,$X$32:$Y$35,2,FALSE),0) -> 0 | V8: Beklædning, vævet, alm. brug
B9: Slidstyrke | C9: =IFERROR(IF(Ordregiver!$E$31="Ja",HLOOKUP(Ordregiver!$E$29,Baggrundsdata!$E$11:$N$19,7,FALSE),Ordregiver!$E48),0) -> 0 | E9: =IFERROR(VLOOKUP(Tilbudsgiver!E$27,$X$36:$Y$39,2,FALSE),0) -> 0 | G9: =IFERROR(VLOOKUP(Tilbudsgiver!G$27,$X$36:$Y$39,2,FALSE),0) -> 0 | I9: =IFERROR(VLOOKUP(Tilbudsgiver!I$27,$X$36:$Y$39,2,FALSE),0) -> 0 | K9: =IFERROR(VLOOKUP(Tilbudsgiver!K$27,$X$36:$Y$39,2,FALSE),0) -> 0 | M9: =IFERROR(VLOOKUP(Tilbudsgiver!M$27,$X$36:$Y$39,2,FALSE),0) -> 0 | O9: =IFERROR(VLOOKUP(Tilbudsgiver!O$27,$X$36:$Y$39,2,FALSE),0) -> 0 | Q9: =IFERROR(VLOOKUP(Tilbudsgiver!Q$27,$X$36:$Y$39,2,FALSE),0) -> 0 | S9: =IFERROR(VLOOKUP(Tilbudsgiver!S$27,$X$36:$Y$39,2,FALSE),0) -> 0 | V9: Beklædning, vævet, operation, væsketæt
B10: Væsketæthed | C10: =IFERROR(IF(Ordregiver!$E$31="Ja",HLOOKUP(Ordregiver!$E$29,Baggrundsdata!$E$11:$N$19,8,FALSE),Ordregiver!$E49),0) -> 0 | E10: =IFERROR(VLOOKUP(Tilbudsgiver!E$28,$X$40:$Y$43,2,FALSE),0) -> 0 | G10: =IFERROR(VLOOKUP(Tilbudsgiver!G$28,$X$40:$Y$43,2,FALSE),0) -> 0 | I10: =IFERROR(VLOOKUP(Tilbudsgiver!I$28,$X$40:$Y$43,2,FALSE),0) -> 0 | K10: =IFERROR(VLOOKUP(Tilbudsgiver!K$28,$X$40:$Y$43,2,FALSE),0) -> 0 | M10: =IFERROR(VLOOKUP(Tilbudsgiver!M$28,$X$40:$Y$43,2,FALSE),0) -> 0 | O10: =IFERROR(VLOOKUP(Tilbudsgiver!O$28,$X$40:$Y$43,2,FALSE),0) -> 0 | Q10: =IFERROR(VLOOKUP(Tilbudsgiver!Q$28,$X$40:$Y$43,2,FALSE),0) -> 0 | S10: =IFERROR(VLOOKUP(Tilbudsgiver!S$28,$X$40:$Y$43,2,FALSE),0) -> 0 | V10: Beklædning, vævet, operation, væskeafvisende
B11: Vandafvisning | C11: =IFERROR(IF(Ordregiver!$E$31="Ja",HLOOKUP(Ordregiver!$E$29,Baggrundsdata!$E$11:$N$19,9,FALSE),Ordregiver!$E50),0) -> 0 | E11: =IFERROR(VLOOKUP(Tilbudsgiver!E$29,$X$44:$Y$47,2,FALSE),0) -> 0 | G11: =IFERROR(VLOOKUP(Tilbudsgiver!G$29,$X$44:$Y$47,2,FALSE),0) -> 0 | I11: =IFERROR(VLOOKUP(Tilbudsgiver!I$29,$X$44:$Y$47,2,FALSE),0) -> 0 | K11: =IFERROR(VLOOKUP(Tilbudsgiver!K$29,$X$44:$Y$47,2,FALSE),0) -> 0 | M11: =IFERROR(VLOOKUP(Tilbudsgiver!M$29,$X$44:$Y$47,2,FALSE),0) -> 0 | O11: =IFERROR(VLOOKUP(Tilbudsgiver!O$29,$X$44:$Y$47,2,FALSE),0) -> 0 | Q11: =IFERROR(VLOOKUP(Tilbudsgiver!Q$29,$X$44:$Y$47,2,FALSE),0) -> 0 | S11: =IFERROR(VLOOKUP(Tilbudsgiver!S$29,$X$44:$Y$47,2,FALSE),0) -> 0 | V11: Beklædning, strikket, alm. brug
B12: Samlet | E12: =ROUND(SUMPRODUCT($C$4:$C$11,E4:E11),0) -> 0 | G12: =ROUND(SUMPRODUCT($C$4:$C$11,G4:G11),0) -> 0 | I12: =ROUND(SUMPRODUCT($C$4:$C$11,I4:I11),0) -> 0 | K12: =ROUND(SUMPRODUCT($C$4:$C$11,K4:K11),0) -> 0 | M12: =ROUND(SUMPRODUCT($C$4:$C$11,M4:M11),0) -> 0 | O12: =ROUND(SUMPRODUCT($C$4:$C$11,O4:O11),0) -> 0 | Q12: =ROUND(SUMPRODUCT($C$4:$C$11,Q4:Q11),0) -> 0 | S12: =ROUND(SUMPRODUCT($C$4:$C$11,S4:S11),0) -> 0 | V12: Beklædning, strikket, operation
B13: Levetidsfaktor | E13: =VLOOKUP(E12,Baggrundsdata!$C$54:$D$69,2,) -> 0.67 | G13: =VLOOKUP(G12,Baggrundsdata!$C$54:$D$69,2,) -> 0.67 | I13: =VLOOKUP(I12,Baggrundsdata!$C$54:$D$69,2,) -> 0.67 | K13: =VLOOKUP(K12,Baggrundsdata!$C$54:$D$69,2,) -> 0.67 | M13: =VLOOKUP(M12,Baggrundsdata!$C$54:$D$69,2,) -> 0.67 | O13: =VLOOKUP(O12,Baggrundsdata!$C$54:$D$69,2,) -> 0.67 | Q13: =VLOOKUP(Q12,Baggrundsdata!$C$54:$D$69,2,) -> 0.67 | S13: =VLOOKUP(S12,Baggrundsdata!$C$54:$D$69,2,) -> 0.67
B14: Levetid | E14: =IFERROR(ROUNDUP(VLOOKUP(Ordregiver!$E$29,Baggrundsdata!$F$54:$I$66,4,FALSE)*E13,0),0) -> 0 | G14: =IFERROR(ROUNDUP(VLOOKUP(Ordregiver!$E$29,Baggrundsdata!$F$54:$I$66,4,FALSE)*G13,0),0) -> 0 | I14: =IFERROR(ROUNDUP(VLOOKUP(Ordregiver!$E$29,Baggrundsdata!$F$54:$I$66,4,FALSE)*I13,0),0) -> 0 | K14: =IFERROR(ROUNDUP(VLOOKUP(Ordregiver!$E$29,Baggrundsdata!$F$54:$I$66,4,FALSE)*K13,0),0) -> 0 | M14: =IFERROR(ROUNDUP(VLOOKUP(Ordregiver!$E$29,Baggrundsdata!$F$54:$I$66,4,FALSE)*M13,0),0) -> 0 | O14: =IFERROR(ROUNDUP(VLOOKUP(Ordregiver!$E$29,Baggrundsdata!$F$54:$I$66,4,FALSE)*O13,0),0) -> 0 | Q14: =IFERROR(ROUNDUP(VLOOKUP(Ordregiver!$E$29,Baggrundsdata!$F$54:$I$66,4,FALSE)*Q13,0),0) -> 0 | S14: =IFERROR(ROUNDUP(VLOOKUP(Ordregiver!$E$29,Baggrundsdata!$F$54:$I$66,4,FALSE)*S13,0),0) -> 0
V15: Performance | W15: Niveau | X15: Grænseværdi | Y15: Point
B16: Driftsomkostninger (vask og tørring) | E16: PRODUKT 1 | G16: PRODUKT 2 | I16: PRODUKT 3 | K16: PRODUKT 4 | M16: PRODUKT 5 | O16: PRODUKT 6 | Q16: PRODUKT 7 | S16: PRODUKT 8 | V16: Rivstyrke | W16: Ingen test udført | X16: =IF(X17=0,"Ikke relevant for produkttypen",IF(Ordregiver!$E$29="","Ingen produkttype valgt",W16)) -> Ingen produkttype valgt | Y16: 0
B17: År indeks | C17: Vaskepris | W17: Lav | X17: =IFERROR(HLOOKUP(Ordregiver!$E$29,Baggrundsdata!$E$25:$N$49,2,FALSE),"") ->  | Y17: =IF(X17=0,0,5) -> 5
B18: 1 | C18: =Ordregiver!$E$12 -> 0 | E18: =(((IF($B18<=Ordregiver!$E$10,1,0)))*$C$18*(Tilbudsgiver!E$19/1000)*Ordregiver!$E$27*(1+Ordregiver!$E$14)^-($B18))/Ordregiver!$E$10 ->  | G18: =(((IF($B18<=Ordregiver!$E$10,1,0)))*$C$18*(Tilbudsgiver!G$19/1000)*Ordregiver!$E$27*(1+Ordregiver!$E$14)^-($B18))/Ordregiver!$E$10 ->  | I18: =(((IF($B18<=Ordregiver!$E$10,1,0)))*$C$18*(Tilbudsgiver!I$19/1000)*Ordregiver!$E$27*(1+Ordregiver!$E$14)^-($B18))/Ordregiver!$E$10 ->  | K18: =(((IF($B18<=Ordregiver!$E$10,1,0)))*$C$18*(Tilbudsgiver!K$19/1000)*Ordregiver!$E$27*(1+Ordregiver!$E$14)^-($B18))/Ordregiver!$E$10 ->  | M18: =(((IF($B18<=Ordregiver!$E$10,1,0)))*$C$18*(Tilbudsgiver!M$19/1000)*Ordregiver!$E$27*(1+Ordregiver!$E$14)^-($B18))/Ordregiver!$E$10 ->  | O18: =(((IF($B18<=Ordregiver!$E$10,1,0)))*$C$18*(Tilbudsgiver!O$19/1000)*Ordregiver!$E$27*(1+Ordregiver!$E$14)^-($B18))/Ordregiver!$E$10 ->  | Q18: =(((IF($B18<=Ordregiver!$E$10,1,0)))*$C$18*(Tilbudsgiver!Q$19/1000)*Ordregiver!$E$27*(1+Ordregiver!$E$14)^-($B18))/Ordregiver!$E$10 ->  | S18: =(((IF($B18<=Ordregiver!$E$10,1,0)))*$C$18*(Tilbudsgiver!S$19/1000)*Ordregiver!$E$27*(1+Ordregiver!$E$14)^-($B18))/Ordregiver!$E$10 ->  | W18: Mellem | X18: =IFERROR(HLOOKUP(Ordregiver!$E$29,Baggrundsdata!$E$25:$N$49,3,FALSE),"") ->  | Y18: =IF(X18=0,0,10) -> 10
B19: =B18+1 -> 2 | C19: =Ordregiver!$E$12 -> 0 | E19: =(((IF($B19<=Ordregiver!$E$10,1,0)))*$C$18*(Tilbudsgiver!E$19/1000)*Ordregiver!$E$27*(1+Ordregiver!$E$14)^-($B19))/Ordregiver!$E$10 ->  | G19: =(((IF($B19<=Ordregiver!$E$10,1,0)))*$C$18*(Tilbudsgiver!G$19/1000)*Ordregiver!$E$27*(1+Ordregiver!$E$14)^-($B19))/Ordregiver!$E$10 ->  | I19: =(((IF($B19<=Ordregiver!$E$10,1,0)))*$C$18*(Tilbudsgiver!I$19/1000)*Ordregiver!$E$27*(1+Ordregiver!$E$14)^-($B19))/Ordregiver!$E$10 ->  | K19: =(((IF($B19<=Ordregiver!$E$10,1,0)))*$C$18*(Tilbudsgiver!K$19/1000)*Ordregiver!$E$27*(1+Ordregiver!$E$14)^-($B19))/Ordregiver!$E$10 ->  | M19: =(((IF($B19<=Ordregiver!$E$10,1,0)))*$C$18*(Tilbudsgiver!M$19/1000)*Ordregiver!$E$27*(1+Ordregiver!$E$14)^-($B19))/Ordregiver!$E$10 ->  | O19: =(((IF($B19<=Ordregiver!$E$10,1,0)))*$C$18*(Tilbudsgiver!O$19/1000)*Ordregiver!$E$27*(1+Ordregiver!$E$14)^-($B19))/Ordregiver!$E$10 ->  | Q19: =(((IF($B19<=Ordregiver!$E$10,1,0)))*$C$18*(Tilbudsgiver!Q$19/1000)*Ordregiver!$E$27*(1+Ordregiver!$E$14)^-($B19))/Ordregiver!$E$10 ->  | S19: =(((IF($B19<=Ordregiver!$E$10,1,0)))*$C$18*(Tilbudsgiver!S$19/1000)*Ordregiver!$E$27*(1+Ordregiver!$E$14)^-($B19))/Ordregiver!$E$10 ->  | W19: Høj | X19: =IFERROR(HLOOKUP(Ordregiver!$E$29,Baggrundsdata!$E$25:$N$49,4,FALSE),"") ->  | Y19: =IF(X19=0,0,15) -> 15
B20: 3 | C20: =Ordregiver!$E$12 -> 0 | E20: =(((IF($B20<=Ordregiver!$E$10,1,0)))*$C$18*(Tilbudsgiver!E$19/1000)*Ordregiver!$E$27*(1+Ordregiver!$E$14)^-($B20))/Ordregiver!$E$10 ->  | G20: =(((IF($B20<=Ordregiver!$E$10,1,0)))*$C$18*(Tilbudsgiver!G$19/1000)*Ordregiver!$E$27*(1+Ordregiver!$E$14)^-($B20))/Ordregiver!$E$10 ->  | I20: =(((IF($B20<=Ordregiver!$E$10,1,0)))*$C$18*(Tilbudsgiver!I$19/1000)*Ordregiver!$E$27*(1+Ordregiver!$E$14)^-($B20))/Ordregiver!$E$10 ->  | K20: =(((IF($B20<=Ordregiver!$E$10,1,0)))*$C$18*(Tilbudsgiver!K$19/1000)*Ordregiver!$E$27*(1+Ordregiver!$E$14)^-($B20))/Ordregiver!$E$10 ->  | M20: =(((IF($B20<=Ordregiver!$E$10,1,0)))*$C$18*(Tilbudsgiver!M$19/1000)*Ordregiver!$E$27*(1+Ordregiver!$E$14)^-($B20))/Ordregiver!$E$10 ->  | O20: =(((IF($B20<=Ordregiver!$E$10,1,0)))*$C$18*(Tilbudsgiver!O$19/1000)*Ordregiver!$E$27*(1+Ordregiver!$E$14)^-($B20))/Ordregiver!$E$10 ->  | Q20: =(((IF($B20<=Ordregiver!$E$10,1,0)))*$C$18*(Tilbudsgiver!Q$19/1000)*Ordregiver!$E$27*(1+Ordregiver!$E$14)^-($B20))/Ordregiver!$E$10 ->  | S20: =(((IF($B20<=Ordregiver!$E$10,1,0)))*$C$18*(Tilbudsgiver!S$19/1000)*Ordregiver!$E$27*(1+Ordregiver!$E$14)^-($B20))/Ordregiver!$E$10 ->  | V20: Bristestyrke | W20: Ingen test udført | X20: =IF(X21=0,"Ikke relevant for produkttypen",IF(Ordregiver!$E$29="","Ingen produkttype valgt",W20)) -> Ingen produkttype valgt | Y20: 0
B21: 4 | C21: =Ordregiver!$E$12 -> 0 | E21: =(((IF($B21<=Ordregiver!$E$10,1,0)))*$C$18*(Tilbudsgiver!E$19/1000)*Ordregiver!$E$27*(1+Ordregiver!$E$14)^-($B21))/Ordregiver!$E$10 ->  | G21: =(((IF($B21<=Ordregiver!$E$10,1,0)))*$C$18*(Tilbudsgiver!G$19/1000)*Ordregiver!$E$27*(1+Ordregiver!$E$14)^-($B21))/Ordregiver!$E$10 ->  | I21: =(((IF($B21<=Ordregiver!$E$10,1,0)))*$C$18*(Tilbudsgiver!I$19/1000)*Ordregiver!$E$27*(1+Ordregiver!$E$14)^-($B21))/Ordregiver!$E$10 ->  | K21: =(((IF($B21<=Ordregiver!$E$10,1,0)))*$C$18*(Tilbudsgiver!K$19/1000)*Ordregiver!$E$27*(1+Ordregiver!$E$14)^-($B21))/Ordregiver!$E$10 ->  | M21: =(((IF($B21<=Ordregiver!$E$10,1,0)))*$C$18*(Tilbudsgiver!M$19/1000)*Ordregiver!$E$27*(1+Ordregiver!$E$14)^-($B21))/Ordregiver!$E$10 ->  | O21: =(((IF($B21<=Ordregiver!$E$10,1,0)))*$C$18*(Tilbudsgiver!O$19/1000)*Ordregiver!$E$27*(1+Ordregiver!$E$14)^-($B21))/Ordregiver!$E$10 ->  | Q21: =(((IF($B21<=Ordregiver!$E$10,1,0)))*$C$18*(Tilbudsgiver!Q$19/1000)*Ordregiver!$E$27*(1+Ordregiver!$E$14)^-($B21))/Ordregiver!$E$10 ->  | S21: =(((IF($B21<=Ordregiver!$E$10,1,0)))*$C$18*(Tilbudsgiver!S$19/1000)*Ordregiver!$E$27*(1+Ordregiver!$E$14)^-($B21))/Ordregiver!$E$10 ->  | W21: Lav | X21: =IFERROR(HLOOKUP(Ordregiver!$E$29,Baggrundsdata!$E$25:$N$49,5,FALSE),"") ->  | Y21: =IF(X21=0,0,5) -> 5
B22: 5 | C22: =Ordregiver!$E$12 -> 0 | E22: =(((IF($B22<=Ordregiver!$E$10,1,0)))*$C$18*(Tilbudsgiver!E$19/1000)*Ordregiver!$E$27*(1+Ordregiver!$E$14)^-($B22))/Ordregiver!$E$10 ->  | G22: =(((IF($B22<=Ordregiver!$E$10,1,0)))*$C$18*(Tilbudsgiver!G$19/1000)*Ordregiver!$E$27*(1+Ordregiver!$E$14)^-($B22))/Ordregiver!$E$10 ->  | I22: =(((IF($B22<=Ordregiver!$E$10,1,0)))*$C$18*(Tilbudsgiver!I$19/1000)*Ordregiver!$E$27*(1+Ordregiver!$E$14)^-($B22))/Ordregiver!$E$10 ->  | K22: =(((IF($B22<=Ordregiver!$E$10,1,0)))*$C$18*(Tilbudsgiver!K$19/1000)*Ordregiver!$E$27*(1+Ordregiver!$E$14)^-($B22))/Ordregiver!$E$10 ->  | M22: =(((IF($B22<=Ordregiver!$E$10,1,0)))*$C$18*(Tilbudsgiver!M$19/1000)*Ordregiver!$E$27*(1+Ordregiver!$E$14)^-($B22))/Ordregiver!$E$10 ->  | O22: =(((IF($B22<=Ordregiver!$E$10,1,0)))*$C$18*(Tilbudsgiver!O$19/1000)*Ordregiver!$E$27*(1+Ordregiver!$E$14)^-($B22))/Ordregiver!$E$10 ->  | Q22: =(((IF($B22<=Ordregiver!$E$10,1,0)))*$C$18*(Tilbudsgiver!Q$19/1000)*Ordregiver!$E$27*(1+Ordregiver!$E$14)^-($B22))/Ordregiver!$E$10 ->  | S22: =(((IF($B22<=Ordregiver!$E$10,1,0)))*$C$18*(Tilbudsgiver!S$19/1000)*Ordregiver!$E$27*(1+Ordregiver!$E$14)^-($B22))/Ordregiver!$E$10 ->  | W22: Mellem | X22: =IFERROR(HLOOKUP(Ordregiver!$E$29,Baggrundsdata!$E$25:$N$49,6,FALSE),"") ->  | Y22: =IF(X22=0,0,10) -> 10
B23: 6 | C23: =Ordregiver!$E$12 -> 0 | E23: =(((IF($B23<=Ordregiver!$E$10,1,0)))*$C$18*(Tilbudsgiver!E$19/1000)*Ordregiver!$E$27*(1+Ordregiver!$E$14)^-($B23))/Ordregiver!$E$10 ->  | G23: =(((IF($B23<=Ordregiver!$E$10,1,0)))*$C$18*(Tilbudsgiver!G$19/1000)*Ordregiver!$E$27*(1+Ordregiver!$E$14)^-($B23))/Ordregiver!$E$10 ->  | I23: =(((IF($B23<=Ordregiver!$E$10,1,0)))*$C$18*(Tilbudsgiver!I$19/1000)*Ordregiver!$E$27*(1+Ordregiver!$E$14)^-($B23))/Ordregiver!$E$10 ->  | K23: =(((IF($B23<=Ordregiver!$E$10,1,0)))*$C$18*(Tilbudsgiver!K$19/1000)*Ordregiver!$E$27*(1+Ordregiver!$E$14)^-($B23))/Ordregiver!$E$10 ->  | M23: =(((IF($B23<=Ordregiver!$E$10,1,0)))*$C$18*(Tilbudsgiver!M$19/1000)*Ordregiver!$E$27*(1+Ordregiver!$E$14)^-($B23))/Ordregiver!$E$10 ->  | O23: =(((IF($B23<=Ordregiver!$E$10,1,0)))*$C$18*(Tilbudsgiver!O$19/1000)*Ordregiver!$E$27*(1+Ordregiver!$E$14)^-($B23))/Ordregiver!$E$10 ->  | Q23: =(((IF($B23<=Ordregiver!$E$10,1,0)))*$C$18*(Tilbudsgiver!Q$19/1000)*Ordregiver!$E$27*(1+Ordregiver!$E$14)^-($B23))/Ordregiver!$E$10 ->  | S23: =(((IF($B23<=Ordregiver!$E$10,1,0)))*$C$18*(Tilbudsgiver!S$19/1000)*Ordregiver!$E$27*(1+Ordregiver!$E$14)^-($B23))/Ordregiver!$E$10 ->  | W23: Høj | X23: =IFERROR(HLOOKUP(Ordregiver!$E$29,Baggrundsdata!$E$25:$N$49,7,FALSE),"") ->  | Y23: =IF(X23=0,0,15) -> 15
B24: 7 | C24: =Ordregiver!$E$12 -> 0 | E24: =(((IF($B24<=Ordregiver!$E$10,1,0)))*$C$18*(Tilbudsgiver!E$19/1000)*Ordregiver!$E$27*(1+Ordregiver!$E$14)^-($B24))/Ordregiver!$E$10 ->  | G24: =(((IF($B24<=Ordregiver!$E$10,1,0)))*$C$18*(Tilbudsgiver!G$19/1000)*Ordregiver!$E$27*(1+Ordregiver!$E$14)^-($B24))/Ordregiver!$E$10 ->  | I24: =(((IF($B24<=Ordregiver!$E$10,1,0)))*$C$18*(Tilbudsgiver!I$19/1000)*Ordregiver!$E$27*(1+Ordregiver!$E$14)^-($B24))/Ordregiver!$E$10 ->  | K24: =(((IF($B24<=Ordregiver!$E$10,1,0)))*$C$18*(Tilbudsgiver!K$19/1000)*Ordregiver!$E$27*(1+Ordregiver!$E$14)^-($B24))/Ordregiver!$E$10 ->  | M24: =(((IF($B24<=Ordregiver!$E$10,1,0)))*$C$18*(Tilbudsgiver!M$19/1000)*Ordregiver!$E$27*(1+Ordregiver!$E$14)^-($B24))/Ordregiver!$E$10 ->  | O24: =(((IF($B24<=Ordregiver!$E$10,1,0)))*$C$18*(Tilbudsgiver!O$19/1000)*Ordregiver!$E$27*(1+Ordregiver!$E$14)^-($B24))/Ordregiver!$E$10 ->  | Q24: =(((IF($B24<=Ordregiver!$E$10,1,0)))*$C$18*(Tilbudsgiver!Q$19/1000)*Ordregiver!$E$27*(1+Ordregiver!$E$14)^-($B24))/Ordregiver!$E$10 ->  | S24: =(((IF($B24<=Ordregiver!$E$10,1,0)))*$C$18*(Tilbudsgiver!S$19/1000)*Ordregiver!$E$27*(1+Ordregiver!$E$14)^-($B24))/Ordregiver!$E$10 ->  | V24: Dimensionsændring | W24: Ingen test udført | X24: =IF(X25=0,"Ikke relevant for produkttypen",IF(Ordregiver!$E$29="","Ingen produkttype valgt",W24)) -> Ingen produkttype valgt | Y24: 0
B25: 8 | C25: =Ordregiver!$E$12 -> 0 | E25: =(((IF($B25<=Ordregiver!$E$10,1,0)))*$C$18*(Tilbudsgiver!E$19/1000)*Ordregiver!$E$27*(1+Ordregiver!$E$14)^-($B25))/Ordregiver!$E$10 ->  | G25: =(((IF($B25<=Ordregiver!$E$10,1,0)))*$C$18*(Tilbudsgiver!G$19/1000)*Ordregiver!$E$27*(1+Ordregiver!$E$14)^-($B25))/Ordregiver!$E$10 ->  | I25: =(((IF($B25<=Ordregiver!$E$10,1,0)))*$C$18*(Tilbudsgiver!I$19/1000)*Ordregiver!$E$27*(1+Ordregiver!$E$14)^-($B25))/Ordregiver!$E$10 ->  | K25: =(((IF($B25<=Ordregiver!$E$10,1,0)))*$C$18*(Tilbudsgiver!K$19/1000)*Ordregiver!$E$27*(1+Ordregiver!$E$14)^-($B25))/Ordregiver!$E$10 ->  | M25: =(((IF($B25<=Ordregiver!$E$10,1,0)))*$C$18*(Tilbudsgiver!M$19/1000)*Ordregiver!$E$27*(1+Ordregiver!$E$14)^-($B25))/Ordregiver!$E$10 ->  | O25: =(((IF($B25<=Ordregiver!$E$10,1,0)))*$C$18*(Tilbudsgiver!O$19/1000)*Ordregiver!$E$27*(1+Ordregiver!$E$14)^-($B25))/Ordregiver!$E$10 ->  | Q25: =(((IF($B25<=Ordregiver!$E$10,1,0)))*$C$18*(Tilbudsgiver!Q$19/1000)*Ordregiver!$E$27*(1+Ordregiver!$E$14)^-($B25))/Ordregiver!$E$10 ->  | S25: =(((IF($B25<=Ordregiver!$E$10,1,0)))*$C$18*(Tilbudsgiver!S$19/1000)*Ordregiver!$E$27*(1+Ordregiver!$E$14)^-($B25))/Ordregiver!$E$10 ->  | W25: Lav | X25: =IFERROR(HLOOKUP(Ordregiver!$E$29,Baggrundsdata!$E$25:$N$49,8,FALSE),"") ->  | Y25: =IF(X25=0,0,5) -> 5
B26: 9 | C26: =Ordregiver!$E$12 -> 0 | E26: =(((IF($B26<=Ordregiver!$E$10,1,0)))*$C$18*(Tilbudsgiver!E$19/1000)*Ordregiver!$E$27*(1+Ordregiver!$E$14)^-($B26))/Ordregiver!$E$10 ->  | G26: =(((IF($B26<=Ordregiver!$E$10,1,0)))*$C$18*(Tilbudsgiver!G$19/1000)*Ordregiver!$E$27*(1+Ordregiver!$E$14)^-($B26))/Ordregiver!$E$10 ->  | I26: =(((IF($B26<=Ordregiver!$E$10,1,0)))*$C$18*(Tilbudsgiver!I$19/1000)*Ordregiver!$E$27*(1+Ordregiver!$E$14)^-($B26))/Ordregiver!$E$10 ->  | K26: =(((IF($B26<=Ordregiver!$E$10,1,0)))*$C$18*(Tilbudsgiver!K$19/1000)*Ordregiver!$E$27*(1+Ordregiver!$E$14)^-($B26))/Ordregiver!$E$10 ->  | M26: =(((IF($B26<=Ordregiver!$E$10,1,0)))*$C$18*(Tilbudsgiver!M$19/1000)*Ordregiver!$E$27*(1+Ordregiver!$E$14)^-($B26))/Ordregiver!$E$10 ->  | O26: =(((IF($B26<=Ordregiver!$E$10,1,0)))*$C$18*(Tilbudsgiver!O$19/1000)*Ordregiver!$E$27*(1+Ordregiver!$E$14)^-($B26))/Ordregiver!$E$10 ->  | Q26: =(((IF($B26<=Ordregiver!$E$10,1,0)))*$C$18*(Tilbudsgiver!Q$19/1000)*Ordregiver!$E$27*(1+Ordregiver!$E$14)^-($B26))/Ordregiver!$E$10 ->  | S26: =(((IF($B26<=Ordregiver!$E$10,1,0)))*$C$18*(Tilbudsgiver!S$19/1000)*Ordregiver!$E$27*(1+Ordregiver!$E$14)^-($B26))/Ordregiver!$E$10 ->  | W26: Mellem | X26: =IFERROR(HLOOKUP(Ordregiver!$E$29,Baggrundsdata!$E$25:$N$49,9,FALSE),"") ->  | Y26: =IF(X26=0,0,10) -> 10
B27: 10 | C27: =Ordregiver!$E$12 -> 0 | E27: =(((IF($B27<=Ordregiver!$E$10,1,0)))*$C$18*(Tilbudsgiver!E$19/1000)*Ordregiver!$E$27*(1+Ordregiver!$E$14)^-($B27))/Ordregiver!$E$10 ->  | G27: =(((IF($B27<=Ordregiver!$E$10,1,0)))*$C$18*(Tilbudsgiver!G$19/1000)*Ordregiver!$E$27*(1+Ordregiver!$E$14)^-($B27))/Ordregiver!$E$10 ->  | I27: =(((IF($B27<=Ordregiver!$E$10,1,0)))*$C$18*(Tilbudsgiver!I$19/1000)*Ordregiver!$E$27*(1+Ordregiver!$E$14)^-($B27))/Ordregiver!$E$10 ->  | K27: =(((IF($B27<=Ordregiver!$E$10,1,0)))*$C$18*(Tilbudsgiver!K$19/1000)*Ordregiver!$E$27*(1+Ordregiver!$E$14)^-($B27))/Ordregiver!$E$10 ->  | M27: =(((IF($B27<=Ordregiver!$E$10,1,0)))*$C$18*(Tilbudsgiver!M$19/1000)*Ordregiver!$E$27*(1+Ordregiver!$E$14)^-($B27))/Ordregiver!$E$10 ->  | O27: =(((IF($B27<=Ordregiver!$E$10,1,0)))*$C$18*(Tilbudsgiver!O$19/1000)*Ordregiver!$E$27*(1+Ordregiver!$E$14)^-($B27))/Ordregiver!$E$10 ->  | Q27: =(((IF($B27<=Ordregiver!$E$10,1,0)))*$C$18*(Tilbudsgiver!Q$19/1000)*Ordregiver!$E$27*(1+Ordregiver!$E$14)^-($B27))/Ordregiver!$E$10 ->  | S27: =(((IF($B27<=Ordregiver!$E$10,1,0)))*$C$18*(Tilbudsgiver!S$19/1000)*Ordregiver!$E$27*(1+Ordregiver!$E$14)^-($B27))/Ordregiver!$E$10 ->  | W27: Høj | X27: =IFERROR(HLOOKUP(Ordregiver!$E$29,Baggrundsdata!$E$25:$N$49,10,FALSE),"") ->  | Y27: =IF(X27=0,0,15) -> 15
B28: 11 | C28: =Ordregiver!$E$12 -> 0 | E28: =(((IF($B28<=Ordregiver!$E$10,1,0)))*$C$18*(Tilbudsgiver!E$19/1000)*Ordregiver!$E$27*(1+Ordregiver!$E$14)^-($B28))/Ordregiver!$E$10 ->  | G28: =(((IF($B28<=Ordregiver!$E$10,1,0)))*$C$18*(Tilbudsgiver!G$19/1000)*Ordregiver!$E$27*(1+Ordregiver!$E$14)^-($B28))/Ordregiver!$E$10 ->  | I28: =(((IF($B28<=Ordregiver!$E$10,1,0)))*$C$18*(Tilbudsgiver!I$19/1000)*Ordregiver!$E$27*(1+Ordregiver!$E$14)^-($B28))/Ordregiver!$E$10 ->  | K28: =(((IF($B28<=Ordregiver!$E$10,1,0)))*$C$18*(Tilbudsgiver!K$19/1000)*Ordregiver!$E$27*(1+Ordregiver!$E$14)^-($B28))/Ordregiver!$E$10 ->  | M28: =(((IF($B28<=Ordregiver!$E$10,1,0)))*$C$18*(Tilbudsgiver!M$19/1000)*Ordregiver!$E$27*(1+Ordregiver!$E$14)^-($B28))/Ordregiver!$E$10 ->  | O28: =(((IF($B28<=Ordregiver!$E$10,1,0)))*$C$18*(Tilbudsgiver!O$19/1000)*Ordregiver!$E$27*(1+Ordregiver!$E$14)^-($B28))/Ordregiver!$E$10 ->  | Q28: =(((IF($B28<=Ordregiver!$E$10,1,0)))*$C$18*(Tilbudsgiver!Q$19/1000)*Ordregiver!$E$27*(1+Ordregiver!$E$14)^-($B28))/Ordregiver!$E$10 ->  | S28: =(((IF($B28<=Ordregiver!$E$10,1,0)))*$C$18*(Tilbudsgiver!S$19/1000)*Ordregiver!$E$27*(1+Ordregiver!$E$14)^-($B28))/Ordregiver!$E$10 ->  | V28: Pilling | W28: Ingen test udført | X28: =IF(X29=0,"Ikke relevant for produkttypen",IF(Ordregiver!$E$29="","Ingen produkttype valgt",W28)) -> Ingen produkttype valgt | Y28: 0
B29: 12 | C29: =Ordregiver!$E$12 -> 0 | E29: =(((IF($B29<=Ordregiver!$E$10,1,0)))*$C$18*(Tilbudsgiver!E$19/1000)*Ordregiver!$E$27*(1+Ordregiver!$E$14)^-($B29))/Ordregiver!$E$10 ->  | G29: =(((IF($B29<=Ordregiver!$E$10,1,0)))*$C$18*(Tilbudsgiver!G$19/1000)*Ordregiver!$E$27*(1+Ordregiver!$E$14)^-($B29))/Ordregiver!$E$10 ->  | I29: =(((IF($B29<=Ordregiver!$E$10,1,0)))*$C$18*(Tilbudsgiver!I$19/1000)*Ordregiver!$E$27*(1+Ordregiver!$E$14)^-($B29))/Ordregiver!$E$10 ->  | K29: =(((IF($B29<=Ordregiver!$E$10,1,0)))*$C$18*(Tilbudsgiver!K$19/1000)*Ordregiver!$E$27*(1+Ordregiver!$E$14)^-($B29))/Ordregiver!$E$10 ->  | M29: =(((IF($B29<=Ordregiver!$E$10,1,0)))*$C$18*(Tilbudsgiver!M$19/1000)*Ordregiver!$E$27*(1+Ordregiver!$E$14)^-($B29))/Ordregiver!$E$10 ->  | O29: =(((IF($B29<=Ordregiver!$E$10,1,0)))*$C$18*(Tilbudsgiver!O$19/1000)*Ordregiver!$E$27*(1+Ordregiver!$E$14)^-($B29))/Ordregiver!$E$10 ->  | Q29: =(((IF($B29<=Ordregiver!$E$10,1,0)))*$C$18*(Tilbudsgiver!Q$19/1000)*Ordregiver!$E$27*(1+Ordregiver!$E$14)^-($B29))/Ordregiver!$E$10 ->  | S29: =(((IF($B29<=Ordregiver!$E$10,1,0)))*$C$18*(Tilbudsgiver!S$19/1000)*Ordregiver!$E$27*(1+Ordregiver!$E$14)^-($B29))/Ordregiver!$E$10 ->  | W29: Lav | X29: =IFERROR(HLOOKUP(Ordregiver!$E$29,Baggrundsdata!$E$25:$N$49,11,FALSE),"") ->  | Y29: =IF(X29=0,0,5) -> 5
B30: 13 | C30: =Ordregiver!$E$12 -> 0 | E30: =(((IF($B30<=Ordregiver!$E$10,1,0)))*$C$18*(Tilbudsgiver!E$19/1000)*Ordregiver!$E$27*(1+Ordregiver!$E$14)^-($B30))/Ordregiver!$E$10 ->  | G30: =(((IF($B30<=Ordregiver!$E$10,1,0)))*$C$18*(Tilbudsgiver!G$19/1000)*Ordregiver!$E$27*(1+Ordregiver!$E$14)^-($B30))/Ordregiver!$E$10 ->  | I30: =(((IF($B30<=Ordregiver!$E$10,1,0)))*$C$18*(Tilbudsgiver!I$19/1000)*Ordregiver!$E$27*(1+Ordregiver!$E$14)^-($B30))/Ordregiver!$E$10 ->  | K30: =(((IF($B30<=Ordregiver!$E$10,1,0)))*$C$18*(Tilbudsgiver!K$19/1000)*Ordregiver!$E$27*(1+Ordregiver!$E$14)^-($B30))/Ordregiver!$E$10 ->  | M30: =(((IF($B30<=Ordregiver!$E$10,1,0)))*$C$18*(Tilbudsgiver!M$19/1000)*Ordregiver!$E$27*(1+Ordregiver!$E$14)^-($B30))/Ordregiver!$E$10 ->  | O30: =(((IF($B30<=Ordregiver!$E$10,1,0)))*$C$18*(Tilbudsgiver!O$19/1000)*Ordregiver!$E$27*(1+Ordregiver!$E$14)^-($B30))/Ordregiver!$E$10 ->  | Q30: =(((IF($B30<=Ordregiver!$E$10,1,0)))*$C$18*(Tilbudsgiver!Q$19/1000)*Ordregiver!$E$27*(1+Ordregiver!$E$14)^-($B30))/Ordregiver!$E$10 ->  | S30: =(((IF($B30<=Ordregiver!$E$10,1,0)))*$C$18*(Tilbudsgiver!S$19/1000)*Ordregiver!$E$27*(1+Ordregiver!$E$14)^-($B30))/Ordregiver!$E$10 ->  | W30: Mellem | X30: =IFERROR(HLOOKUP(Ordregiver!$E$29,Baggrundsdata!$E$25:$N$49,12,FALSE),"") ->  | Y30: =IF(X30=0,0,10) -> 10
B31: 14 | C31: =Ordregiver!$E$12 -> 0 | E31: =(((IF($B31<=Ordregiver!$E$10,1,0)))*$C$18*(Tilbudsgiver!E$19/1000)*Ordregiver!$E$27*(1+Ordregiver!$E$14)^-($B31))/Ordregiver!$E$10 ->  | G31: =(((IF($B31<=Ordregiver!$E$10,1,0)))*$C$18*(Tilbudsgiver!G$19/1000)*Ordregiver!$E$27*(1+Ordregiver!$E$14)^-($B31))/Ordregiver!$E$10 ->  | I31: =(((IF($B31<=Ordregiver!$E$10,1,0)))*$C$18*(Tilbudsgiver!I$19/1000)*Ordregiver!$E$27*(1+Ordregiver!$E$14)^-($B31))/Ordregiver!$E$10 ->  | K31: =(((IF($B31<=Ordregiver!$E$10,1,0)))*$C$18*(Tilbudsgiver!K$19/1000)*Ordregiver!$E$27*(1+Ordregiver!$E$14)^-($B31))/Ordregiver!$E$10 ->  | M31: =(((IF($B31<=Ordregiver!$E$10,1,0)))*$C$18*(Tilbudsgiver!M$19/1000)*Ordregiver!$E$27*(1+Ordregiver!$E$14)^-($B31))/Ordregiver!$E$10 ->  | O31: =(((IF($B31<=Ordregiver!$E$10,1,0)))*$C$18*(Tilbudsgiver!O$19/1000)*Ordregiver!$E$27*(1+Ordregiver!$E$14)^-($B31))/Ordregiver!$E$10 ->  | Q31: =(((IF($B31<=Ordregiver!$E$10,1,0)))*$C$18*(Tilbudsgiver!Q$19/1000)*Ordregiver!$E$27*(1+Ordregiver!$E$14)^-($B31))/Ordregiver!$E$10 ->  | S31: =(((IF($B31<=Ordregiver!$E$10,1,0)))*$C$18*(Tilbudsgiver!S$19/1000)*Ordregiver!$E$27*(1+Ordregiver!$E$14)^-($B31))/Ordregiver!$E$10 ->  | W31: Høj | X31: =IFERROR(HLOOKUP(Ordregiver!$E$29,Baggrundsdata!$E$25:$N$49,13,FALSE),"") ->  | Y31: =IF(X31=0,0,15) -> 15
B32: 15 | C32: =Ordregiver!$E$12 -> 0 | E32: =(((IF($B32<=Ordregiver!$E$10,1,0)))*$C$18*(Tilbudsgiver!E$19/1000)*Ordregiver!$E$27*(1+Ordregiver!$E$14)^-($B32))/Ordregiver!$E$10 ->  | G32: =(((IF($B32<=Ordregiver!$E$10,1,0)))*$C$18*(Tilbudsgiver!G$19/1000)*Ordregiver!$E$27*(1+Ordregiver!$E$14)^-($B32))/Ordregiver!$E$10 ->  | I32: =(((IF($B32<=Ordregiver!$E$10,1,0)))*$C$18*(Tilbudsgiver!I$19/1000)*Ordregiver!$E$27*(1+Ordregiver!$E$14)^-($B32))/Ordregiver!$E$10 ->  | K32: =(((IF($B32<=Ordregiver!$E$10,1,0)))*$C$18*(Tilbudsgiver!K$19/1000)*Ordregiver!$E$27*(1+Ordregiver!$E$14)^-($B32))/Ordregiver!$E$10 ->  | M32: =(((IF($B32<=Ordregiver!$E$10,1,0)))*$C$18*(Tilbudsgiver!M$19/1000)*Ordregiver!$E$27*(1+Ordregiver!$E$14)^-($B32))/Ordregiver!$E$10 ->  | O32: =(((IF($B32<=Ordregiver!$E$10,1,0)))*$C$18*(Tilbudsgiver!O$19/1000)*Ordregiver!$E$27*(1+Ordregiver!$E$14)^-($B32))/Ordregiver!$E$10 ->  | Q32: =(((IF($B32<=Ordregiver!$E$10,1,0)))*$C$18*(Tilbudsgiver!Q$19/1000)*Ordregiver!$E$27*(1+Ordregiver!$E$14)^-($B32))/Ordregiver!$E$10 ->  | S32: =(((IF($B32<=Ordregiver!$E$10,1,0)))*$C$18*(Tilbudsgiver!S$19/1000)*Ordregiver!$E$27*(1+Ordregiver!$E$14)^-($B32))/Ordregiver!$E$10 ->  | V32: Farveændring | W32: Ingen test udført | X32: =IF(X33=0,"Ikke relevant for produkttypen",IF(Ordregiver!$E$29="","Ingen produkttype valgt",W32)) -> Ingen produkttype valgt | Y32: 0
B33: 16 | C33: =Ordregiver!$E$12 -> 0 | E33: =(((IF($B33<=Ordregiver!$E$10,1,0)))*$C$18*(Tilbudsgiver!E$19/1000)*Ordregiver!$E$27*(1+Ordregiver!$E$14)^-($B33))/Ordregiver!$E$10 ->  | G33: =(((IF($B33<=Ordregiver!$E$10,1,0)))*$C$18*(Tilbudsgiver!G$19/1000)*Ordregiver!$E$27*(1+Ordregiver!$E$14)^-($B33))/Ordregiver!$E$10 ->  | I33: =(((IF($B33<=Ordregiver!$E$10,1,0)))*$C$18*(Tilbudsgiver!I$19/1000)*Ordregiver!$E$27*(1+Ordregiver!$E$14)^-($B33))/Ordregiver!$E$10 ->  | K33: =(((IF($B33<=Ordregiver!$E$10,1,0)))*$C$18*(Tilbudsgiver!K$19/1000)*Ordregiver!$E$27*(1+Ordregiver!$E$14)^-($B33))/Ordregiver!$E$10 ->  | M33: =(((IF($B33<=Ordregiver!$E$10,1,0)))*$C$18*(Tilbudsgiver!M$19/1000)*Ordregiver!$E$27*(1+Ordregiver!$E$14)^-($B33))/Ordregiver!$E$10 ->  | O33: =(((IF($B33<=Ordregiver!$E$10,1,0)))*$C$18*(Tilbudsgiver!O$19/1000)*Ordregiver!$E$27*(1+Ordregiver!$E$14)^-($B33))/Ordregiver!$E$10 ->  | Q33: =(((IF($B33<=Ordregiver!$E$10,1,0)))*$C$18*(Tilbudsgiver!Q$19/1000)*Ordregiver!$E$27*(1+Ordregiver!$E$14)^-($B33))/Ordregiver!$E$10 ->  | S33: =(((IF($B33<=Ordregiver!$E$10,1,0)))*$C$18*(Tilbudsgiver!S$19/1000)*Ordregiver!$E$27*(1+Ordregiver!$E$14)^-($B33))/Ordregiver!$E$10 ->  | W33: Lav | X33: =IFERROR(HLOOKUP(Ordregiver!$E$29,Baggrundsdata!$E$25:$N$49,14,FALSE),"") ->  | Y33: =IF(X33=0,0,5) -> 5
B34: 17 | C34: =Ordregiver!$E$12 -> 0 | E34: =(((IF($B34<=Ordregiver!$E$10,1,0)))*$C$18*(Tilbudsgiver!E$19/1000)*Ordregiver!$E$27*(1+Ordregiver!$E$14)^-($B34))/Ordregiver!$E$10 ->  | G34: =(((IF($B34<=Ordregiver!$E$10,1,0)))*$C$18*(Tilbudsgiver!G$19/1000)*Ordregiver!$E$27*(1+Ordregiver!$E$14)^-($B34))/Ordregiver!$E$10 ->  | I34: =(((IF($B34<=Ordregiver!$E$10,1,0)))*$C$18*(Tilbudsgiver!I$19/1000)*Ordregiver!$E$27*(1+Ordregiver!$E$14)^-($B34))/Ordregiver!$E$10 ->  | K34: =(((IF($B34<=Ordregiver!$E$10,1,0)))*$C$18*(Tilbudsgiver!K$19/1000)*Ordregiver!$E$27*(1+Ordregiver!$E$14)^-($B34))/Ordregiver!$E$10 ->  | M34: =(((IF($B34<=Ordregiver!$E$10,1,0)))*$C$18*(Tilbudsgiver!M$19/1000)*Ordregiver!$E$27*(1+Ordregiver!$E$14)^-($B34))/Ordregiver!$E$10 ->  | O34: =(((IF($B34<=Ordregiver!$E$10,1,0)))*$C$18*(Tilbudsgiver!O$19/1000)*Ordregiver!$E$27*(1+Ordregiver!$E$14)^-($B34))/Ordregiver!$E$10 ->  | Q34: =(((IF($B34<=Ordregiver!$E$10,1,0)))*$C$18*(Tilbudsgiver!Q$19/1000)*Ordregiver!$E$27*(1+Ordregiver!$E$14)^-($B34))/Ordregiver!$E$10 ->  | S34: =(((IF($B34<=Ordregiver!$E$10,1,0)))*$C$18*(Tilbudsgiver!S$19/1000)*Ordregiver!$E$27*(1+Ordregiver!$E$14)^-($B34))/Ordregiver!$E$10 ->  | W34: Mellem | X34: =IFERROR(HLOOKUP(Ordregiver!$E$29,Baggrundsdata!$E$25:$N$49,15,FALSE),"") ->  | Y34: =IF(X34=0,0,10) -> 10
B35: 18 | C35: =Ordregiver!$E$12 -> 0 | E35: =(((IF($B35<=Ordregiver!$E$10,1,0)))*$C$18*(Tilbudsgiver!E$19/1000)*Ordregiver!$E$27*(1+Ordregiver!$E$14)^-($B35))/Ordregiver!$E$10 ->  | G35: =(((IF($B35<=Ordregiver!$E$10,1,0)))*$C$18*(Tilbudsgiver!G$19/1000)*Ordregiver!$E$27*(1+Ordregiver!$E$14)^-($B35))/Ordregiver!$E$10 ->  | I35: =(((IF($B35<=Ordregiver!$E$10,1,0)))*$C$18*(Tilbudsgiver!I$19/1000)*Ordregiver!$E$27*(1+Ordregiver!$E$14)^-($B35))/Ordregiver!$E$10 ->  | K35: =(((IF($B35<=Ordregiver!$E$10,1,0)))*$C$18*(Tilbudsgiver!K$19/1000)*Ordregiver!$E$27*(1+Ordregiver!$E$14)^-($B35))/Ordregiver!$E$10 ->  | M35: =(((IF($B35<=Ordregiver!$E$10,1,0)))*$C$18*(Tilbudsgiver!M$19/1000)*Ordregiver!$E$27*(1+Ordregiver!$E$14)^-($B35))/Ordregiver!$E$10 ->  | O35: =(((IF($B35<=Ordregiver!$E$10,1,0)))*$C$18*(Tilbudsgiver!O$19/1000)*Ordregiver!$E$27*(1+Ordregiver!$E$14)^-($B35))/Ordregiver!$E$10 ->  | Q35: =(((IF($B35<=Ordregiver!$E$10,1,0)))*$C$18*(Tilbudsgiver!Q$19/1000)*Ordregiver!$E$27*(1+Ordregiver!$E$14)^-($B35))/Ordregiver!$E$10 ->  | S35: =(((IF($B35<=Ordregiver!$E$10,1,0)))*$C$18*(Tilbudsgiver!S$19/1000)*Ordregiver!$E$27*(1+Ordregiver!$E$14)^-($B35))/Ordregiver!$E$10 ->  | W35: Høj | X35: =IFERROR(HLOOKUP(Ordregiver!$E$29,Baggrundsdata!$E$25:$N$49,16,FALSE),"") ->  | Y35: =IF(X35=0,0,15) -> 15
B36: 19 | C36: =Ordregiver!$E$12 -> 0 | E36: =(((IF($B36<=Ordregiver!$E$10,1,0)))*$C$18*(Tilbudsgiver!E$19/1000)*Ordregiver!$E$27*(1+Ordregiver!$E$14)^-($B36))/Ordregiver!$E$10 ->  | G36: =(((IF($B36<=Ordregiver!$E$10,1,0)))*$C$18*(Tilbudsgiver!G$19/1000)*Ordregiver!$E$27*(1+Ordregiver!$E$14)^-($B36))/Ordregiver!$E$10 ->  | I36: =(((IF($B36<=Ordregiver!$E$10,1,0)))*$C$18*(Tilbudsgiver!I$19/1000)*Ordregiver!$E$27*(1+Ordregiver!$E$14)^-($B36))/Ordregiver!$E$10 ->  | K36: =(((IF($B36<=Ordregiver!$E$10,1,0)))*$C$18*(Tilbudsgiver!K$19/1000)*Ordregiver!$E$27*(1+Ordregiver!$E$14)^-($B36))/Ordregiver!$E$10 ->  | M36: =(((IF($B36<=Ordregiver!$E$10,1,0)))*$C$18*(Tilbudsgiver!M$19/1000)*Ordregiver!$E$27*(1+Ordregiver!$E$14)^-($B36))/Ordregiver!$E$10 ->  | O36: =(((IF($B36<=Ordregiver!$E$10,1,0)))*$C$18*(Tilbudsgiver!O$19/1000)*Ordregiver!$E$27*(1+Ordregiver!$E$14)^-($B36))/Ordregiver!$E$10 ->  | Q36: =(((IF($B36<=Ordregiver!$E$10,1,0)))*$C$18*(Tilbudsgiver!Q$19/1000)*Ordregiver!$E$27*(1+Ordregiver!$E$14)^-($B36))/Ordregiver!$E$10 ->  | S36: =(((IF($B36<=Ordregiver!$E$10,1,0)))*$C$18*(Tilbudsgiver!S$19/1000)*Ordregiver!$E$27*(1+Ordregiver!$E$14)^-($B36))/Ordregiver!$E$10 ->  | V36: Slidstyrke | W36: Ingen test udført | X36: =IF(X37=0,"Ikke relevant for produkttypen",IF(Ordregiver!$E$29="","Ingen produkttype valgt",W36)) -> Ingen produkttype valgt | Y36: 0
B37: 20 | C37: =Ordregiver!$E$12 -> 0 | E37: =(((IF($B37<=Ordregiver!$E$10,1,0)))*$C$18*(Tilbudsgiver!E$19/1000)*Ordregiver!$E$27*(1+Ordregiver!$E$14)^-($B37))/Ordregiver!$E$10 ->  | G37: =(((IF($B37<=Ordregiver!$E$10,1,0)))*$C$18*(Tilbudsgiver!G$19/1000)*Ordregiver!$E$27*(1+Ordregiver!$E$14)^-($B37))/Ordregiver!$E$10 ->  | I37: =(((IF($B37<=Ordregiver!$E$10,1,0)))*$C$18*(Tilbudsgiver!I$19/1000)*Ordregiver!$E$27*(1+Ordregiver!$E$14)^-($B37))/Ordregiver!$E$10 ->  | K37: =(((IF($B37<=Ordregiver!$E$10,1,0)))*$C$18*(Tilbudsgiver!K$19/1000)*Ordregiver!$E$27*(1+Ordregiver!$E$14)^-($B37))/Ordregiver!$E$10 ->  | M37: =(((IF($B37<=Ordregiver!$E$10,1,0)))*$C$18*(Tilbudsgiver!M$19/1000)*Ordregiver!$E$27*(1+Ordregiver!$E$14)^-($B37))/Ordregiver!$E$10 ->  | O37: =(((IF($B37<=Ordregiver!$E$10,1,0)))*$C$18*(Tilbudsgiver!O$19/1000)*Ordregiver!$E$27*(1+Ordregiver!$E$14)^-($B37))/Ordregiver!$E$10 ->  | Q37: =(((IF($B37<=Ordregiver!$E$10,1,0)))*$C$18*(Tilbudsgiver!Q$19/1000)*Ordregiver!$E$27*(1+Ordregiver!$E$14)^-($B37))/Ordregiver!$E$10 ->  | S37: =(((IF($B37<=Ordregiver!$E$10,1,0)))*$C$18*(Tilbudsgiver!S$19/1000)*Ordregiver!$E$27*(1+Ordregiver!$E$14)^-($B37))/Ordregiver!$E$10 ->  | W37: Lav | X37: =IFERROR(HLOOKUP(Ordregiver!$E$29,Baggrundsdata!$E$25:$N$49,17,FALSE),"") ->  | Y37: =IF(X37=0,0,5) -> 5
W38: Mellem | X38: =IFERROR(HLOOKUP(Ordregiver!$E$29,Baggrundsdata!$E$25:$N$49,18,FALSE),"") ->  | Y38: =IF(X38=0,0,10) -> 10
W39: Høj | X39: =IFERROR(HLOOKUP(Ordregiver!$E$29,Baggrundsdata!$E$25:$N$49,19,FALSE),"") ->  | Y39: =IF(X39=0,0,15) -> 15
A40: Eksternalitetsmodul - Udledning forbundet med elforbrug I brugsfasen (tons Co2e) - Udledningen er multipliceret med antallet af produkter i ordren | V40: Væsketæthed | W40: Ingen test udført | X40: =IF(X41=0,"Ikke relevant for produkttypen",IF(Ordregiver!$E$29="","Ingen produkttype valgt",W40)) -> Ingen produkttype valgt | Y40: 0
B41: År indeks | C41: Emissionsfaktor el (kg CO2e/kWh) | E41: =Tilbudsgiver!E11&" - Samlet udledning (tons CO2e/år)" -> PRODUKT 1 - Samlet udledning (tons CO2e/år) | F41: PD1 - Strømforbrug (kWh) | G41: =Tilbudsgiver!G11&" - Samlet udledning (tons CO2e/år)" -> PRODUKT 2 - Samlet udledning (tons CO2e/år) | H41: PD2 - Årligt strømforbrug (kWh) | I41: =Tilbudsgiver!I11&" - Samlet udledning (tons CO2e/år)" -> PRODUKT 3 - Samlet udledning (tons CO2e/år) | J41: PD3 - Årligt strømforbrug (kWh/år) | K41: =Tilbudsgiver!K11&" - Samlet udledning (tons CO2e/år)" -> PRODUKT 4 - Samlet udledning (tons CO2e/år) | L41: PD4 - Årligt strømforbrug (kWh/år) | M41: =Tilbudsgiver!M11&" - Samlet udledning (tons CO2e/år)" -> PRODUKT 5 - Samlet udledning (tons CO2e/år) | N41: PD5 - Årligt strømforbrug (kWh/år) | O41: =Tilbudsgiver!O11&" - Samlet udledning (tons CO2e/år)" -> PRODUKT 6 - Samlet udledning (tons CO2e/år) | P41: PD6 - Årligt strømforbrug (kWh/år) | Q41: =Tilbudsgiver!Q11&" - Samlet udledning (tons CO2e/år)" -> PRODUKT 7 - Samlet udledning (tons CO2e/år) | R41: PD7 - Årligt strømforbrug (kWh/år) | S41: =Tilbudsgiver!S11&" - Samlet udledning (tons CO2e/år)" -> PRODUKT 8 - Samlet udledning (tons CO2e/år) | T41: PD8 - Årligt strømforbrug (kWh/år) | W41: Lav | X41: =IFERROR(HLOOKUP(Ordregiver!$E$29,Baggrundsdata!$E$25:$N$49,20,FALSE),"") ->  | Y41: =IF(X41=0,0,5) -> 5
B42: 1 | C42: =IF(Ordregiver!$E$58="Ja",VLOOKUP(Ordregiver!$E$9-1+'IB - Hospitalstekstiler'!$B42,'Standard-fremskrivning '!$C$12:$R$40,7,FALSE),Ordregiver!$E$60) -> 0.05892 | E42: =((F42*$C42)/1000) ->  | F42: =(Ordregiver!$E$17)*(Tilbudsgiver!E$19/1000)*(Ordregiver!$E$27/Ordregiver!$E$10)*IF($B42<=Ordregiver!$E$10,1,0) ->  | G42: =((H42*$C42)/1000) ->  | H42: =(Ordregiver!$E$17)*(Tilbudsgiver!G$19/1000)*(Ordregiver!$E$27/Ordregiver!$E$10)*IF($B42<=Ordregiver!$E$10,1,0) ->  | I42: =((J42*$C42)/1000) ->  | J42: =(Ordregiver!$E$17)*(Tilbudsgiver!I$19/1000)*(Ordregiver!$E$27/Ordregiver!$E$10)*IF($B42<=Ordregiver!$E$10,1,0) ->  | K42: =((L42*$C42)/1000) ->  | L42: =(Ordregiver!$E$17)*(Tilbudsgiver!K$19/1000)*(Ordregiver!$E$27/Ordregiver!$E$10)*IF($B42<=Ordregiver!$E$10,1,0) ->  | M42: =((N42*$C42)/1000) ->  | N42: =(Ordregiver!$E$17)*(Tilbudsgiver!M$19/1000)*(Ordregiver!$E$27/Ordregiver!$E$10)*IF($B42<=Ordregiver!$E$10,1,0) ->  | O42: =((P42*$C42)/1000) ->  | P42: =(Ordregiver!$E$17)*(Tilbudsgiver!O$19/1000)*(Ordregiver!$E$27/Ordregiver!$E$10)*IF($B42<=Ordregiver!$E$10,1,0) ->  | Q42: =((R42*$C42)/1000) ->  | R42: =(Ordregiver!$E$17)*(Tilbudsgiver!Q$19/1000)*(Ordregiver!$E$27/Ordregiver!$E$10)*IF($B42<=Ordregiver!$E$10,1,0) ->  | S42: =((T42*$C42)/1000) ->  | T42: =(Ordregiver!$E$17)*(Tilbudsgiver!S$19/1000)*(Ordregiver!$E$27/Ordregiver!$E$10)*IF($B42<=Ordregiver!$E$10,1,0) ->  | W42: Mellem | X42: =IFERROR(HLOOKUP(Ordregiver!$E$29,Baggrundsdata!$E$25:$N$49,21,FALSE),"") ->  | Y42: =IF(X42=0,0,10) -> 10
B43: 2 | C43: =IF(Ordregiver!$E$58="Ja",VLOOKUP(Ordregiver!$E$9-1+'IB - Hospitalstekstiler'!$B43,'Standard-fremskrivning '!$C$12:$R$40,7,FALSE),Ordregiver!$E$60) -> 0.0508 | E43: =(F43*$C43)/1000 ->  | F43: =(Ordregiver!$E$17)*(Tilbudsgiver!E$19/1000)*(Ordregiver!$E$27/Ordregiver!$E$10)*IF($B43<=Ordregiver!$E$10,1,0) ->  | G43: =(H43*$C43)/1000 ->  | H43: =(Ordregiver!$E$17)*(Tilbudsgiver!G$19/1000)*(Ordregiver!$E$27/Ordregiver!$E$10)*IF($B43<=Ordregiver!$E$10,1,0) ->  | I43: =(J43*$C43)/1000 ->  | J43: =(Ordregiver!$E$17)*(Tilbudsgiver!I$19/1000)*(Ordregiver!$E$27/Ordregiver!$E$10)*IF($B43<=Ordregiver!$E$10,1,0) ->  | K43: =(L43*$C43)/1000 ->  | L43: =(Ordregiver!$E$17)*(Tilbudsgiver!K$19/1000)*(Ordregiver!$E$27/Ordregiver!$E$10)*IF($B43<=Ordregiver!$E$10,1,0) ->  | M43: =(N43*$C43)/1000 ->  | N43: =(Ordregiver!$E$17)*(Tilbudsgiver!M$19/1000)*(Ordregiver!$E$27/Ordregiver!$E$10)*IF($B43<=Ordregiver!$E$10,1,0) ->  | O43: =(P43*$C43)/1000 ->  | P43: =(Ordregiver!$E$17)*(Tilbudsgiver!O$19/1000)*(Ordregiver!$E$27/Ordregiver!$E$10)*IF($B43<=Ordregiver!$E$10,1,0) ->  | Q43: =(R43*$C43)/1000 ->  | R43: =(Ordregiver!$E$17)*(Tilbudsgiver!Q$19/1000)*(Ordregiver!$E$27/Ordregiver!$E$10)*IF($B43<=Ordregiver!$E$10,1,0) ->  | S43: =(T43*$C43)/1000 ->  | T43: =(Ordregiver!$E$17)*(Tilbudsgiver!S$19/1000)*(Ordregiver!$E$27/Ordregiver!$E$10)*IF($B43<=Ordregiver!$E$10,1,0) ->  | W43: Høj | X43: =IFERROR(HLOOKUP(Ordregiver!$E$29,Baggrundsdata!$E$25:$N$49,22,FALSE),"") ->  | Y43: =IF(X43=0,0,15) -> 15
B44: 3 | C44: =IF(Ordregiver!$E$58="Ja",VLOOKUP(Ordregiver!$E$9-1+'IB - Hospitalstekstiler'!$B44,'Standard-fremskrivning '!$C$12:$R$40,7,FALSE),Ordregiver!$E$60) -> 0.04306 | E44: =(F44*$C44)/1000 ->  | F44: =(Ordregiver!$E$17)*(Tilbudsgiver!E$19/1000)*(Ordregiver!$E$27/Ordregiver!$E$10)*IF($B44<=Ordregiver!$E$10,1,0) ->  | H44: =(Ordregiver!$E$17)*(Tilbudsgiver!G$19/1000)*(Ordregiver!$E$27/Ordregiver!$E$10)*IF($B44<=Ordregiver!$E$10,1,0) ->  | J44: =(Ordregiver!$E$17)*(Tilbudsgiver!I$19/1000)*(Ordregiver!$E$27/Ordregiver!$E$10)*IF($B44<=Ordregiver!$E$10,1,0) ->  | L44: =(Ordregiver!$E$17)*(Tilbudsgiver!K$19/1000)*(Ordregiver!$E$27/Ordregiver!$E$10)*IF($B44<=Ordregiver!$E$10,1,0) ->  | N44: =(Ordregiver!$E$17)*(Tilbudsgiver!M$19/1000)*(Ordregiver!$E$27/Ordregiver!$E$10)*IF($B44<=Ordregiver!$E$10,1,0) ->  | P44: =(Ordregiver!$E$17)*(Tilbudsgiver!O$19/1000)*(Ordregiver!$E$27/Ordregiver!$E$10)*IF($B44<=Ordregiver!$E$10,1,0) ->  | R44: =(Ordregiver!$E$17)*(Tilbudsgiver!Q$19/1000)*(Ordregiver!$E$27/Ordregiver!$E$10)*IF($B44<=Ordregiver!$E$10,1,0) ->  | T44: =(Ordregiver!$E$17)*(Tilbudsgiver!S$19/1000)*(Ordregiver!$E$27/Ordregiver!$E$10)*IF($B44<=Ordregiver!$E$10,1,0) ->  | V44: Vandafvisning | W44: Ingen test udført | X44: =IF(X45=0,"Ikke relevant for produkttypen",IF(Ordregiver!$E$29="","Ingen produkttype valgt",W44)) -> Ingen produkttype valgt | Y44: 0
B45: 4 | C45: =IF(Ordregiver!$E$58="Ja",VLOOKUP(Ordregiver!$E$9-1+'IB - Hospitalstekstiler'!$B45,'Standard-fremskrivning '!$C$12:$R$40,7,FALSE),Ordregiver!$E$60) -> 0.03542 | F45: =(Ordregiver!$E$17)*(Tilbudsgiver!E$19/1000)*(Ordregiver!$E$27/Ordregiver!$E$10)*IF($B45<=Ordregiver!$E$10,1,0) ->  | H45: =(Ordregiver!$E$17)*(Tilbudsgiver!G$19/1000)*(Ordregiver!$E$27/Ordregiver!$E$10)*IF($B45<=Ordregiver!$E$10,1,0) ->  | J45: =(Ordregiver!$E$17)*(Tilbudsgiver!I$19/1000)*(Ordregiver!$E$27/Ordregiver!$E$10)*IF($B45<=Ordregiver!$E$10,1,0) ->  | L45: =(Ordregiver!$E$17)*(Tilbudsgiver!K$19/1000)*(Ordregiver!$E$27/Ordregiver!$E$10)*IF($B45<=Ordregiver!$E$10,1,0) ->  | N45: =(Ordregiver!$E$17)*(Tilbudsgiver!M$19/1000)*(Ordregiver!$E$27/Ordregiver!$E$10)*IF($B45<=Ordregiver!$E$10,1,0) ->  | P45: =(Ordregiver!$E$17)*(Tilbudsgiver!O$19/1000)*(Ordregiver!$E$27/Ordregiver!$E$10)*IF($B45<=Ordregiver!$E$10,1,0) ->  | R45: =(Ordregiver!$E$17)*(Tilbudsgiver!Q$19/1000)*(Ordregiver!$E$27/Ordregiver!$E$10)*IF($B45<=Ordregiver!$E$10,1,0) ->  | T45: =(Ordregiver!$E$17)*(Tilbudsgiver!S$19/1000)*(Ordregiver!$E$27/Ordregiver!$E$10)*IF($B45<=Ordregiver!$E$10,1,0) ->  | W45: Lav | X45: =IFERROR(HLOOKUP(Ordregiver!$E$29,Baggrundsdata!$E$25:$N$49,23,FALSE),"") ->  | Y45: =IF(X45=0,0,5) -> 5
B46: 5 | C46: =IF(Ordregiver!$E$58="Ja",VLOOKUP(Ordregiver!$E$9-1+'IB - Hospitalstekstiler'!$B46,'Standard-fremskrivning '!$C$12:$R$40,7,FALSE),Ordregiver!$E$60) -> 0.03008 | F46: =(Ordregiver!$E$17)*(Tilbudsgiver!E$19/1000)*(Ordregiver!$E$27/Ordregiver!$E$10)*IF($B46<=Ordregiver!$E$10,1,0) ->  | H46: =(Ordregiver!$E$17)*(Tilbudsgiver!G$19/1000)*(Ordregiver!$E$27/Ordregiver!$E$10)*IF($B46<=Ordregiver!$E$10,1,0) ->  | J46: =(Ordregiver!$E$17)*(Tilbudsgiver!I$19/1000)*(Ordregiver!$E$27/Ordregiver!$E$10)*IF($B46<=Ordregiver!$E$10,1,0) ->  | L46: =(Ordregiver!$E$17)*(Tilbudsgiver!K$19/1000)*(Ordregiver!$E$27/Ordregiver!$E$10)*IF($B46<=Ordregiver!$E$10,1,0) ->  | N46: =(Ordregiver!$E$17)*(Tilbudsgiver!M$19/1000)*(Ordregiver!$E$27/Ordregiver!$E$10)*IF($B46<=Ordregiver!$E$10,1,0) ->  | P46: =(Ordregiver!$E$17)*(Tilbudsgiver!O$19/1000)*(Ordregiver!$E$27/Ordregiver!$E$10)*IF($B46<=Ordregiver!$E$10,1,0) ->  | R46: =(Ordregiver!$E$17)*(Tilbudsgiver!Q$19/1000)*(Ordregiver!$E$27/Ordregiver!$E$10)*IF($B46<=Ordregiver!$E$10,1,0) ->  | T46: =(Ordregiver!$E$17)*(Tilbudsgiver!S$19/1000)*(Ordregiver!$E$27/Ordregiver!$E$10)*IF($B46<=Ordregiver!$E$10,1,0) ->  | W46: Mellem | X46: =IFERROR(HLOOKUP(Ordregiver!$E$29,Baggrundsdata!$E$25:$N$49,24,FALSE),"") ->  | Y46: =IF(X46=0,0,10) -> 10
B47: 6 | C47: =IF(Ordregiver!$E$58="Ja",VLOOKUP(Ordregiver!$E$9-1+'IB - Hospitalstekstiler'!$B47,'Standard-fremskrivning '!$C$12:$R$40,7,FALSE),Ordregiver!$E$60) -> 0.02524 | F47: =(Ordregiver!$E$17)*(Tilbudsgiver!E$19/1000)*(Ordregiver!$E$27/Ordregiver!$E$10)*IF($B47<=Ordregiver!$E$10,1,0) ->  | H47: =(Ordregiver!$E$17)*(Tilbudsgiver!G$19/1000)*(Ordregiver!$E$27/Ordregiver!$E$10)*IF($B47<=Ordregiver!$E$10,1,0) ->  | J47: =(Ordregiver!$E$17)*(Tilbudsgiver!I$19/1000)*(Ordregiver!$E$27/Ordregiver!$E$10)*IF($B47<=Ordregiver!$E$10,1,0) ->  | L47: =(Ordregiver!$E$17)*(Tilbudsgiver!K$19/1000)*(Ordregiver!$E$27/Ordregiver!$E$10)*IF($B47<=Ordregiver!$E$10,1,0) ->  | N47: =(Ordregiver!$E$17)*(Tilbudsgiver!M$19/1000)*(Ordregiver!$E$27/Ordregiver!$E$10)*IF($B47<=Ordregiver!$E$10,1,0) ->  | P47: =(Ordregiver!$E$17)*(Tilbudsgiver!O$19/1000)*(Ordregiver!$E$27/Ordregiver!$E$10)*IF($B47<=Ordregiver!$E$10,1,0) ->  | R47: =(Ordregiver!$E$17)*(Tilbudsgiver!Q$19/1000)*(Ordregiver!$E$27/Ordregiver!$E$10)*IF($B47<=Ordregiver!$E$10,1,0) ->  | T47: =(Ordregiver!$E$17)*(Tilbudsgiver!S$19/1000)*(Ordregiver!$E$27/Ordregiver!$E$10)*IF($B47<=Ordregiver!$E$10,1,0) ->  | W47: Høj | X47: =IFERROR(HLOOKUP(Ordregiver!$E$29,Baggrundsdata!$E$25:$N$49,25,FALSE),"") ->  | Y47: =IF(X47=0,0,15) -> 15
B48: 7 | C48: =IF(Ordregiver!$E$58="Ja",VLOOKUP(Ordregiver!$E$9-1+'IB - Hospitalstekstiler'!$B48,'Standard-fremskrivning '!$C$12:$R$40,7,FALSE),Ordregiver!$E$60) -> 0.02206 | F48: =(Ordregiver!$E$17)*(Tilbudsgiver!E$19/1000)*(Ordregiver!$E$27/Ordregiver!$E$10)*IF($B48<=Ordregiver!$E$10,1,0) ->  | H48: =(Ordregiver!$E$17)*(Tilbudsgiver!G$19/1000)*(Ordregiver!$E$27/Ordregiver!$E$10)*IF($B48<=Ordregiver!$E$10,1,0) ->  | J48: =(Ordregiver!$E$17)*(Tilbudsgiver!I$19/1000)*(Ordregiver!$E$27/Ordregiver!$E$10)*IF($B48<=Ordregiver!$E$10,1,0) ->  | L48: =(Ordregiver!$E$17)*(Tilbudsgiver!K$19/1000)*(Ordregiver!$E$27/Ordregiver!$E$10)*IF($B48<=Ordregiver!$E$10,1,0) ->  | N48: =(Ordregiver!$E$17)*(Tilbudsgiver!M$19/1000)*(Ordregiver!$E$27/Ordregiver!$E$10)*IF($B48<=Ordregiver!$E$10,1,0) ->  | P48: =(Ordregiver!$E$17)*(Tilbudsgiver!O$19/1000)*(Ordregiver!$E$27/Ordregiver!$E$10)*IF($B48<=Ordregiver!$E$10,1,0) ->  | R48: =(Ordregiver!$E$17)*(Tilbudsgiver!Q$19/1000)*(Ordregiver!$E$27/Ordregiver!$E$10)*IF($B48<=Ordregiver!$E$10,1,0) ->  | T48: =(Ordregiver!$E$17)*(Tilbudsgiver!S$19/1000)*(Ordregiver!$E$27/Ordregiver!$E$10)*IF($B48<=Ordregiver!$E$10,1,0) -> 
B49: 8 | C49: =IF(Ordregiver!$E$58="Ja",VLOOKUP(Ordregiver!$E$9-1+'IB - Hospitalstekstiler'!$B49,'Standard-fremskrivning '!$C$12:$R$40,7,FALSE),Ordregiver!$E$60) -> 0.02202 | F49: =(Ordregiver!$E$17)*(Tilbudsgiver!E$19/1000)*(Ordregiver!$E$27/Ordregiver!$E$10)*IF($B49<=Ordregiver!$E$10,1,0) ->  | H49: =(Ordregiver!$E$17)*(Tilbudsgiver!G$19/1000)*(Ordregiver!$E$27/Ordregiver!$E$10)*IF($B49<=Ordregiver!$E$10,1,0) ->  | J49: =(Ordregiver!$E$17)*(Tilbudsgiver!I$19/1000)*(Ordregiver!$E$27/Ordregiver!$E$10)*IF($B49<=Ordregiver!$E$10,1,0) ->  | L49: =(Ordregiver!$E$17)*(Tilbudsgiver!K$19/1000)*(Ordregiver!$E$27/Ordregiver!$E$10)*IF($B49<=Ordregiver!$E$10,1,0) ->  | N49: =(Ordregiver!$E$17)*(Tilbudsgiver!M$19/1000)*(Ordregiver!$E$27/Ordregiver!$E$10)*IF($B49<=Ordregiver!$E$10,1,0) ->  | P49: =(Ordregiver!$E$17)*(Tilbudsgiver!O$19/1000)*(Ordregiver!$E$27/Ordregiver!$E$10)*IF($B49<=Ordregiver!$E$10,1,0) ->  | R49: =(Ordregiver!$E$17)*(Tilbudsgiver!Q$19/1000)*(Ordregiver!$E$27/Ordregiver!$E$10)*IF($B49<=Ordregiver!$E$10,1,0) ->  | T49: =(Ordregiver!$E$17)*(Tilbudsgiver!S$19/1000)*(Ordregiver!$E$27/Ordregiver!$E$10)*IF($B49<=Ordregiver!$E$10,1,0) -> 
B50: 9 | C50: =IF(Ordregiver!$E$58="Ja",VLOOKUP(Ordregiver!$E$9-1+'IB - Hospitalstekstiler'!$B50,'Standard-fremskrivning '!$C$12:$R$40,7,FALSE),Ordregiver!$E$60) -> 0.02132 | F50: =(Ordregiver!$E$17)*(Tilbudsgiver!E$19/1000)*(Ordregiver!$E$27/Ordregiver!$E$10)*IF($B50<=Ordregiver!$E$10,1,0) ->  | H50: =(Ordregiver!$E$17)*(Tilbudsgiver!G$19/1000)*(Ordregiver!$E$27/Ordregiver!$E$10)*IF($B50<=Ordregiver!$E$10,1,0) ->  | J50: =(Ordregiver!$E$17)*(Tilbudsgiver!I$19/1000)*(Ordregiver!$E$27/Ordregiver!$E$10)*IF($B50<=Ordregiver!$E$10,1,0) ->  | L50: =(Ordregiver!$E$17)*(Tilbudsgiver!K$19/1000)*(Ordregiver!$E$27/Ordregiver!$E$10)*IF($B50<=Ordregiver!$E$10,1,0) ->  | N50: =(Ordregiver!$E$17)*(Tilbudsgiver!M$19/1000)*(Ordregiver!$E$27/Ordregiver!$E$10)*IF($B50<=Ordregiver!$E$10,1,0) ->  | P50: =(Ordregiver!$E$17)*(Tilbudsgiver!O$19/1000)*(Ordregiver!$E$27/Ordregiver!$E$10)*IF($B50<=Ordregiver!$E$10,1,0) ->  | R50: =(Ordregiver!$E$17)*(Tilbudsgiver!Q$19/1000)*(Ordregiver!$E$27/Ordregiver!$E$10)*IF($B50<=Ordregiver!$E$10,1,0) ->  | T50: =(Ordregiver!$E$17)*(Tilbudsgiver!S$19/1000)*(Ordregiver!$E$27/Ordregiver!$E$10)*IF($B50<=Ordregiver!$E$10,1,0) -> 
B51: 10 | C51: =IF(Ordregiver!$E$58="Ja",VLOOKUP(Ordregiver!$E$9-1+'IB - Hospitalstekstiler'!$B51,'Standard-fremskrivning '!$C$12:$R$40,7,FALSE),Ordregiver!$E$60) -> 0.02054 | F51: =(Ordregiver!$E$17)*(Tilbudsgiver!E$19/1000)*(Ordregiver!$E$27/Ordregiver!$E$10)*IF($B51<=Ordregiver!$E$10,1,0) ->  | H51: =(Ordregiver!$E$17)*(Tilbudsgiver!G$19/1000)*(Ordregiver!$E$27/Ordregiver!$E$10)*IF($B51<=Ordregiver!$E$10,1,0) ->  | J51: =(Ordregiver!$E$17)*(Tilbudsgiver!I$19/1000)*(Ordregiver!$E$27/Ordregiver!$E$10)*IF($B51<=Ordregiver!$E$10,1,0) ->  | L51: =(Ordregiver!$E$17)*(Tilbudsgiver!K$19/1000)*(Ordregiver!$E$27/Ordregiver!$E$10)*IF($B51<=Ordregiver!$E$10,1,0) ->  | N51: =(Ordregiver!$E$17)*(Tilbudsgiver!M$19/1000)*(Ordregiver!$E$27/Ordregiver!$E$10)*IF($B51<=Ordregiver!$E$10,1,0) ->  | P51: =(Ordregiver!$E$17)*(Tilbudsgiver!O$19/1000)*(Ordregiver!$E$27/Ordregiver!$E$10)*IF($B51<=Ordregiver!$E$10,1,0) ->  | R51: =(Ordregiver!$E$17)*(Tilbudsgiver!Q$19/1000)*(Ordregiver!$E$27/Ordregiver!$E$10)*IF($B51<=Ordregiver!$E$10,1,0) ->  | T51: =(Ordregiver!$E$17)*(Tilbudsgiver!S$19/1000)*(Ordregiver!$E$27/Ordregiver!$E$10)*IF($B51<=Ordregiver!$E$10,1,0) -> 
B52: 11 | C52: =IF(Ordregiver!$E$58="Ja",VLOOKUP(Ordregiver!$E$9-1+'IB - Hospitalstekstiler'!$B52,'Standard-fremskrivning '!$C$12:$R$40,7,FALSE),Ordregiver!$E$60) -> 0.01878 | F52: =(Ordregiver!$E$17)*(Tilbudsgiver!E$19/1000)*(Ordregiver!$E$27/Ordregiver!$E$10)*IF($B52<=Ordregiver!$E$10,1,0) ->  | H52: =(Ordregiver!$E$17)*(Tilbudsgiver!G$19/1000)*(Ordregiver!$E$27/Ordregiver!$E$10)*IF($B52<=Ordregiver!$E$10,1,0) ->  | J52: =(Ordregiver!$E$17)*(Tilbudsgiver!I$19/1000)*(Ordregiver!$E$27/Ordregiver!$E$10)*IF($B52<=Ordregiver!$E$10,1,0) ->  | L52: =(Ordregiver!$E$17)*(Tilbudsgiver!K$19/1000)*(Ordregiver!$E$27/Ordregiver!$E$10)*IF($B52<=Ordregiver!$E$10,1,0) ->  | N52: =(Ordregiver!$E$17)*(Tilbudsgiver!M$19/1000)*(Ordregiver!$E$27/Ordregiver!$E$10)*IF($B52<=Ordregiver!$E$10,1,0) ->  | P52: =(Ordregiver!$E$17)*(Tilbudsgiver!O$19/1000)*(Ordregiver!$E$27/Ordregiver!$E$10)*IF($B52<=Ordregiver!$E$10,1,0) ->  | R52: =(Ordregiver!$E$17)*(Tilbudsgiver!Q$19/1000)*(Ordregiver!$E$27/Ordregiver!$E$10)*IF($B52<=Ordregiver!$E$10,1,0) ->  | T52: =(Ordregiver!$E$17)*(Tilbudsgiver!S$19/1000)*(Ordregiver!$E$27/Ordregiver!$E$10)*IF($B52<=Ordregiver!$E$10,1,0) -> 
B53: 12 | C53: =IF(Ordregiver!$E$58="Ja",VLOOKUP(Ordregiver!$E$9-1+'IB - Hospitalstekstiler'!$B53,'Standard-fremskrivning '!$C$12:$R$40,7,FALSE),Ordregiver!$E$60) -> 0.01878 | F53: =(Ordregiver!$E$17)*(Tilbudsgiver!E$19/1000)*(Ordregiver!$E$27/Ordregiver!$E$10)*IF($B53<=Ordregiver!$E$10,1,0) ->  | H53: =(Ordregiver!$E$17)*(Tilbudsgiver!G$19/1000)*(Ordregiver!$E$27/Ordregiver!$E$10)*IF($B53<=Ordregiver!$E$10,1,0) ->  | J53: =(Ordregiver!$E$17)*(Tilbudsgiver!I$19/1000)*(Ordregiver!$E$27/Ordregiver!$E$10)*IF($B53<=Ordregiver!$E$10,1,0) ->  | L53: =(Ordregiver!$E$17)*(Tilbudsgiver!K$19/1000)*(Ordregiver!$E$27/Ordregiver!$E$10)*IF($B53<=Ordregiver!$E$10,1,0) ->  | N53: =(Ordregiver!$E$17)*(Tilbudsgiver!M$19/1000)*(Ordregiver!$E$27/Ordregiver!$E$10)*IF($B53<=Ordregiver!$E$10,1,0) ->  | P53: =(Ordregiver!$E$17)*(Tilbudsgiver!O$19/1000)*(Ordregiver!$E$27/Ordregiver!$E$10)*IF($B53<=Ordregiver!$E$10,1,0) ->  | R53: =(Ordregiver!$E$17)*(Tilbudsgiver!Q$19/1000)*(Ordregiver!$E$27/Ordregiver!$E$10)*IF($B53<=Ordregiver!$E$10,1,0) ->  | T53: =(Ordregiver!$E$17)*(Tilbudsgiver!S$19/1000)*(Ordregiver!$E$27/Ordregiver!$E$10)*IF($B53<=Ordregiver!$E$10,1,0) -> 
B54: 13 | C54: =IF(Ordregiver!$E$58="Ja",VLOOKUP(Ordregiver!$E$9-1+'IB - Hospitalstekstiler'!$B54,'Standard-fremskrivning '!$C$12:$R$40,7,FALSE),Ordregiver!$E$60) -> 0.01878 | F54: =(Ordregiver!$E$17)*(Tilbudsgiver!E$19/1000)*(Ordregiver!$E$27/Ordregiver!$E$10)*IF($B54<=Ordregiver!$E$10,1,0) ->  | H54: =(Ordregiver!$E$17)*(Tilbudsgiver!G$19/1000)*(Ordregiver!$E$27/Ordregiver!$E$10)*IF($B54<=Ordregiver!$E$10,1,0) ->  | J54: =(Ordregiver!$E$17)*(Tilbudsgiver!I$19/1000)*(Ordregiver!$E$27/Ordregiver!$E$10)*IF($B54<=Ordregiver!$E$10,1,0) ->  | L54: =(Ordregiver!$E$17)*(Tilbudsgiver!K$19/1000)*(Ordregiver!$E$27/Ordregiver!$E$10)*IF($B54<=Ordregiver!$E$10,1,0) ->  | N54: =(Ordregiver!$E$17)*(Tilbudsgiver!M$19/1000)*(Ordregiver!$E$27/Ordregiver!$E$10)*IF($B54<=Ordregiver!$E$10,1,0) ->  | P54: =(Ordregiver!$E$17)*(Tilbudsgiver!O$19/1000)*(Ordregiver!$E$27/Ordregiver!$E$10)*IF($B54<=Ordregiver!$E$10,1,0) ->  | R54: =(Ordregiver!$E$17)*(Tilbudsgiver!Q$19/1000)*(Ordregiver!$E$27/Ordregiver!$E$10)*IF($B54<=Ordregiver!$E$10,1,0) ->  | T54: =(Ordregiver!$E$17)*(Tilbudsgiver!S$19/1000)*(Ordregiver!$E$27/Ordregiver!$E$10)*IF($B54<=Ordregiver!$E$10,1,0) -> 
B55: 14 | C55: =IF(Ordregiver!$E$58="Ja",VLOOKUP(Ordregiver!$E$9-1+'IB - Hospitalstekstiler'!$B55,'Standard-fremskrivning '!$C$12:$R$40,7,FALSE),Ordregiver!$E$60) -> 0.01878 | F55: =(Ordregiver!$E$17)*(Tilbudsgiver!E$19/1000)*(Ordregiver!$E$27/Ordregiver!$E$10)*IF($B55<=Ordregiver!$E$10,1,0) ->  | H55: =(Ordregiver!$E$17)*(Tilbudsgiver!G$19/1000)*(Ordregiver!$E$27/Ordregiver!$E$10)*IF($B55<=Ordregiver!$E$10,1,0) ->  | J55: =(Ordregiver!$E$17)*(Tilbudsgiver!I$19/1000)*(Ordregiver!$E$27/Ordregiver!$E$10)*IF($B55<=Ordregiver!$E$10,1,0) ->  | L55: =(Ordregiver!$E$17)*(Tilbudsgiver!K$19/1000)*(Ordregiver!$E$27/Ordregiver!$E$10)*IF($B55<=Ordregiver!$E$10,1,0) ->  | N55: =(Ordregiver!$E$17)*(Tilbudsgiver!M$19/1000)*(Ordregiver!$E$27/Ordregiver!$E$10)*IF($B55<=Ordregiver!$E$10,1,0) ->  | P55: =(Ordregiver!$E$17)*(Tilbudsgiver!O$19/1000)*(Ordregiver!$E$27/Ordregiver!$E$10)*IF($B55<=Ordregiver!$E$10,1,0) ->  | R55: =(Ordregiver!$E$17)*(Tilbudsgiver!Q$19/1000)*(Ordregiver!$E$27/Ordregiver!$E$10)*IF($B55<=Ordregiver!$E$10,1,0) ->  | T55: =(Ordregiver!$E$17)*(Tilbudsgiver!S$19/1000)*(Ordregiver!$E$27/Ordregiver!$E$10)*IF($B55<=Ordregiver!$E$10,1,0) -> 
B56: 15 | C56: =IF(Ordregiver!$E$58="Ja",VLOOKUP(Ordregiver!$E$9-1+'IB - Hospitalstekstiler'!$B56,'Standard-fremskrivning '!$C$12:$R$40,7,FALSE),Ordregiver!$E$60) -> 0.01878 | F56: =(Ordregiver!$E$17)*(Tilbudsgiver!E$19/1000)*(Ordregiver!$E$27/Ordregiver!$E$10)*IF($B56<=Ordregiver!$E$10,1,0) ->  | H56: =(Ordregiver!$E$17)*(Tilbudsgiver!G$19/1000)*(Ordregiver!$E$27/Ordregiver!$E$10)*IF($B56<=Ordregiver!$E$10,1,0) ->  | J56: =(Ordregiver!$E$17)*(Tilbudsgiver!I$19/1000)*(Ordregiver!$E$27/Ordregiver!$E$10)*IF($B56<=Ordregiver!$E$10,1,0) ->  | L56: =(Ordregiver!$E$17)*(Tilbudsgiver!K$19/1000)*(Ordregiver!$E$27/Ordregiver!$E$10)*IF($B56<=Ordregiver!$E$10,1,0) ->  | N56: =(Ordregiver!$E$17)*(Tilbudsgiver!M$19/1000)*(Ordregiver!$E$27/Ordregiver!$E$10)*IF($B56<=Ordregiver!$E$10,1,0) ->  | P56: =(Ordregiver!$E$17)*(Tilbudsgiver!O$19/1000)*(Ordregiver!$E$27/Ordregiver!$E$10)*IF($B56<=Ordregiver!$E$10,1,0) ->  | R56: =(Ordregiver!$E$17)*(Tilbudsgiver!Q$19/1000)*(Ordregiver!$E$27/Ordregiver!$E$10)*IF($B56<=Ordregiver!$E$10,1,0) ->  | T56: =(Ordregiver!$E$17)*(Tilbudsgiver!S$19/1000)*(Ordregiver!$E$27/Ordregiver!$E$10)*IF($B56<=Ordregiver!$E$10,1,0) -> 
B57: 16 | C57: =IF(Ordregiver!$E$58="Ja",VLOOKUP(Ordregiver!$E$9-1+'IB - Hospitalstekstiler'!$B57,'Standard-fremskrivning '!$C$12:$R$40,7,FALSE),Ordregiver!$E$60) -> 0.01878 | F57: =(Ordregiver!$E$17)*(Tilbudsgiver!E$19/1000)*(Ordregiver!$E$27/Ordregiver!$E$10)*IF($B57<=Ordregiver!$E$10,1,0) ->  | H57: =(Ordregiver!$E$17)*(Tilbudsgiver!G$19/1000)*(Ordregiver!$E$27/Ordregiver!$E$10)*IF($B57<=Ordregiver!$E$10,1,0) ->  | J57: =(Ordregiver!$E$17)*(Tilbudsgiver!I$19/1000)*(Ordregiver!$E$27/Ordregiver!$E$10)*IF($B57<=Ordregiver!$E$10,1,0) ->  | L57: =(Ordregiver!$E$17)*(Tilbudsgiver!K$19/1000)*(Ordregiver!$E$27/Ordregiver!$E$10)*IF($B57<=Ordregiver!$E$10,1,0) ->  | N57: =(Ordregiver!$E$17)*(Tilbudsgiver!M$19/1000)*(Ordregiver!$E$27/Ordregiver!$E$10)*IF($B57<=Ordregiver!$E$10,1,0) ->  | P57: =(Ordregiver!$E$17)*(Tilbudsgiver!O$19/1000)*(Ordregiver!$E$27/Ordregiver!$E$10)*IF($B57<=Ordregiver!$E$10,1,0) ->  | R57: =(Ordregiver!$E$17)*(Tilbudsgiver!Q$19/1000)*(Ordregiver!$E$27/Ordregiver!$E$10)*IF($B57<=Ordregiver!$E$10,1,0) ->  | T57: =(Ordregiver!$E$17)*(Tilbudsgiver!S$19/1000)*(Ordregiver!$E$27/Ordregiver!$E$10)*IF($B57<=Ordregiver!$E$10,1,0) -> 
B58: 17 | C58: =IF(Ordregiver!$E$58="Ja",VLOOKUP(Ordregiver!$E$9-1+'IB - Hospitalstekstiler'!$B58,'Standard-fremskrivning '!$C$12:$R$40,7,FALSE),Ordregiver!$E$60) -> 0.01878 | F58: =(Ordregiver!$E$17)*(Tilbudsgiver!E$19/1000)*(Ordregiver!$E$27/Ordregiver!$E$10)*IF($B58<=Ordregiver!$E$10,1,0) ->  | H58: =(Ordregiver!$E$17)*(Tilbudsgiver!G$19/1000)*(Ordregiver!$E$27/Ordregiver!$E$10)*IF($B58<=Ordregiver!$E$10,1,0) ->  | J58: =(Ordregiver!$E$17)*(Tilbudsgiver!I$19/1000)*(Ordregiver!$E$27/Ordregiver!$E$10)*IF($B58<=Ordregiver!$E$10,1,0) ->  | L58: =(Ordregiver!$E$17)*(Tilbudsgiver!K$19/1000)*(Ordregiver!$E$27/Ordregiver!$E$10)*IF($B58<=Ordregiver!$E$10,1,0) ->  | N58: =(Ordregiver!$E$17)*(Tilbudsgiver!M$19/1000)*(Ordregiver!$E$27/Ordregiver!$E$10)*IF($B58<=Ordregiver!$E$10,1,0) ->  | P58: =(Ordregiver!$E$17)*(Tilbudsgiver!O$19/1000)*(Ordregiver!$E$27/Ordregiver!$E$10)*IF($B58<=Ordregiver!$E$10,1,0) ->  | R58: =(Ordregiver!$E$17)*(Tilbudsgiver!Q$19/1000)*(Ordregiver!$E$27/Ordregiver!$E$10)*IF($B58<=Ordregiver!$E$10,1,0) ->  | T58: =(Ordregiver!$E$17)*(Tilbudsgiver!S$19/1000)*(Ordregiver!$E$27/Ordregiver!$E$10)*IF($B58<=Ordregiver!$E$10,1,0) -> 
B59: 18 | C59: =IF(Ordregiver!$E$58="Ja",VLOOKUP(Ordregiver!$E$9-1+'IB - Hospitalstekstiler'!$B59,'Standard-fremskrivning '!$C$12:$R$40,7,FALSE),Ordregiver!$E$60) -> 0.01878 | F59: =(Ordregiver!$E$17)*(Tilbudsgiver!E$19/1000)*(Ordregiver!$E$27/Ordregiver!$E$10)*IF($B59<=Ordregiver!$E$10,1,0) ->  | G59: =(H59*$C59)/1000 ->  | H59: =(Ordregiver!$E$17)*(Tilbudsgiver!G$19/1000)*(Ordregiver!$E$27/Ordregiver!$E$10)*IF($B59<=Ordregiver!$E$10,1,0) ->  | I59: =(J59*$C59)/1000 ->  | J59: =(Ordregiver!$E$17)*(Tilbudsgiver!I$19/1000)*(Ordregiver!$E$27/Ordregiver!$E$10)*IF($B59<=Ordregiver!$E$10,1,0) ->  | K59: =(L59*$C59)/1000 ->  | L59: =(Ordregiver!$E$17)*(Tilbudsgiver!K$19/1000)*(Ordregiver!$E$27/Ordregiver!$E$10)*IF($B59<=Ordregiver!$E$10,1,0) ->  | M59: =(N59*$C59)/1000 ->  | N59: =(Ordregiver!$E$17)*(Tilbudsgiver!M$19/1000)*(Ordregiver!$E$27/Ordregiver!$E$10)*IF($B59<=Ordregiver!$E$10,1,0) ->  | O59: =(P59*$C59)/1000 ->  | P59: =(Ordregiver!$E$17)*(Tilbudsgiver!O$19/1000)*(Ordregiver!$E$27/Ordregiver!$E$10)*IF($B59<=Ordregiver!$E$10,1,0) ->  | Q59: =(R59*$C59)/1000 ->  | R59: =(Ordregiver!$E$17)*(Tilbudsgiver!Q$19/1000)*(Ordregiver!$E$27/Ordregiver!$E$10)*IF($B59<=Ordregiver!$E$10,1,0) ->  | S59: =(T59*$C59)/1000 ->  | T59: =(Ordregiver!$E$17)*(Tilbudsgiver!S$19/1000)*(Ordregiver!$E$27/Ordregiver!$E$10)*IF($B59<=Ordregiver!$E$10,1,0) -> 
B60: 19 | C60: =IF(Ordregiver!$E$58="Ja",VLOOKUP(Ordregiver!$E$9-1+'IB - Hospitalstekstiler'!$B60,'Standard-fremskrivning '!$C$12:$R$40,7,FALSE),Ordregiver!$E$60) -> 0.01878 | F60: =(Ordregiver!$E$17)*(Tilbudsgiver!E$19/1000)*(Ordregiver!$E$27/Ordregiver!$E$10)*IF($B60<=Ordregiver!$E$10,1,0) ->  | H60: =(Ordregiver!$E$17)*(Tilbudsgiver!G$19/1000)*(Ordregiver!$E$27/Ordregiver!$E$10)*IF($B60<=Ordregiver!$E$10,1,0) ->  | J60: =(Ordregiver!$E$17)*(Tilbudsgiver!I$19/1000)*(Ordregiver!$E$27/Ordregiver!$E$10)*IF($B60<=Ordregiver!$E$10,1,0) ->  | L60: =(Ordregiver!$E$17)*(Tilbudsgiver!K$19/1000)*(Ordregiver!$E$27/Ordregiver!$E$10)*IF($B60<=Ordregiver!$E$10,1,0) ->  | N60: =(Ordregiver!$E$17)*(Tilbudsgiver!M$19/1000)*(Ordregiver!$E$27/Ordregiver!$E$10)*IF($B60<=Ordregiver!$E$10,1,0) ->  | P60: =(Ordregiver!$E$17)*(Tilbudsgiver!O$19/1000)*(Ordregiver!$E$27/Ordregiver!$E$10)*IF($B60<=Ordregiver!$E$10,1,0) ->  | R60: =(Ordregiver!$E$17)*(Tilbudsgiver!Q$19/1000)*(Ordregiver!$E$27/Ordregiver!$E$10)*IF($B60<=Ordregiver!$E$10,1,0) ->  | T60: =(Ordregiver!$E$17)*(Tilbudsgiver!S$19/1000)*(Ordregiver!$E$27/Ordregiver!$E$10)*IF($B60<=Ordregiver!$E$10,1,0) -> 
B61: 20 | C61: =IF(Ordregiver!$E$58="Ja",VLOOKUP(Ordregiver!$E$9-1+'IB - Hospitalstekstiler'!$B61,'Standard-fremskrivning '!$C$12:$R$40,7,FALSE),Ordregiver!$E$60) -> 0.01878 | F61: =(Ordregiver!$E$17)*(Tilbudsgiver!E$19/1000)*(Ordregiver!$E$27/Ordregiver!$E$10)*IF($B61<=Ordregiver!$E$10,1,0) ->  | H61: =(Ordregiver!$E$17)*(Tilbudsgiver!G$19/1000)*(Ordregiver!$E$27/Ordregiver!$E$10)*IF($B61<=Ordregiver!$E$10,1,0) ->  | J61: =(Ordregiver!$E$17)*(Tilbudsgiver!I$19/1000)*(Ordregiver!$E$27/Ordregiver!$E$10)*IF($B61<=Ordregiver!$E$10,1,0) ->  | L61: =(Ordregiver!$E$17)*(Tilbudsgiver!K$19/1000)*(Ordregiver!$E$27/Ordregiver!$E$10)*IF($B61<=Ordregiver!$E$10,1,0) ->  | N61: =(Ordregiver!$E$17)*(Tilbudsgiver!M$19/1000)*(Ordregiver!$E$27/Ordregiver!$E$10)*IF($B61<=Ordregiver!$E$10,1,0) ->  | P61: =(Ordregiver!$E$17)*(Tilbudsgiver!O$19/1000)*(Ordregiver!$E$27/Ordregiver!$E$10)*IF($B61<=Ordregiver!$E$10,1,0) ->  | R61: =(Ordregiver!$E$17)*(Tilbudsgiver!Q$19/1000)*(Ordregiver!$E$27/Ordregiver!$E$10)*IF($B61<=Ordregiver!$E$10,1,0) ->  | T61: =(Ordregiver!$E$17)*(Tilbudsgiver!S$19/1000)*(Ordregiver!$E$27/Ordregiver!$E$10)*IF($B61<=Ordregiver!$E$10,1,0) -> 
A63: Eksternalitetsmodul - Samfundsøkonomiske omkostninger fra vandforbrug
B64: År indeks | C64: Emissionsfaktor vand (kg CO2e/m3) | E64: =Tilbudsgiver!E$11&" - Samlet udledning (tons CO2e/år)" -> PRODUKT 1 - Samlet udledning (tons CO2e/år) | F64: PD1 - Vandforbrug (m3/år) | G64: =Tilbudsgiver!G$11&" - Samlet udledning (tons CO2e/år)" -> PRODUKT 2 - Samlet udledning (tons CO2e/år) | H64: PD2 - Årligt vandforbrug (m3/år) | I64: =Tilbudsgiver!I$11&" - Samlet udledning (tons CO2e/år)" -> PRODUKT 3 - Samlet udledning (tons CO2e/år) | J64: PD3 - Årligt vandforbrug (m3/år) | K64: =Tilbudsgiver!K$11&" - Samlet udledning (tons CO2e/år)" -> PRODUKT 4 - Samlet udledning (tons CO2e/år) | L64: PD4 - Årligt vandforbrug (m3/år) | M64: =Tilbudsgiver!M$11&" - Samlet udledning (tons CO2e/år)" -> PRODUKT 5 - Samlet udledning (tons CO2e/år) | N64: PD5 - Årligt vandforbrug (m3/år) | O64: =Tilbudsgiver!O$11&" - Samlet udledning (tons CO2e/år)" -> PRODUKT 6 - Samlet udledning (tons CO2e/år) | P64: PD6 - Årligt vandforbrug (m3/år) | Q64: =Tilbudsgiver!Q$11&" - Samlet udledning (tons CO2e/år)" -> PRODUKT 7 - Samlet udledning (tons CO2e/år) | R64: PD7 - Årligt vandforbrug (m3/år) | S64: =Tilbudsgiver!S$11&" - Samlet udledning (tons CO2e/år)" -> PRODUKT 8 - Samlet udledning (tons CO2e/år) | T64: PD8 - Årligt vandforbrug (m3/år)
B65: 1 | C65: =IF(Ordregiver!$E$62="Ja",VLOOKUP(Ordregiver!$E$9-1+'IB - Hospitalstekstiler'!$B42,'Standard-fremskrivning '!$C$12:$R$40,10,FALSE),Ordregiver!$E$64) -> 0.0936828 | E65: =(F65*$C65)/1000 ->  | F65: =(Ordregiver!$E$18)*(Tilbudsgiver!E$19/1000)*(Ordregiver!$E$27/Ordregiver!$E$10)*IF($B65<=Ordregiver!$E$10,1,0) ->  | G65: =(H65*$C65)/1000 ->  | H65: =(Ordregiver!$E$18)*(Tilbudsgiver!G$19/1000)*(Ordregiver!$E$27/Ordregiver!$E$10)*IF($B65<=Ordregiver!$E$10,1,0) ->  | I65: =(J65*$C65)/1000 ->  | J65: =(Ordregiver!$E$18)*(Tilbudsgiver!I$19/1000)*(Ordregiver!$E$27/Ordregiver!$E$10)*IF($B65<=Ordregiver!$E$10,1,0) ->  | K65: =(L65*$C65)/1000 ->  | L65: =(Ordregiver!$E$18)*(Tilbudsgiver!K$19/1000)*(Ordregiver!$E$27/Ordregiver!$E$10)*IF($B65<=Ordregiver!$E$10,1,0) ->  | M65: =(N65*$C65)/1000 ->  | N65: =(Ordregiver!$E$18)*(Tilbudsgiver!M$19/1000)*(Ordregiver!$E$27/Ordregiver!$E$10)*IF($B65<=Ordregiver!$E$10,1,0) ->  | O65: =(P65*$C65)/1000 ->  | P65: =(Ordregiver!$E$18)*(Tilbudsgiver!O$19/1000)*(Ordregiver!$E$27/Ordregiver!$E$10)*IF($B65<=Ordregiver!$E$10,1,0) ->  | Q65: =(R65*$C65)/1000 ->  | R65: =(Ordregiver!$E$18)*(Tilbudsgiver!Q$19/1000)*(Ordregiver!$E$27/Ordregiver!$E$10)*IF($B65<=Ordregiver!$E$10,1,0) ->  | S65: =(T65*$C65)/1000 ->  | T65: =(Ordregiver!$E$18)*(Tilbudsgiver!S$19/1000)*(Ordregiver!$E$27/Ordregiver!$E$10)*IF($B65<=Ordregiver!$E$10,1,0) -> 
B66: 2 | C66: =IF(Ordregiver!$E$62="Ja",VLOOKUP(Ordregiver!$E$9-1+'IB - Hospitalstekstiler'!$B43,'Standard-fremskrivning '!$C$12:$R$40,10,FALSE),Ordregiver!$E$64) -> 0.07874 | E66: =(F66*$C66)/1000 ->  | F66: =(Ordregiver!$E$18)*(Tilbudsgiver!E$19/1000)*(Ordregiver!$E$27/Ordregiver!$E$10)*IF($B66<=Ordregiver!$E$10,1,0) ->  | H66: =(Ordregiver!$E$18)*(Tilbudsgiver!G$19/1000)*(Ordregiver!$E$27/Ordregiver!$E$10)*IF($B66<=Ordregiver!$E$10,1,0) ->  | J66: =(Ordregiver!$E$18)*(Tilbudsgiver!I$19/1000)*(Ordregiver!$E$27/Ordregiver!$E$10)*IF($B66<=Ordregiver!$E$10,1,0) ->  | L66: =(Ordregiver!$E$18)*(Tilbudsgiver!K$19/1000)*(Ordregiver!$E$27/Ordregiver!$E$10)*IF($B66<=Ordregiver!$E$10,1,0) ->  | N66: =(Ordregiver!$E$18)*(Tilbudsgiver!M$19/1000)*(Ordregiver!$E$27/Ordregiver!$E$10)*IF($B66<=Ordregiver!$E$10,1,0) ->  | P66: =(Ordregiver!$E$18)*(Tilbudsgiver!O$19/1000)*(Ordregiver!$E$27/Ordregiver!$E$10)*IF($B66<=Ordregiver!$E$10,1,0) ->  | R66: =(Ordregiver!$E$18)*(Tilbudsgiver!Q$19/1000)*(Ordregiver!$E$27/Ordregiver!$E$10)*IF($B66<=Ordregiver!$E$10,1,0) ->  | T66: =(Ordregiver!$E$18)*(Tilbudsgiver!S$19/1000)*(Ordregiver!$E$27/Ordregiver!$E$10)*IF($B66<=Ordregiver!$E$10,1,0) -> 
B67: 3 | C67: =IF(Ordregiver!$E$62="Ja",VLOOKUP(Ordregiver!$E$9-1+'IB - Hospitalstekstiler'!$B44,'Standard-fremskrivning '!$C$12:$R$40,10,FALSE),Ordregiver!$E$64) -> 0.066743 | F67: =(Ordregiver!$E$18)*(Tilbudsgiver!E$19/1000)*(Ordregiver!$E$27/Ordregiver!$E$10)*IF($B67<=Ordregiver!$E$10,1,0) ->  | H67: =(Ordregiver!$E$18)*(Tilbudsgiver!G$19/1000)*(Ordregiver!$E$27/Ordregiver!$E$10)*IF($B67<=Ordregiver!$E$10,1,0) ->  | J67: =(Ordregiver!$E$18)*(Tilbudsgiver!I$19/1000)*(Ordregiver!$E$27/Ordregiver!$E$10)*IF($B67<=Ordregiver!$E$10,1,0) ->  | L67: =(Ordregiver!$E$18)*(Tilbudsgiver!K$19/1000)*(Ordregiver!$E$27/Ordregiver!$E$10)*IF($B67<=Ordregiver!$E$10,1,0) ->  | N67: =(Ordregiver!$E$18)*(Tilbudsgiver!M$19/1000)*(Ordregiver!$E$27/Ordregiver!$E$10)*IF($B67<=Ordregiver!$E$10,1,0) ->  | P67: =(Ordregiver!$E$18)*(Tilbudsgiver!O$19/1000)*(Ordregiver!$E$27/Ordregiver!$E$10)*IF($B67<=Ordregiver!$E$10,1,0) ->  | R67: =(Ordregiver!$E$18)*(Tilbudsgiver!Q$19/1000)*(Ordregiver!$E$27/Ordregiver!$E$10)*IF($B67<=Ordregiver!$E$10,1,0) ->  | T67: =(Ordregiver!$E$18)*(Tilbudsgiver!S$19/1000)*(Ordregiver!$E$27/Ordregiver!$E$10)*IF($B67<=Ordregiver!$E$10,1,0) -> 
B68: 4 | C68: =IF(Ordregiver!$E$62="Ja",VLOOKUP(Ordregiver!$E$9-1+'IB - Hospitalstekstiler'!$B45,'Standard-fremskrivning '!$C$12:$R$40,10,FALSE),Ordregiver!$E$64) -> 0.054901 | F68: =(Ordregiver!$E$18)*(Tilbudsgiver!E$19/1000)*(Ordregiver!$E$27/Ordregiver!$E$10)*IF($B68<=Ordregiver!$E$10,1,0) ->  | H68: =(Ordregiver!$E$18)*(Tilbudsgiver!G$19/1000)*(Ordregiver!$E$27/Ordregiver!$E$10)*IF($B68<=Ordregiver!$E$10,1,0) ->  | J68: =(Ordregiver!$E$18)*(Tilbudsgiver!I$19/1000)*(Ordregiver!$E$27/Ordregiver!$E$10)*IF($B68<=Ordregiver!$E$10,1,0) ->  | L68: =(Ordregiver!$E$18)*(Tilbudsgiver!K$19/1000)*(Ordregiver!$E$27/Ordregiver!$E$10)*IF($B68<=Ordregiver!$E$10,1,0) ->  | N68: =(Ordregiver!$E$18)*(Tilbudsgiver!M$19/1000)*(Ordregiver!$E$27/Ordregiver!$E$10)*IF($B68<=Ordregiver!$E$10,1,0) ->  | P68: =(Ordregiver!$E$18)*(Tilbudsgiver!O$19/1000)*(Ordregiver!$E$27/Ordregiver!$E$10)*IF($B68<=Ordregiver!$E$10,1,0) ->  | R68: =(Ordregiver!$E$18)*(Tilbudsgiver!Q$19/1000)*(Ordregiver!$E$27/Ordregiver!$E$10)*IF($B68<=Ordregiver!$E$10,1,0) ->  | T68: =(Ordregiver!$E$18)*(Tilbudsgiver!S$19/1000)*(Ordregiver!$E$27/Ordregiver!$E$10)*IF($B68<=Ordregiver!$E$10,1,0) -> 
B69: 5 | C69: =IF(Ordregiver!$E$62="Ja",VLOOKUP(Ordregiver!$E$9-1+'IB - Hospitalstekstiler'!$B46,'Standard-fremskrivning '!$C$12:$R$40,10,FALSE),Ordregiver!$E$64) -> 0.046624 | F69: =(Ordregiver!$E$18)*(Tilbudsgiver!E$19/1000)*(Ordregiver!$E$27/Ordregiver!$E$10)*IF($B69<=Ordregiver!$E$10,1,0) ->  | H69: =(Ordregiver!$E$18)*(Tilbudsgiver!G$19/1000)*(Ordregiver!$E$27/Ordregiver!$E$10)*IF($B69<=Ordregiver!$E$10,1,0) ->  | J69: =(Ordregiver!$E$18)*(Tilbudsgiver!I$19/1000)*(Ordregiver!$E$27/Ordregiver!$E$10)*IF($B69<=Ordregiver!$E$10,1,0) ->  | L69: =(Ordregiver!$E$18)*(Tilbudsgiver!K$19/1000)*(Ordregiver!$E$27/Ordregiver!$E$10)*IF($B69<=Ordregiver!$E$10,1,0) ->  | N69: =(Ordregiver!$E$18)*(Tilbudsgiver!M$19/1000)*(Ordregiver!$E$27/Ordregiver!$E$10)*IF($B69<=Ordregiver!$E$10,1,0) ->  | P69: =(Ordregiver!$E$18)*(Tilbudsgiver!O$19/1000)*(Ordregiver!$E$27/Ordregiver!$E$10)*IF($B69<=Ordregiver!$E$10,1,0) ->  | R69: =(Ordregiver!$E$18)*(Tilbudsgiver!Q$19/1000)*(Ordregiver!$E$27/Ordregiver!$E$10)*IF($B69<=Ordregiver!$E$10,1,0) ->  | T69: =(Ordregiver!$E$18)*(Tilbudsgiver!S$19/1000)*(Ordregiver!$E$27/Ordregiver!$E$10)*IF($B69<=Ordregiver!$E$10,1,0) -> 
B70: 6 | C70: =IF(Ordregiver!$E$62="Ja",VLOOKUP(Ordregiver!$E$9-1+'IB - Hospitalstekstiler'!$B47,'Standard-fremskrivning '!$C$12:$R$40,10,FALSE),Ordregiver!$E$64) -> 0.039122 | F70: =(Ordregiver!$E$18)*(Tilbudsgiver!E$19/1000)*(Ordregiver!$E$27/Ordregiver!$E$10)*IF($B70<=Ordregiver!$E$10,1,0) ->  | H70: =(Ordregiver!$E$18)*(Tilbudsgiver!G$19/1000)*(Ordregiver!$E$27/Ordregiver!$E$10)*IF($B70<=Ordregiver!$E$10,1,0) ->  | J70: =(Ordregiver!$E$18)*(Tilbudsgiver!I$19/1000)*(Ordregiver!$E$27/Ordregiver!$E$10)*IF($B70<=Ordregiver!$E$10,1,0) ->  | L70: =(Ordregiver!$E$18)*(Tilbudsgiver!K$19/1000)*(Ordregiver!$E$27/Ordregiver!$E$10)*IF($B70<=Ordregiver!$E$10,1,0) ->  | N70: =(Ordregiver!$E$18)*(Tilbudsgiver!M$19/1000)*(Ordregiver!$E$27/Ordregiver!$E$10)*IF($B70<=Ordregiver!$E$10,1,0) ->  | P70: =(Ordregiver!$E$18)*(Tilbudsgiver!O$19/1000)*(Ordregiver!$E$27/Ordregiver!$E$10)*IF($B70<=Ordregiver!$E$10,1,0) ->  | R70: =(Ordregiver!$E$18)*(Tilbudsgiver!Q$19/1000)*(Ordregiver!$E$27/Ordregiver!$E$10)*IF($B70<=Ordregiver!$E$10,1,0) ->  | T70: =(Ordregiver!$E$18)*(Tilbudsgiver!S$19/1000)*(Ordregiver!$E$27/Ordregiver!$E$10)*IF($B70<=Ordregiver!$E$10,1,0) -> 
B71: 7 | C71: =IF(Ordregiver!$E$62="Ja",VLOOKUP(Ordregiver!$E$9-1+'IB - Hospitalstekstiler'!$B48,'Standard-fremskrivning '!$C$12:$R$40,10,FALSE),Ordregiver!$E$64) -> 0.034193 | F71: =(Ordregiver!$E$18)*(Tilbudsgiver!E$19/1000)*(Ordregiver!$E$27/Ordregiver!$E$10)*IF($B71<=Ordregiver!$E$10,1,0) ->  | H71: =(Ordregiver!$E$18)*(Tilbudsgiver!G$19/1000)*(Ordregiver!$E$27/Ordregiver!$E$10)*IF($B71<=Ordregiver!$E$10,1,0) ->  | J71: =(Ordregiver!$E$18)*(Tilbudsgiver!I$19/1000)*(Ordregiver!$E$27/Ordregiver!$E$10)*IF($B71<=Ordregiver!$E$10,1,0) ->  | L71: =(Ordregiver!$E$18)*(Tilbudsgiver!K$19/1000)*(Ordregiver!$E$27/Ordregiver!$E$10)*IF($B71<=Ordregiver!$E$10,1,0) ->  | N71: =(Ordregiver!$E$18)*(Tilbudsgiver!M$19/1000)*(Ordregiver!$E$27/Ordregiver!$E$10)*IF($B71<=Ordregiver!$E$10,1,0) ->  | P71: =(Ordregiver!$E$18)*(Tilbudsgiver!O$19/1000)*(Ordregiver!$E$27/Ordregiver!$E$10)*IF($B71<=Ordregiver!$E$10,1,0) ->  | R71: =(Ordregiver!$E$18)*(Tilbudsgiver!Q$19/1000)*(Ordregiver!$E$27/Ordregiver!$E$10)*IF($B71<=Ordregiver!$E$10,1,0) ->  | T71: =(Ordregiver!$E$18)*(Tilbudsgiver!S$19/1000)*(Ordregiver!$E$27/Ordregiver!$E$10)*IF($B71<=Ordregiver!$E$10,1,0) -> 
B72: 8 | C72: =IF(Ordregiver!$E$62="Ja",VLOOKUP(Ordregiver!$E$9-1+'IB - Hospitalstekstiler'!$B49,'Standard-fremskrivning '!$C$12:$R$40,10,FALSE),Ordregiver!$E$64) -> 0.034131 | F72: =(Ordregiver!$E$18)*(Tilbudsgiver!E$19/1000)*(Ordregiver!$E$27/Ordregiver!$E$10)*IF($B72<=Ordregiver!$E$10,1,0) ->  | H72: =(Ordregiver!$E$18)*(Tilbudsgiver!G$19/1000)*(Ordregiver!$E$27/Ordregiver!$E$10)*IF($B72<=Ordregiver!$E$10,1,0) ->  | J72: =(Ordregiver!$E$18)*(Tilbudsgiver!I$19/1000)*(Ordregiver!$E$27/Ordregiver!$E$10)*IF($B72<=Ordregiver!$E$10,1,0) ->  | L72: =(Ordregiver!$E$18)*(Tilbudsgiver!K$19/1000)*(Ordregiver!$E$27/Ordregiver!$E$10)*IF($B72<=Ordregiver!$E$10,1,0) ->  | N72: =(Ordregiver!$E$18)*(Tilbudsgiver!M$19/1000)*(Ordregiver!$E$27/Ordregiver!$E$10)*IF($B72<=Ordregiver!$E$10,1,0) ->  | P72: =(Ordregiver!$E$18)*(Tilbudsgiver!O$19/1000)*(Ordregiver!$E$27/Ordregiver!$E$10)*IF($B72<=Ordregiver!$E$10,1,0) ->  | R72: =(Ordregiver!$E$18)*(Tilbudsgiver!Q$19/1000)*(Ordregiver!$E$27/Ordregiver!$E$10)*IF($B72<=Ordregiver!$E$10,1,0) ->  | T72: =(Ordregiver!$E$18)*(Tilbudsgiver!S$19/1000)*(Ordregiver!$E$27/Ordregiver!$E$10)*IF($B72<=Ordregiver!$E$10,1,0) -> 
B73: 9 | C73: =IF(Ordregiver!$E$62="Ja",VLOOKUP(Ordregiver!$E$9-1+'IB - Hospitalstekstiler'!$B50,'Standard-fremskrivning '!$C$12:$R$40,10,FALSE),Ordregiver!$E$64) -> 0.033046 | F73: =(Ordregiver!$E$18)*(Tilbudsgiver!E$19/1000)*(Ordregiver!$E$27/Ordregiver!$E$10)*IF($B73<=Ordregiver!$E$10,1,0) ->  | H73: =(Ordregiver!$E$18)*(Tilbudsgiver!G$19/1000)*(Ordregiver!$E$27/Ordregiver!$E$10)*IF($B73<=Ordregiver!$E$10,1,0) ->  | J73: =(Ordregiver!$E$18)*(Tilbudsgiver!I$19/1000)*(Ordregiver!$E$27/Ordregiver!$E$10)*IF($B73<=Ordregiver!$E$10,1,0) ->  | L73: =(Ordregiver!$E$18)*(Tilbudsgiver!K$19/1000)*(Ordregiver!$E$27/Ordregiver!$E$10)*IF($B73<=Ordregiver!$E$10,1,0) ->  | N73: =(Ordregiver!$E$18)*(Tilbudsgiver!M$19/1000)*(Ordregiver!$E$27/Ordregiver!$E$10)*IF($B73<=Ordregiver!$E$10,1,0) ->  | P73: =(Ordregiver!$E$18)*(Tilbudsgiver!O$19/1000)*(Ordregiver!$E$27/Ordregiver!$E$10)*IF($B73<=Ordregiver!$E$10,1,0) ->  | R73: =(Ordregiver!$E$18)*(Tilbudsgiver!Q$19/1000)*(Ordregiver!$E$27/Ordregiver!$E$10)*IF($B73<=Ordregiver!$E$10,1,0) ->  | T73: =(Ordregiver!$E$18)*(Tilbudsgiver!S$19/1000)*(Ordregiver!$E$27/Ordregiver!$E$10)*IF($B73<=Ordregiver!$E$10,1,0) -> 
B74: 10 | C74: =IF(Ordregiver!$E$62="Ja",VLOOKUP(Ordregiver!$E$9-1+'IB - Hospitalstekstiler'!$B51,'Standard-fremskrivning '!$C$12:$R$40,10,FALSE),Ordregiver!$E$64) -> 0.031837 | F74: =(Ordregiver!$E$18)*(Tilbudsgiver!E$19/1000)*(Ordregiver!$E$27/Ordregiver!$E$10)*IF($B74<=Ordregiver!$E$10,1,0) ->  | H74: =(Ordregiver!$E$18)*(Tilbudsgiver!G$19/1000)*(Ordregiver!$E$27/Ordregiver!$E$10)*IF($B74<=Ordregiver!$E$10,1,0) ->  | J74: =(Ordregiver!$E$18)*(Tilbudsgiver!I$19/1000)*(Ordregiver!$E$27/Ordregiver!$E$10)*IF($B74<=Ordregiver!$E$10,1,0) ->  | L74: =(Ordregiver!$E$18)*(Tilbudsgiver!K$19/1000)*(Ordregiver!$E$27/Ordregiver!$E$10)*IF($B74<=Ordregiver!$E$10,1,0) ->  | N74: =(Ordregiver!$E$18)*(Tilbudsgiver!M$19/1000)*(Ordregiver!$E$27/Ordregiver!$E$10)*IF($B74<=Ordregiver!$E$10,1,0) ->  | P74: =(Ordregiver!$E$18)*(Tilbudsgiver!O$19/1000)*(Ordregiver!$E$27/Ordregiver!$E$10)*IF($B74<=Ordregiver!$E$10,1,0) ->  | R74: =(Ordregiver!$E$18)*(Tilbudsgiver!Q$19/1000)*(Ordregiver!$E$27/Ordregiver!$E$10)*IF($B74<=Ordregiver!$E$10,1,0) ->  | T74: =(Ordregiver!$E$18)*(Tilbudsgiver!S$19/1000)*(Ordregiver!$E$27/Ordregiver!$E$10)*IF($B74<=Ordregiver!$E$10,1,0) -> 
B75: 11 | C75: =IF(Ordregiver!$E$62="Ja",VLOOKUP(Ordregiver!$E$9-1+'IB - Hospitalstekstiler'!$B52,'Standard-fremskrivning '!$C$12:$R$40,10,FALSE),Ordregiver!$E$64) -> 0.029109 | F75: =(Ordregiver!$E$18)*(Tilbudsgiver!E$19/1000)*(Ordregiver!$E$27/Ordregiver!$E$10)*IF($B75<=Ordregiver!$E$10,1,0) ->  | H75: =(Ordregiver!$E$18)*(Tilbudsgiver!G$19/1000)*(Ordregiver!$E$27/Ordregiver!$E$10)*IF($B75<=Ordregiver!$E$10,1,0) ->  | J75: =(Ordregiver!$E$18)*(Tilbudsgiver!I$19/1000)*(Ordregiver!$E$27/Ordregiver!$E$10)*IF($B75<=Ordregiver!$E$10,1,0) ->  | L75: =(Ordregiver!$E$18)*(Tilbudsgiver!K$19/1000)*(Ordregiver!$E$27/Ordregiver!$E$10)*IF($B75<=Ordregiver!$E$10,1,0) ->  | N75: =(Ordregiver!$E$18)*(Tilbudsgiver!M$19/1000)*(Ordregiver!$E$27/Ordregiver!$E$10)*IF($B75<=Ordregiver!$E$10,1,0) ->  | P75: =(Ordregiver!$E$18)*(Tilbudsgiver!O$19/1000)*(Ordregiver!$E$27/Ordregiver!$E$10)*IF($B75<=Ordregiver!$E$10,1,0) ->  | R75: =(Ordregiver!$E$18)*(Tilbudsgiver!Q$19/1000)*(Ordregiver!$E$27/Ordregiver!$E$10)*IF($B75<=Ordregiver!$E$10,1,0) ->  | T75: =(Ordregiver!$E$18)*(Tilbudsgiver!S$19/1000)*(Ordregiver!$E$27/Ordregiver!$E$10)*IF($B75<=Ordregiver!$E$10,1,0) -> 
B76: 12 | C76: =IF(Ordregiver!$E$62="Ja",VLOOKUP(Ordregiver!$E$9-1+'IB - Hospitalstekstiler'!$B53,'Standard-fremskrivning '!$C$12:$R$40,10,FALSE),Ordregiver!$E$64) -> 0.029109 | F76: =(Ordregiver!$E$18)*(Tilbudsgiver!E$19/1000)*(Ordregiver!$E$27/Ordregiver!$E$10)*IF($B76<=Ordregiver!$E$10,1,0) ->  | H76: =(Ordregiver!$E$18)*(Tilbudsgiver!G$19/1000)*(Ordregiver!$E$27/Ordregiver!$E$10)*IF($B76<=Ordregiver!$E$10,1,0) ->  | J76: =(Ordregiver!$E$18)*(Tilbudsgiver!I$19/1000)*(Ordregiver!$E$27/Ordregiver!$E$10)*IF($B76<=Ordregiver!$E$10,1,0) ->  | L76: =(Ordregiver!$E$18)*(Tilbudsgiver!K$19/1000)*(Ordregiver!$E$27/Ordregiver!$E$10)*IF($B76<=Ordregiver!$E$10,1,0) ->  | N76: =(Ordregiver!$E$18)*(Tilbudsgiver!M$19/1000)*(Ordregiver!$E$27/Ordregiver!$E$10)*IF($B76<=Ordregiver!$E$10,1,0) ->  | P76: =(Ordregiver!$E$18)*(Tilbudsgiver!O$19/1000)*(Ordregiver!$E$27/Ordregiver!$E$10)*IF($B76<=Ordregiver!$E$10,1,0) ->  | R76: =(Ordregiver!$E$18)*(Tilbudsgiver!Q$19/1000)*(Ordregiver!$E$27/Ordregiver!$E$10)*IF($B76<=Ordregiver!$E$10,1,0) ->  | T76: =(Ordregiver!$E$18)*(Tilbudsgiver!S$19/1000)*(Ordregiver!$E$27/Ordregiver!$E$10)*IF($B76<=Ordregiver!$E$10,1,0) -> 
B77: 13 | C77: =IF(Ordregiver!$E$62="Ja",VLOOKUP(Ordregiver!$E$9-1+'IB - Hospitalstekstiler'!$B54,'Standard-fremskrivning '!$C$12:$R$40,10,FALSE),Ordregiver!$E$64) -> 0.029109 | F77: =(Ordregiver!$E$18)*(Tilbudsgiver!E$19/1000)*(Ordregiver!$E$27/Ordregiver!$E$10)*IF($B77<=Ordregiver!$E$10,1,0) ->  | H77: =(Ordregiver!$E$18)*(Tilbudsgiver!G$19/1000)*(Ordregiver!$E$27/Ordregiver!$E$10)*IF($B77<=Ordregiver!$E$10,1,0) ->  | J77: =(Ordregiver!$E$18)*(Tilbudsgiver!I$19/1000)*(Ordregiver!$E$27/Ordregiver!$E$10)*IF($B77<=Ordregiver!$E$10,1,0) ->  | L77: =(Ordregiver!$E$18)*(Tilbudsgiver!K$19/1000)*(Ordregiver!$E$27/Ordregiver!$E$10)*IF($B77<=Ordregiver!$E$10,1,0) ->  | N77: =(Ordregiver!$E$18)*(Tilbudsgiver!M$19/1000)*(Ordregiver!$E$27/Ordregiver!$E$10)*IF($B77<=Ordregiver!$E$10,1,0) ->  | P77: =(Ordregiver!$E$18)*(Tilbudsgiver!O$19/1000)*(Ordregiver!$E$27/Ordregiver!$E$10)*IF($B77<=Ordregiver!$E$10,1,0) ->  | R77: =(Ordregiver!$E$18)*(Tilbudsgiver!Q$19/1000)*(Ordregiver!$E$27/Ordregiver!$E$10)*IF($B77<=Ordregiver!$E$10,1,0) ->  | T77: =(Ordregiver!$E$18)*(Tilbudsgiver!S$19/1000)*(Ordregiver!$E$27/Ordregiver!$E$10)*IF($B77<=Ordregiver!$E$10,1,0) -> 
B78: 14 | C78: =IF(Ordregiver!$E$62="Ja",VLOOKUP(Ordregiver!$E$9-1+'IB - Hospitalstekstiler'!$B55,'Standard-fremskrivning '!$C$12:$R$40,10,FALSE),Ordregiver!$E$64) -> 0.029109 | F78: =(Ordregiver!$E$18)*(Tilbudsgiver!E$19/1000)*(Ordregiver!$E$27/Ordregiver!$E$10)*IF($B78<=Ordregiver!$E$10,1,0) ->  | H78: =(Ordregiver!$E$18)*(Tilbudsgiver!G$19/1000)*(Ordregiver!$E$27/Ordregiver!$E$10)*IF($B78<=Ordregiver!$E$10,1,0) ->  | J78: =(Ordregiver!$E$18)*(Tilbudsgiver!I$19/1000)*(Ordregiver!$E$27/Ordregiver!$E$10)*IF($B78<=Ordregiver!$E$10,1,0) ->  | L78: =(Ordregiver!$E$18)*(Tilbudsgiver!K$19/1000)*(Ordregiver!$E$27/Ordregiver!$E$10)*IF($B78<=Ordregiver!$E$10,1,0) ->  | N78: =(Ordregiver!$E$18)*(Tilbudsgiver!M$19/1000)*(Ordregiver!$E$27/Ordregiver!$E$10)*IF($B78<=Ordregiver!$E$10,1,0) ->  | P78: =(Ordregiver!$E$18)*(Tilbudsgiver!O$19/1000)*(Ordregiver!$E$27/Ordregiver!$E$10)*IF($B78<=Ordregiver!$E$10,1,0) ->  | R78: =(Ordregiver!$E$18)*(Tilbudsgiver!Q$19/1000)*(Ordregiver!$E$27/Ordregiver!$E$10)*IF($B78<=Ordregiver!$E$10,1,0) ->  | T78: =(Ordregiver!$E$18)*(Tilbudsgiver!S$19/1000)*(Ordregiver!$E$27/Ordregiver!$E$10)*IF($B78<=Ordregiver!$E$10,1,0) -> 
B79: 15 | C79: =IF(Ordregiver!$E$62="Ja",VLOOKUP(Ordregiver!$E$9-1+'IB - Hospitalstekstiler'!$B56,'Standard-fremskrivning '!$C$12:$R$40,10,FALSE),Ordregiver!$E$64) -> 0.029109 | F79: =(Ordregiver!$E$18)*(Tilbudsgiver!E$19/1000)*(Ordregiver!$E$27/Ordregiver!$E$10)*IF($B79<=Ordregiver!$E$10,1,0) ->  | H79: =(Ordregiver!$E$18)*(Tilbudsgiver!G$19/1000)*(Ordregiver!$E$27/Ordregiver!$E$10)*IF($B79<=Ordregiver!$E$10,1,0) ->  | J79: =(Ordregiver!$E$18)*(Tilbudsgiver!I$19/1000)*(Ordregiver!$E$27/Ordregiver!$E$10)*IF($B79<=Ordregiver!$E$10,1,0) ->  | L79: =(Ordregiver!$E$18)*(Tilbudsgiver!K$19/1000)*(Ordregiver!$E$27/Ordregiver!$E$10)*IF($B79<=Ordregiver!$E$10,1,0) ->  | N79: =(Ordregiver!$E$18)*(Tilbudsgiver!M$19/1000)*(Ordregiver!$E$27/Ordregiver!$E$10)*IF($B79<=Ordregiver!$E$10,1,0) ->  | P79: =(Ordregiver!$E$18)*(Tilbudsgiver!O$19/1000)*(Ordregiver!$E$27/Ordregiver!$E$10)*IF($B79<=Ordregiver!$E$10,1,0) ->  | R79: =(Ordregiver!$E$18)*(Tilbudsgiver!Q$19/1000)*(Ordregiver!$E$27/Ordregiver!$E$10)*IF($B79<=Ordregiver!$E$10,1,0) ->  | T79: =(Ordregiver!$E$18)*(Tilbudsgiver!S$19/1000)*(Ordregiver!$E$27/Ordregiver!$E$10)*IF($B79<=Ordregiver!$E$10,1,0) -> 
B80: 16 | C80: =IF(Ordregiver!$E$62="Ja",VLOOKUP(Ordregiver!$E$9-1+'IB - Hospitalstekstiler'!$B57,'Standard-fremskrivning '!$C$12:$R$40,10,FALSE),Ordregiver!$E$64) -> 0.029109 | F80: =(Ordregiver!$E$18)*(Tilbudsgiver!E$19/1000)*(Ordregiver!$E$27/Ordregiver!$E$10)*IF($B80<=Ordregiver!$E$10,1,0) ->  | H80: =(Ordregiver!$E$18)*(Tilbudsgiver!G$19/1000)*(Ordregiver!$E$27/Ordregiver!$E$10)*IF($B80<=Ordregiver!$E$10,1,0) ->  | J80: =(Ordregiver!$E$18)*(Tilbudsgiver!I$19/1000)*(Ordregiver!$E$27/Ordregiver!$E$10)*IF($B80<=Ordregiver!$E$10,1,0) ->  | L80: =(Ordregiver!$E$18)*(Tilbudsgiver!K$19/1000)*(Ordregiver!$E$27/Ordregiver!$E$10)*IF($B80<=Ordregiver!$E$10,1,0) ->  | N80: =(Ordregiver!$E$18)*(Tilbudsgiver!M$19/1000)*(Ordregiver!$E$27/Ordregiver!$E$10)*IF($B80<=Ordregiver!$E$10,1,0) ->  | P80: =(Ordregiver!$E$18)*(Tilbudsgiver!O$19/1000)*(Ordregiver!$E$27/Ordregiver!$E$10)*IF($B80<=Ordregiver!$E$10,1,0) ->  | R80: =(Ordregiver!$E$18)*(Tilbudsgiver!Q$19/1000)*(Ordregiver!$E$27/Ordregiver!$E$10)*IF($B80<=Ordregiver!$E$10,1,0) ->  | T80: =(Ordregiver!$E$18)*(Tilbudsgiver!S$19/1000)*(Ordregiver!$E$27/Ordregiver!$E$10)*IF($B80<=Ordregiver!$E$10,1,0) -> 
B81: 17 | C81: =IF(Ordregiver!$E$62="Ja",VLOOKUP(Ordregiver!$E$9-1+'IB - Hospitalstekstiler'!$B58,'Standard-fremskrivning '!$C$12:$R$40,10,FALSE),Ordregiver!$E$64) -> 0.029109 | F81: =(Ordregiver!$E$18)*(Tilbudsgiver!E$19/1000)*(Ordregiver!$E$27/Ordregiver!$E$10)*IF($B81<=Ordregiver!$E$10,1,0) ->  | G81: =(H81*$C81)/1000 ->  | H81: =(Ordregiver!$E$18)*(Tilbudsgiver!G$19/1000)*(Ordregiver!$E$27/Ordregiver!$E$10)*IF($B81<=Ordregiver!$E$10,1,0) ->  | I81: =(J81*$C81)/1000 ->  | J81: =(Ordregiver!$E$18)*(Tilbudsgiver!I$19/1000)*(Ordregiver!$E$27/Ordregiver!$E$10)*IF($B81<=Ordregiver!$E$10,1,0) ->  | K81: =(L81*$C81)/1000 ->  | L81: =(Ordregiver!$E$18)*(Tilbudsgiver!K$19/1000)*(Ordregiver!$E$27/Ordregiver!$E$10)*IF($B81<=Ordregiver!$E$10,1,0) ->  | M81: =(N81*$C81)/1000 ->  | N81: =(Ordregiver!$E$18)*(Tilbudsgiver!M$19/1000)*(Ordregiver!$E$27/Ordregiver!$E$10)*IF($B81<=Ordregiver!$E$10,1,0) ->  | O81: =(P81*$C81)/1000 ->  | P81: =(Ordregiver!$E$18)*(Tilbudsgiver!O$19/1000)*(Ordregiver!$E$27/Ordregiver!$E$10)*IF($B81<=Ordregiver!$E$10,1,0) ->  | Q81: =(R81*$C81)/1000 ->  | R81: =(Ordregiver!$E$18)*(Tilbudsgiver!Q$19/1000)*(Ordregiver!$E$27/Ordregiver!$E$10)*IF($B81<=Ordregiver!$E$10,1,0) ->  | S81: =(T81*$C81)/1000 ->  | T81: =(Ordregiver!$E$18)*(Tilbudsgiver!S$19/1000)*(Ordregiver!$E$27/Ordregiver!$E$10)*IF($B81<=Ordregiver!$E$10,1,0) -> 
B82: 18 | C82: =IF(Ordregiver!$E$62="Ja",VLOOKUP(Ordregiver!$E$9-1+'IB - Hospitalstekstiler'!$B59,'Standard-fremskrivning '!$C$12:$R$40,10,FALSE),Ordregiver!$E$64) -> 0.029109 | F82: =(Ordregiver!$E$18)*(Tilbudsgiver!E$19/1000)*(Ordregiver!$E$27/Ordregiver!$E$10)*IF($B82<=Ordregiver!$E$10,1,0) ->  | H82: =(Ordregiver!$E$18)*(Tilbudsgiver!G$19/1000)*(Ordregiver!$E$27/Ordregiver!$E$10)*IF($B82<=Ordregiver!$E$10,1,0) ->  | J82: =(Ordregiver!$E$18)*(Tilbudsgiver!I$19/1000)*(Ordregiver!$E$27/Ordregiver!$E$10)*IF($B82<=Ordregiver!$E$10,1,0) ->  | L82: =(Ordregiver!$E$18)*(Tilbudsgiver!K$19/1000)*(Ordregiver!$E$27/Ordregiver!$E$10)*IF($B82<=Ordregiver!$E$10,1,0) ->  | N82: =(Ordregiver!$E$18)*(Tilbudsgiver!M$19/1000)*(Ordregiver!$E$27/Ordregiver!$E$10)*IF($B82<=Ordregiver!$E$10,1,0) ->  | P82: =(Ordregiver!$E$18)*(Tilbudsgiver!O$19/1000)*(Ordregiver!$E$27/Ordregiver!$E$10)*IF($B82<=Ordregiver!$E$10,1,0) ->  | R82: =(Ordregiver!$E$18)*(Tilbudsgiver!Q$19/1000)*(Ordregiver!$E$27/Ordregiver!$E$10)*IF($B82<=Ordregiver!$E$10,1,0) ->  | T82: =(Ordregiver!$E$18)*(Tilbudsgiver!S$19/1000)*(Ordregiver!$E$27/Ordregiver!$E$10)*IF($B82<=Ordregiver!$E$10,1,0) -> 
B83: 19 | C83: =IF(Ordregiver!$E$62="Ja",VLOOKUP(Ordregiver!$E$9-1+'IB - Hospitalstekstiler'!$B60,'Standard-fremskrivning '!$C$12:$R$40,10,FALSE),Ordregiver!$E$64) -> 0.029109 | F83: =(Ordregiver!$E$18)*(Tilbudsgiver!E$19/1000)*(Ordregiver!$E$27/Ordregiver!$E$10)*IF($B83<=Ordregiver!$E$10,1,0) ->  | H83: =(Ordregiver!$E$18)*(Tilbudsgiver!G$19/1000)*(Ordregiver!$E$27/Ordregiver!$E$10)*IF($B83<=Ordregiver!$E$10,1,0) ->  | J83: =(Ordregiver!$E$18)*(Tilbudsgiver!I$19/1000)*(Ordregiver!$E$27/Ordregiver!$E$10)*IF($B83<=Ordregiver!$E$10,1,0) ->  | L83: =(Ordregiver!$E$18)*(Tilbudsgiver!K$19/1000)*(Ordregiver!$E$27/Ordregiver!$E$10)*IF($B83<=Ordregiver!$E$10,1,0) ->  | N83: =(Ordregiver!$E$18)*(Tilbudsgiver!M$19/1000)*(Ordregiver!$E$27/Ordregiver!$E$10)*IF($B83<=Ordregiver!$E$10,1,0) ->  | P83: =(Ordregiver!$E$18)*(Tilbudsgiver!O$19/1000)*(Ordregiver!$E$27/Ordregiver!$E$10)*IF($B83<=Ordregiver!$E$10,1,0) ->  | R83: =(Ordregiver!$E$18)*(Tilbudsgiver!Q$19/1000)*(Ordregiver!$E$27/Ordregiver!$E$10)*IF($B83<=Ordregiver!$E$10,1,0) ->  | T83: =(Ordregiver!$E$18)*(Tilbudsgiver!S$19/1000)*(Ordregiver!$E$27/Ordregiver!$E$10)*IF($B83<=Ordregiver!$E$10,1,0) -> 
B84: 20 | C84: =IF(Ordregiver!$E$62="Ja",VLOOKUP(Ordregiver!$E$9-1+'IB - Hospitalstekstiler'!$B61,'Standard-fremskrivning '!$C$12:$R$40,10,FALSE),Ordregiver!$E$64) -> 0.029109 | F84: =(Ordregiver!$E$18)*(Tilbudsgiver!E$19/1000)*(Ordregiver!$E$27/Ordregiver!$E$10)*IF($B84<=Ordregiver!$E$10,1,0) ->  | H84: =(Ordregiver!$E$18)*(Tilbudsgiver!G$19/1000)*(Ordregiver!$E$27/Ordregiver!$E$10)*IF($B84<=Ordregiver!$E$10,1,0) ->  | J84: =(Ordregiver!$E$18)*(Tilbudsgiver!I$19/1000)*(Ordregiver!$E$27/Ordregiver!$E$10)*IF($B84<=Ordregiver!$E$10,1,0) ->  | L84: =(Ordregiver!$E$18)*(Tilbudsgiver!K$19/1000)*(Ordregiver!$E$27/Ordregiver!$E$10)*IF($B84<=Ordregiver!$E$10,1,0) ->  | N84: =(Ordregiver!$E$18)*(Tilbudsgiver!M$19/1000)*(Ordregiver!$E$27/Ordregiver!$E$10)*IF($B84<=Ordregiver!$E$10,1,0) ->  | P84: =(Ordregiver!$E$18)*(Tilbudsgiver!O$19/1000)*(Ordregiver!$E$27/Ordregiver!$E$10)*IF($B84<=Ordregiver!$E$10,1,0) ->  | R84: =(Ordregiver!$E$18)*(Tilbudsgiver!Q$19/1000)*(Ordregiver!$E$27/Ordregiver!$E$10)*IF($B84<=Ordregiver!$E$10,1,0) ->  | T84: =(Ordregiver!$E$18)*(Tilbudsgiver!S$19/1000)*(Ordregiver!$E$27/Ordregiver!$E$10)*IF($B84<=Ordregiver!$E$10,1,0) -> 
A86: Eksternalitetsmodul - Samfundsøkonomiske omkostninger fra gasforbrug
B87: År indeks | C87: Emissionsfaktor gas (kg CO2e/m3) | E87: =Tilbudsgiver!E$11&" - Samlet udledning (tons CO2e/år)" -> PRODUKT 1 - Samlet udledning (tons CO2e/år) | F87: PD1 - Gasforbrug (m3/år) | G87: =Tilbudsgiver!G$11&" - Samlet udledning (tons CO2e/år)" -> PRODUKT 2 - Samlet udledning (tons CO2e/år) | H87: PD2 - Årligt gasforbrug (m3/år) | I87: =Tilbudsgiver!I$11&" - Samlet udledning (tons CO2e/år)" -> PRODUKT 3 - Samlet udledning (tons CO2e/år) | J87: PD3 - Årligt gasforbrug (m3/år) | K87: =Tilbudsgiver!K$11&" - Samlet udledning (tons CO2e/år)" -> PRODUKT 4 - Samlet udledning (tons CO2e/år) | L87: PD4 - Årligt gasforbrug (m3/år) | M87: =Tilbudsgiver!M$11&" - Samlet udledning (tons CO2e/år)" -> PRODUKT 5 - Samlet udledning (tons CO2e/år) | N87: PD5 - Årligt gasforbrug (m3/år) | O87: =Tilbudsgiver!O$11&" - Samlet udledning (tons CO2e/år)" -> PRODUKT 6 - Samlet udledning (tons CO2e/år) | P87: PD6 - Årligt gasforbrug (m3/år) | Q87: =Tilbudsgiver!Q$11&" - Samlet udledning (tons CO2e/år)" -> PRODUKT 7 - Samlet udledning (tons CO2e/år) | R87: PD7 - Årligt gasforbrug (m3/år) | S87: =Tilbudsgiver!S$11&" - Samlet udledning (tons CO2e/år)" -> PRODUKT 8 - Samlet udledning (tons CO2e/år) | T87: PD8 - Årligt gasforbrug (m3/år)
B88: 1 | C88: =IF(Ordregiver!$E$66="Ja",VLOOKUP(Ordregiver!$E$9-1+'IB - Hospitalstekstiler'!$B65,'Standard-fremskrivning '!$C$12:$R$40,12,FALSE),Ordregiver!$E$68) -> 1.1207929 | E88: =(F88*$C88)/1000 ->  | F88: =(Ordregiver!$E$19)*(Tilbudsgiver!E$19/1000)*(Ordregiver!$E$27/Ordregiver!$E$10)*IF($B88<=Ordregiver!$E$10,1,0) ->  | G88: =(H88*$C88)/1000 ->  | H88: =(Ordregiver!$E$19)*(Tilbudsgiver!G$19/1000)*(Ordregiver!$E$27/Ordregiver!$E$10)*IF($B88<=Ordregiver!$E$10,1,0) ->  | I88: =(J88*$C88)/1000 ->  | J88: =(Ordregiver!$E$19)*(Tilbudsgiver!I$19/1000)*(Ordregiver!$E$27/Ordregiver!$E$10)*IF($B88<=Ordregiver!$E$10,1,0) ->  | K88: =(L88*$C88)/1000 ->  | L88: =(Ordregiver!$E$19)*(Tilbudsgiver!K$19/1000)*(Ordregiver!$E$27/Ordregiver!$E$10)*IF($B88<=Ordregiver!$E$10,1,0) ->  | M88: =(N88*$C88)/1000 ->  | N88: =(Ordregiver!$E$19)*(Tilbudsgiver!M$19/1000)*(Ordregiver!$E$27/Ordregiver!$E$10)*IF($B88<=Ordregiver!$E$10,1,0) ->  | O88: =(P88*$C88)/1000 ->  | P88: =(Ordregiver!$E$19)*(Tilbudsgiver!O$19/1000)*(Ordregiver!$E$27/Ordregiver!$E$10)*IF($B88<=Ordregiver!$E$10,1,0) ->  | Q88: =(R88*$C88)/1000 ->  | R88: =(Ordregiver!$E$19)*(Tilbudsgiver!Q$19/1000)*(Ordregiver!$E$27/Ordregiver!$E$10)*IF($B88<=Ordregiver!$E$10,1,0) ->  | S88: =(T88*$C88)/1000 ->  | T88: =(Ordregiver!$E$19)*(Tilbudsgiver!S$19/1000)*(Ordregiver!$E$27/Ordregiver!$E$10)*IF($B88<=Ordregiver!$E$10,1,0) -> 
B89: 2 | C89: =IF(Ordregiver!$E$66="Ja",VLOOKUP(Ordregiver!$E$9-1+'IB - Hospitalstekstiler'!$B66,'Standard-fremskrivning '!$C$12:$R$40,12,FALSE),Ordregiver!$E$68) -> 0.7933836 | E89: =(F89*$C89)/1000 ->  | F89: =(Ordregiver!$E$19)*(Tilbudsgiver!E$19/1000)*(Ordregiver!$E$27/Ordregiver!$E$10)*IF($B89<=Ordregiver!$E$10,1,0) ->  | H89: =(Ordregiver!$E$19)*(Tilbudsgiver!G$19/1000)*(Ordregiver!$E$27/Ordregiver!$E$10)*IF($B89<=Ordregiver!$E$10,1,0) ->  | J89: =(Ordregiver!$E$19)*(Tilbudsgiver!I$19/1000)*(Ordregiver!$E$27/Ordregiver!$E$10)*IF($B89<=Ordregiver!$E$10,1,0) ->  | L89: =(Ordregiver!$E$19)*(Tilbudsgiver!K$19/1000)*(Ordregiver!$E$27/Ordregiver!$E$10)*IF($B89<=Ordregiver!$E$10,1,0) ->  | N89: =(Ordregiver!$E$19)*(Tilbudsgiver!M$19/1000)*(Ordregiver!$E$27/Ordregiver!$E$10)*IF($B89<=Ordregiver!$E$10,1,0) ->  | P89: =(Ordregiver!$E$19)*(Tilbudsgiver!O$19/1000)*(Ordregiver!$E$27/Ordregiver!$E$10)*IF($B89<=Ordregiver!$E$10,1,0) ->  | R89: =(Ordregiver!$E$19)*(Tilbudsgiver!Q$19/1000)*(Ordregiver!$E$27/Ordregiver!$E$10)*IF($B89<=Ordregiver!$E$10,1,0) ->  | T89: =(Ordregiver!$E$19)*(Tilbudsgiver!S$19/1000)*(Ordregiver!$E$27/Ordregiver!$E$10)*IF($B89<=Ordregiver!$E$10,1,0) -> 
B90: 3 | C90: =IF(Ordregiver!$E$66="Ja",VLOOKUP(Ordregiver!$E$9-1+'IB - Hospitalstekstiler'!$B67,'Standard-fremskrivning '!$C$12:$R$40,12,FALSE),Ordregiver!$E$68) -> 0.3808558 | F90: =(Ordregiver!$E$19)*(Tilbudsgiver!E$19/1000)*(Ordregiver!$E$27/Ordregiver!$E$10)*IF($B90<=Ordregiver!$E$10,1,0) ->  | H90: =(Ordregiver!$E$19)*(Tilbudsgiver!G$19/1000)*(Ordregiver!$E$27/Ordregiver!$E$10)*IF($B90<=Ordregiver!$E$10,1,0) ->  | J90: =(Ordregiver!$E$19)*(Tilbudsgiver!I$19/1000)*(Ordregiver!$E$27/Ordregiver!$E$10)*IF($B90<=Ordregiver!$E$10,1,0) ->  | L90: =(Ordregiver!$E$19)*(Tilbudsgiver!K$19/1000)*(Ordregiver!$E$27/Ordregiver!$E$10)*IF($B90<=Ordregiver!$E$10,1,0) ->  | N90: =(Ordregiver!$E$19)*(Tilbudsgiver!M$19/1000)*(Ordregiver!$E$27/Ordregiver!$E$10)*IF($B90<=Ordregiver!$E$10,1,0) ->  | P90: =(Ordregiver!$E$19)*(Tilbudsgiver!O$19/1000)*(Ordregiver!$E$27/Ordregiver!$E$10)*IF($B90<=Ordregiver!$E$10,1,0) ->  | R90: =(Ordregiver!$E$19)*(Tilbudsgiver!Q$19/1000)*(Ordregiver!$E$27/Ordregiver!$E$10)*IF($B90<=Ordregiver!$E$10,1,0) ->  | T90: =(Ordregiver!$E$19)*(Tilbudsgiver!S$19/1000)*(Ordregiver!$E$27/Ordregiver!$E$10)*IF($B90<=Ordregiver!$E$10,1,0) -> 
B91: 4 | C91: =IF(Ordregiver!$E$66="Ja",VLOOKUP(Ordregiver!$E$9-1+'IB - Hospitalstekstiler'!$B68,'Standard-fremskrivning '!$C$12:$R$40,12,FALSE),Ordregiver!$E$68) -> 0.1571723 | F91: =(Ordregiver!$E$19)*(Tilbudsgiver!E$19/1000)*(Ordregiver!$E$27/Ordregiver!$E$10)*IF($B91<=Ordregiver!$E$10,1,0) ->  | H91: =(Ordregiver!$E$19)*(Tilbudsgiver!G$19/1000)*(Ordregiver!$E$27/Ordregiver!$E$10)*IF($B91<=Ordregiver!$E$10,1,0) ->  | J91: =(Ordregiver!$E$19)*(Tilbudsgiver!I$19/1000)*(Ordregiver!$E$27/Ordregiver!$E$10)*IF($B91<=Ordregiver!$E$10,1,0) ->  | L91: =(Ordregiver!$E$19)*(Tilbudsgiver!K$19/1000)*(Ordregiver!$E$27/Ordregiver!$E$10)*IF($B91<=Ordregiver!$E$10,1,0) ->  | N91: =(Ordregiver!$E$19)*(Tilbudsgiver!M$19/1000)*(Ordregiver!$E$27/Ordregiver!$E$10)*IF($B91<=Ordregiver!$E$10,1,0) ->  | P91: =(Ordregiver!$E$19)*(Tilbudsgiver!O$19/1000)*(Ordregiver!$E$27/Ordregiver!$E$10)*IF($B91<=Ordregiver!$E$10,1,0) ->  | R91: =(Ordregiver!$E$19)*(Tilbudsgiver!Q$19/1000)*(Ordregiver!$E$27/Ordregiver!$E$10)*IF($B91<=Ordregiver!$E$10,1,0) ->  | T91: =(Ordregiver!$E$19)*(Tilbudsgiver!S$19/1000)*(Ordregiver!$E$27/Ordregiver!$E$10)*IF($B91<=Ordregiver!$E$10,1,0) -> 
B92: 5 | C92: =IF(Ordregiver!$E$66="Ja",VLOOKUP(Ordregiver!$E$9-1+'IB - Hospitalstekstiler'!$B69,'Standard-fremskrivning '!$C$12:$R$40,12,FALSE),Ordregiver!$E$68) -> 0 | F92: =(Ordregiver!$E$19)*(Tilbudsgiver!E$19/1000)*(Ordregiver!$E$27/Ordregiver!$E$10)*IF($B92<=Ordregiver!$E$10,1,0) ->  | H92: =(Ordregiver!$E$19)*(Tilbudsgiver!G$19/1000)*(Ordregiver!$E$27/Ordregiver!$E$10)*IF($B92<=Ordregiver!$E$10,1,0) ->  | J92: =(Ordregiver!$E$19)*(Tilbudsgiver!I$19/1000)*(Ordregiver!$E$27/Ordregiver!$E$10)*IF($B92<=Ordregiver!$E$10,1,0) ->  | L92: =(Ordregiver!$E$19)*(Tilbudsgiver!K$19/1000)*(Ordregiver!$E$27/Ordregiver!$E$10)*IF($B92<=Ordregiver!$E$10,1,0) ->  | N92: =(Ordregiver!$E$19)*(Tilbudsgiver!M$19/1000)*(Ordregiver!$E$27/Ordregiver!$E$10)*IF($B92<=Ordregiver!$E$10,1,0) ->  | P92: =(Ordregiver!$E$19)*(Tilbudsgiver!O$19/1000)*(Ordregiver!$E$27/Ordregiver!$E$10)*IF($B92<=Ordregiver!$E$10,1,0) ->  | R92: =(Ordregiver!$E$19)*(Tilbudsgiver!Q$19/1000)*(Ordregiver!$E$27/Ordregiver!$E$10)*IF($B92<=Ordregiver!$E$10,1,0) ->  | T92: =(Ordregiver!$E$19)*(Tilbudsgiver!S$19/1000)*(Ordregiver!$E$27/Ordregiver!$E$10)*IF($B92<=Ordregiver!$E$10,1,0) -> 
B93: 6 | C93: =IF(Ordregiver!$E$66="Ja",VLOOKUP(Ordregiver!$E$9-1+'IB - Hospitalstekstiler'!$B70,'Standard-fremskrivning '!$C$12:$R$40,12,FALSE),Ordregiver!$E$68) -> 0 | F93: =(Ordregiver!$E$19)*(Tilbudsgiver!E$19/1000)*(Ordregiver!$E$27/Ordregiver!$E$10)*IF($B93<=Ordregiver!$E$10,1,0) ->  | H93: =(Ordregiver!$E$19)*(Tilbudsgiver!G$19/1000)*(Ordregiver!$E$27/Ordregiver!$E$10)*IF($B93<=Ordregiver!$E$10,1,0) ->  | J93: =(Ordregiver!$E$19)*(Tilbudsgiver!I$19/1000)*(Ordregiver!$E$27/Ordregiver!$E$10)*IF($B93<=Ordregiver!$E$10,1,0) ->  | L93: =(Ordregiver!$E$19)*(Tilbudsgiver!K$19/1000)*(Ordregiver!$E$27/Ordregiver!$E$10)*IF($B93<=Ordregiver!$E$10,1,0) ->  | N93: =(Ordregiver!$E$19)*(Tilbudsgiver!M$19/1000)*(Ordregiver!$E$27/Ordregiver!$E$10)*IF($B93<=Ordregiver!$E$10,1,0) ->  | P93: =(Ordregiver!$E$19)*(Tilbudsgiver!O$19/1000)*(Ordregiver!$E$27/Ordregiver!$E$10)*IF($B93<=Ordregiver!$E$10,1,0) ->  | R93: =(Ordregiver!$E$19)*(Tilbudsgiver!Q$19/1000)*(Ordregiver!$E$27/Ordregiver!$E$10)*IF($B93<=Ordregiver!$E$10,1,0) ->  | T93: =(Ordregiver!$E$19)*(Tilbudsgiver!S$19/1000)*(Ordregiver!$E$27/Ordregiver!$E$10)*IF($B93<=Ordregiver!$E$10,1,0) -> 
B94: 7 | C94: =IF(Ordregiver!$E$66="Ja",VLOOKUP(Ordregiver!$E$9-1+'IB - Hospitalstekstiler'!$B71,'Standard-fremskrivning '!$C$12:$R$40,12,FALSE),Ordregiver!$E$68) -> 0 | F94: =(Ordregiver!$E$19)*(Tilbudsgiver!E$19/1000)*(Ordregiver!$E$27/Ordregiver!$E$10)*IF($B94<=Ordregiver!$E$10,1,0) ->  | H94: =(Ordregiver!$E$19)*(Tilbudsgiver!G$19/1000)*(Ordregiver!$E$27/Ordregiver!$E$10)*IF($B94<=Ordregiver!$E$10,1,0) ->  | J94: =(Ordregiver!$E$19)*(Tilbudsgiver!I$19/1000)*(Ordregiver!$E$27/Ordregiver!$E$10)*IF($B94<=Ordregiver!$E$10,1,0) ->  | L94: =(Ordregiver!$E$19)*(Tilbudsgiver!K$19/1000)*(Ordregiver!$E$27/Ordregiver!$E$10)*IF($B94<=Ordregiver!$E$10,1,0) ->  | N94: =(Ordregiver!$E$19)*(Tilbudsgiver!M$19/1000)*(Ordregiver!$E$27/Ordregiver!$E$10)*IF($B94<=Ordregiver!$E$10,1,0) ->  | P94: =(Ordregiver!$E$19)*(Tilbudsgiver!O$19/1000)*(Ordregiver!$E$27/Ordregiver!$E$10)*IF($B94<=Ordregiver!$E$10,1,0) ->  | R94: =(Ordregiver!$E$19)*(Tilbudsgiver!Q$19/1000)*(Ordregiver!$E$27/Ordregiver!$E$10)*IF($B94<=Ordregiver!$E$10,1,0) ->  | T94: =(Ordregiver!$E$19)*(Tilbudsgiver!S$19/1000)*(Ordregiver!$E$27/Ordregiver!$E$10)*IF($B94<=Ordregiver!$E$10,1,0) -> 
B95: 8 | C95: =IF(Ordregiver!$E$66="Ja",VLOOKUP(Ordregiver!$E$9-1+'IB - Hospitalstekstiler'!$B72,'Standard-fremskrivning '!$C$12:$R$40,12,FALSE),Ordregiver!$E$68) -> 0 | F95: =(Ordregiver!$E$19)*(Tilbudsgiver!E$19/1000)*(Ordregiver!$E$27/Ordregiver!$E$10)*IF($B95<=Ordregiver!$E$10,1,0) ->  | H95: =(Ordregiver!$E$19)*(Tilbudsgiver!G$19/1000)*(Ordregiver!$E$27/Ordregiver!$E$10)*IF($B95<=Ordregiver!$E$10,1,0) ->  | J95: =(Ordregiver!$E$19)*(Tilbudsgiver!I$19/1000)*(Ordregiver!$E$27/Ordregiver!$E$10)*IF($B95<=Ordregiver!$E$10,1,0) ->  | L95: =(Ordregiver!$E$19)*(Tilbudsgiver!K$19/1000)*(Ordregiver!$E$27/Ordregiver!$E$10)*IF($B95<=Ordregiver!$E$10,1,0) ->  | N95: =(Ordregiver!$E$19)*(Tilbudsgiver!M$19/1000)*(Ordregiver!$E$27/Ordregiver!$E$10)*IF($B95<=Ordregiver!$E$10,1,0) ->  | P95: =(Ordregiver!$E$19)*(Tilbudsgiver!O$19/1000)*(Ordregiver!$E$27/Ordregiver!$E$10)*IF($B95<=Ordregiver!$E$10,1,0) ->  | R95: =(Ordregiver!$E$19)*(Tilbudsgiver!Q$19/1000)*(Ordregiver!$E$27/Ordregiver!$E$10)*IF($B95<=Ordregiver!$E$10,1,0) ->  | T95: =(Ordregiver!$E$19)*(Tilbudsgiver!S$19/1000)*(Ordregiver!$E$27/Ordregiver!$E$10)*IF($B95<=Ordregiver!$E$10,1,0) -> 
B96: 9 | C96: =IF(Ordregiver!$E$66="Ja",VLOOKUP(Ordregiver!$E$9-1+'IB - Hospitalstekstiler'!$B73,'Standard-fremskrivning '!$C$12:$R$40,12,FALSE),Ordregiver!$E$68) -> 0 | F96: =(Ordregiver!$E$19)*(Tilbudsgiver!E$19/1000)*(Ordregiver!$E$27/Ordregiver!$E$10)*IF($B96<=Ordregiver!$E$10,1,0) ->  | H96: =(Ordregiver!$E$19)*(Tilbudsgiver!G$19/1000)*(Ordregiver!$E$27/Ordregiver!$E$10)*IF($B96<=Ordregiver!$E$10,1,0) ->  | J96: =(Ordregiver!$E$19)*(Tilbudsgiver!I$19/1000)*(Ordregiver!$E$27/Ordregiver!$E$10)*IF($B96<=Ordregiver!$E$10,1,0) ->  | L96: =(Ordregiver!$E$19)*(Tilbudsgiver!K$19/1000)*(Ordregiver!$E$27/Ordregiver!$E$10)*IF($B96<=Ordregiver!$E$10,1,0) ->  | N96: =(Ordregiver!$E$19)*(Tilbudsgiver!M$19/1000)*(Ordregiver!$E$27/Ordregiver!$E$10)*IF($B96<=Ordregiver!$E$10,1,0) ->  | P96: =(Ordregiver!$E$19)*(Tilbudsgiver!O$19/1000)*(Ordregiver!$E$27/Ordregiver!$E$10)*IF($B96<=Ordregiver!$E$10,1,0) ->  | R96: =(Ordregiver!$E$19)*(Tilbudsgiver!Q$19/1000)*(Ordregiver!$E$27/Ordregiver!$E$10)*IF($B96<=Ordregiver!$E$10,1,0) ->  | T96: =(Ordregiver!$E$19)*(Tilbudsgiver!S$19/1000)*(Ordregiver!$E$27/Ordregiver!$E$10)*IF($B96<=Ordregiver!$E$10,1,0) -> 
B97: 10 | C97: =IF(Ordregiver!$E$66="Ja",VLOOKUP(Ordregiver!$E$9-1+'IB - Hospitalstekstiler'!$B74,'Standard-fremskrivning '!$C$12:$R$40,12,FALSE),Ordregiver!$E$68) -> 0 | F97: =(Ordregiver!$E$19)*(Tilbudsgiver!E$19/1000)*(Ordregiver!$E$27/Ordregiver!$E$10)*IF($B97<=Ordregiver!$E$10,1,0) ->  | H97: =(Ordregiver!$E$19)*(Tilbudsgiver!G$19/1000)*(Ordregiver!$E$27/Ordregiver!$E$10)*IF($B97<=Ordregiver!$E$10,1,0) ->  | J97: =(Ordregiver!$E$19)*(Tilbudsgiver!I$19/1000)*(Ordregiver!$E$27/Ordregiver!$E$10)*IF($B97<=Ordregiver!$E$10,1,0) ->  | L97: =(Ordregiver!$E$19)*(Tilbudsgiver!K$19/1000)*(Ordregiver!$E$27/Ordregiver!$E$10)*IF($B97<=Ordregiver!$E$10,1,0) ->  | N97: =(Ordregiver!$E$19)*(Tilbudsgiver!M$19/1000)*(Ordregiver!$E$27/Ordregiver!$E$10)*IF($B97<=Ordregiver!$E$10,1,0) ->  | P97: =(Ordregiver!$E$19)*(Tilbudsgiver!O$19/1000)*(Ordregiver!$E$27/Ordregiver!$E$10)*IF($B97<=Ordregiver!$E$10,1,0) ->  | R97: =(Ordregiver!$E$19)*(Tilbudsgiver!Q$19/1000)*(Ordregiver!$E$27/Ordregiver!$E$10)*IF($B97<=Ordregiver!$E$10,1,0) ->  | T97: =(Ordregiver!$E$19)*(Tilbudsgiver!S$19/1000)*(Ordregiver!$E$27/Ordregiver!$E$10)*IF($B97<=Ordregiver!$E$10,1,0) -> 
B98: 11 | C98: =IF(Ordregiver!$E$66="Ja",VLOOKUP(Ordregiver!$E$9-1+'IB - Hospitalstekstiler'!$B75,'Standard-fremskrivning '!$C$12:$R$40,12,FALSE),Ordregiver!$E$68) -> 0 | F98: =(Ordregiver!$E$19)*(Tilbudsgiver!E$19/1000)*(Ordregiver!$E$27/Ordregiver!$E$10)*IF($B98<=Ordregiver!$E$10,1,0) ->  | H98: =(Ordregiver!$E$19)*(Tilbudsgiver!G$19/1000)*(Ordregiver!$E$27/Ordregiver!$E$10)*IF($B98<=Ordregiver!$E$10,1,0) ->  | J98: =(Ordregiver!$E$19)*(Tilbudsgiver!I$19/1000)*(Ordregiver!$E$27/Ordregiver!$E$10)*IF($B98<=Ordregiver!$E$10,1,0) ->  | L98: =(Ordregiver!$E$19)*(Tilbudsgiver!K$19/1000)*(Ordregiver!$E$27/Ordregiver!$E$10)*IF($B98<=Ordregiver!$E$10,1,0) ->  | N98: =(Ordregiver!$E$19)*(Tilbudsgiver!M$19/1000)*(Ordregiver!$E$27/Ordregiver!$E$10)*IF($B98<=Ordregiver!$E$10,1,0) ->  | P98: =(Ordregiver!$E$19)*(Tilbudsgiver!O$19/1000)*(Ordregiver!$E$27/Ordregiver!$E$10)*IF($B98<=Ordregiver!$E$10,1,0) ->  | R98: =(Ordregiver!$E$19)*(Tilbudsgiver!Q$19/1000)*(Ordregiver!$E$27/Ordregiver!$E$10)*IF($B98<=Ordregiver!$E$10,1,0) ->  | T98: =(Ordregiver!$E$19)*(Tilbudsgiver!S$19/1000)*(Ordregiver!$E$27/Ordregiver!$E$10)*IF($B98<=Ordregiver!$E$10,1,0) -> 
B99: 12 | C99: =IF(Ordregiver!$E$66="Ja",VLOOKUP(Ordregiver!$E$9-1+'IB - Hospitalstekstiler'!$B76,'Standard-fremskrivning '!$C$12:$R$40,12,FALSE),Ordregiver!$E$68) -> 0 | F99: =(Ordregiver!$E$19)*(Tilbudsgiver!E$19/1000)*(Ordregiver!$E$27/Ordregiver!$E$10)*IF($B99<=Ordregiver!$E$10,1,0) ->  | H99: =(Ordregiver!$E$19)*(Tilbudsgiver!G$19/1000)*(Ordregiver!$E$27/Ordregiver!$E$10)*IF($B99<=Ordregiver!$E$10,1,0) ->  | J99: =(Ordregiver!$E$19)*(Tilbudsgiver!I$19/1000)*(Ordregiver!$E$27/Ordregiver!$E$10)*IF($B99<=Ordregiver!$E$10,1,0) ->  | L99: =(Ordregiver!$E$19)*(Tilbudsgiver!K$19/1000)*(Ordregiver!$E$27/Ordregiver!$E$10)*IF($B99<=Ordregiver!$E$10,1,0) ->  | N99: =(Ordregiver!$E$19)*(Tilbudsgiver!M$19/1000)*(Ordregiver!$E$27/Ordregiver!$E$10)*IF($B99<=Ordregiver!$E$10,1,0) ->  | P99: =(Ordregiver!$E$19)*(Tilbudsgiver!O$19/1000)*(Ordregiver!$E$27/Ordregiver!$E$10)*IF($B99<=Ordregiver!$E$10,1,0) ->  | R99: =(Ordregiver!$E$19)*(Tilbudsgiver!Q$19/1000)*(Ordregiver!$E$27/Ordregiver!$E$10)*IF($B99<=Ordregiver!$E$10,1,0) ->  | T99: =(Ordregiver!$E$19)*(Tilbudsgiver!S$19/1000)*(Ordregiver!$E$27/Ordregiver!$E$10)*IF($B99<=Ordregiver!$E$10,1,0) -> 
B100: 13 | C100: =IF(Ordregiver!$E$66="Ja",VLOOKUP(Ordregiver!$E$9-1+'IB - Hospitalstekstiler'!$B77,'Standard-fremskrivning '!$C$12:$R$40,12,FALSE),Ordregiver!$E$68) -> 0 | F100: =(Ordregiver!$E$19)*(Tilbudsgiver!E$19/1000)*(Ordregiver!$E$27/Ordregiver!$E$10)*IF($B100<=Ordregiver!$E$10,1,0) ->  | H100: =(Ordregiver!$E$19)*(Tilbudsgiver!G$19/1000)*(Ordregiver!$E$27/Ordregiver!$E$10)*IF($B100<=Ordregiver!$E$10,1,0) ->  | J100: =(Ordregiver!$E$19)*(Tilbudsgiver!I$19/1000)*(Ordregiver!$E$27/Ordregiver!$E$10)*IF($B100<=Ordregiver!$E$10,1,0) ->  | L100: =(Ordregiver!$E$19)*(Tilbudsgiver!K$19/1000)*(Ordregiver!$E$27/Ordregiver!$E$10)*IF($B100<=Ordregiver!$E$10,1,0) ->  | N100: =(Ordregiver!$E$19)*(Tilbudsgiver!M$19/1000)*(Ordregiver!$E$27/Ordregiver!$E$10)*IF($B100<=Ordregiver!$E$10,1,0) ->  | P100: =(Ordregiver!$E$19)*(Tilbudsgiver!O$19/1000)*(Ordregiver!$E$27/Ordregiver!$E$10)*IF($B100<=Ordregiver!$E$10,1,0) ->  | R100: =(Ordregiver!$E$19)*(Tilbudsgiver!Q$19/1000)*(Ordregiver!$E$27/Ordregiver!$E$10)*IF($B100<=Ordregiver!$E$10,1,0) ->  | T100: =(Ordregiver!$E$19)*(Tilbudsgiver!S$19/1000)*(Ordregiver!$E$27/Ordregiver!$E$10)*IF($B100<=Ordregiver!$E$10,1,0) -> 
B101: 14 | C101: =IF(Ordregiver!$E$66="Ja",VLOOKUP(Ordregiver!$E$9-1+'IB - Hospitalstekstiler'!$B78,'Standard-fremskrivning '!$C$12:$R$40,12,FALSE),Ordregiver!$E$68) -> 0 | F101: =(Ordregiver!$E$19)*(Tilbudsgiver!E$19/1000)*(Ordregiver!$E$27/Ordregiver!$E$10)*IF($B101<=Ordregiver!$E$10,1,0) ->  | H101: =(Ordregiver!$E$19)*(Tilbudsgiver!G$19/1000)*(Ordregiver!$E$27/Ordregiver!$E$10)*IF($B101<=Ordregiver!$E$10,1,0) ->  | J101: =(Ordregiver!$E$19)*(Tilbudsgiver!I$19/1000)*(Ordregiver!$E$27/Ordregiver!$E$10)*IF($B101<=Ordregiver!$E$10,1,0) ->  | L101: =(Ordregiver!$E$19)*(Tilbudsgiver!K$19/1000)*(Ordregiver!$E$27/Ordregiver!$E$10)*IF($B101<=Ordregiver!$E$10,1,0) ->  | N101: =(Ordregiver!$E$19)*(Tilbudsgiver!M$19/1000)*(Ordregiver!$E$27/Ordregiver!$E$10)*IF($B101<=Ordregiver!$E$10,1,0) ->  | P101: =(Ordregiver!$E$19)*(Tilbudsgiver!O$19/1000)*(Ordregiver!$E$27/Ordregiver!$E$10)*IF($B101<=Ordregiver!$E$10,1,0) ->  | R101: =(Ordregiver!$E$19)*(Tilbudsgiver!Q$19/1000)*(Ordregiver!$E$27/Ordregiver!$E$10)*IF($B101<=Ordregiver!$E$10,1,0) ->  | T101: =(Ordregiver!$E$19)*(Tilbudsgiver!S$19/1000)*(Ordregiver!$E$27/Ordregiver!$E$10)*IF($B101<=Ordregiver!$E$10,1,0) -> 
B102: 15 | C102: =IF(Ordregiver!$E$66="Ja",VLOOKUP(Ordregiver!$E$9-1+'IB - Hospitalstekstiler'!$B79,'Standard-fremskrivning '!$C$12:$R$40,12,FALSE),Ordregiver!$E$68) -> 0 | F102: =(Ordregiver!$E$19)*(Tilbudsgiver!E$19/1000)*(Ordregiver!$E$27/Ordregiver!$E$10)*IF($B102<=Ordregiver!$E$10,1,0) ->  | H102: =(Ordregiver!$E$19)*(Tilbudsgiver!G$19/1000)*(Ordregiver!$E$27/Ordregiver!$E$10)*IF($B102<=Ordregiver!$E$10,1,0) ->  | J102: =(Ordregiver!$E$19)*(Tilbudsgiver!I$19/1000)*(Ordregiver!$E$27/Ordregiver!$E$10)*IF($B102<=Ordregiver!$E$10,1,0) ->  | L102: =(Ordregiver!$E$19)*(Tilbudsgiver!K$19/1000)*(Ordregiver!$E$27/Ordregiver!$E$10)*IF($B102<=Ordregiver!$E$10,1,0) ->  | N102: =(Ordregiver!$E$19)*(Tilbudsgiver!M$19/1000)*(Ordregiver!$E$27/Ordregiver!$E$10)*IF($B102<=Ordregiver!$E$10,1,0) ->  | P102: =(Ordregiver!$E$19)*(Tilbudsgiver!O$19/1000)*(Ordregiver!$E$27/Ordregiver!$E$10)*IF($B102<=Ordregiver!$E$10,1,0) ->  | R102: =(Ordregiver!$E$19)*(Tilbudsgiver!Q$19/1000)*(Ordregiver!$E$27/Ordregiver!$E$10)*IF($B102<=Ordregiver!$E$10,1,0) ->  | T102: =(Ordregiver!$E$19)*(Tilbudsgiver!S$19/1000)*(Ordregiver!$E$27/Ordregiver!$E$10)*IF($B102<=Ordregiver!$E$10,1,0) -> 
B103: 16 | C103: =IF(Ordregiver!$E$66="Ja",VLOOKUP(Ordregiver!$E$9-1+'IB - Hospitalstekstiler'!$B80,'Standard-fremskrivning '!$C$12:$R$40,12,FALSE),Ordregiver!$E$68) -> 0 | F103: =(Ordregiver!$E$19)*(Tilbudsgiver!E$19/1000)*(Ordregiver!$E$27/Ordregiver!$E$10)*IF($B103<=Ordregiver!$E$10,1,0) ->  | H103: =(Ordregiver!$E$19)*(Tilbudsgiver!G$19/1000)*(Ordregiver!$E$27/Ordregiver!$E$10)*IF($B103<=Ordregiver!$E$10,1,0) ->  | J103: =(Ordregiver!$E$19)*(Tilbudsgiver!I$19/1000)*(Ordregiver!$E$27/Ordregiver!$E$10)*IF($B103<=Ordregiver!$E$10,1,0) ->  | L103: =(Ordregiver!$E$19)*(Tilbudsgiver!K$19/1000)*(Ordregiver!$E$27/Ordregiver!$E$10)*IF($B103<=Ordregiver!$E$10,1,0) ->  | N103: =(Ordregiver!$E$19)*(Tilbudsgiver!M$19/1000)*(Ordregiver!$E$27/Ordregiver!$E$10)*IF($B103<=Ordregiver!$E$10,1,0) ->  | P103: =(Ordregiver!$E$19)*(Tilbudsgiver!O$19/1000)*(Ordregiver!$E$27/Ordregiver!$E$10)*IF($B103<=Ordregiver!$E$10,1,0) ->  | R103: =(Ordregiver!$E$19)*(Tilbudsgiver!Q$19/1000)*(Ordregiver!$E$27/Ordregiver!$E$10)*IF($B103<=Ordregiver!$E$10,1,0) ->  | T103: =(Ordregiver!$E$19)*(Tilbudsgiver!S$19/1000)*(Ordregiver!$E$27/Ordregiver!$E$10)*IF($B103<=Ordregiver!$E$10,1,0) -> 
B104: 17 | C104: =IF(Ordregiver!$E$66="Ja",VLOOKUP(Ordregiver!$E$9-1+'IB - Hospitalstekstiler'!$B81,'Standard-fremskrivning '!$C$12:$R$40,12,FALSE),Ordregiver!$E$68) -> 0 | F104: =(Ordregiver!$E$19)*(Tilbudsgiver!E$19/1000)*(Ordregiver!$E$27/Ordregiver!$E$10)*IF($B104<=Ordregiver!$E$10,1,0) ->  | G104: =(H104*$C104)/1000 ->  | H104: =(Ordregiver!$E$19)*(Tilbudsgiver!G$19/1000)*(Ordregiver!$E$27/Ordregiver!$E$10)*IF($B104<=Ordregiver!$E$10,1,0) ->  | I104: =(J104*$C104)/1000 ->  | J104: =(Ordregiver!$E$19)*(Tilbudsgiver!I$19/1000)*(Ordregiver!$E$27/Ordregiver!$E$10)*IF($B104<=Ordregiver!$E$10,1,0) ->  | K104: =(L104*$C104)/1000 ->  | L104: =(Ordregiver!$E$19)*(Tilbudsgiver!K$19/1000)*(Ordregiver!$E$27/Ordregiver!$E$10)*IF($B104<=Ordregiver!$E$10,1,0) ->  | M104: =(N104*$C104)/1000 ->  | N104: =(Ordregiver!$E$19)*(Tilbudsgiver!M$19/1000)*(Ordregiver!$E$27/Ordregiver!$E$10)*IF($B104<=Ordregiver!$E$10,1,0) ->  | O104: =(P104*$C104)/1000 ->  | P104: =(Ordregiver!$E$19)*(Tilbudsgiver!O$19/1000)*(Ordregiver!$E$27/Ordregiver!$E$10)*IF($B104<=Ordregiver!$E$10,1,0) ->  | Q104: =(R104*$C104)/1000 ->  | R104: =(Ordregiver!$E$19)*(Tilbudsgiver!Q$19/1000)*(Ordregiver!$E$27/Ordregiver!$E$10)*IF($B104<=Ordregiver!$E$10,1,0) ->  | S104: =(T104*$C104)/1000 ->  | T104: =(Ordregiver!$E$19)*(Tilbudsgiver!S$19/1000)*(Ordregiver!$E$27/Ordregiver!$E$10)*IF($B104<=Ordregiver!$E$10,1,0) -> 
B105: 18 | C105: =IF(Ordregiver!$E$66="Ja",VLOOKUP(Ordregiver!$E$9-1+'IB - Hospitalstekstiler'!$B82,'Standard-fremskrivning '!$C$12:$R$40,12,FALSE),Ordregiver!$E$68) -> 0 | F105: =(Ordregiver!$E$19)*(Tilbudsgiver!E$19/1000)*(Ordregiver!$E$27/Ordregiver!$E$10)*IF($B105<=Ordregiver!$E$10,1,0) ->  | H105: =(Ordregiver!$E$19)*(Tilbudsgiver!G$19/1000)*(Ordregiver!$E$27/Ordregiver!$E$10)*IF($B105<=Ordregiver!$E$10,1,0) ->  | J105: =(Ordregiver!$E$19)*(Tilbudsgiver!I$19/1000)*(Ordregiver!$E$27/Ordregiver!$E$10)*IF($B105<=Ordregiver!$E$10,1,0) ->  | L105: =(Ordregiver!$E$19)*(Tilbudsgiver!K$19/1000)*(Ordregiver!$E$27/Ordregiver!$E$10)*IF($B105<=Ordregiver!$E$10,1,0) ->  | N105: =(Ordregiver!$E$19)*(Tilbudsgiver!M$19/1000)*(Ordregiver!$E$27/Ordregiver!$E$10)*IF($B105<=Ordregiver!$E$10,1,0) ->  | P105: =(Ordregiver!$E$19)*(Tilbudsgiver!O$19/1000)*(Ordregiver!$E$27/Ordregiver!$E$10)*IF($B105<=Ordregiver!$E$10,1,0) ->  | R105: =(Ordregiver!$E$19)*(Tilbudsgiver!Q$19/1000)*(Ordregiver!$E$27/Ordregiver!$E$10)*IF($B105<=Ordregiver!$E$10,1,0) ->  | T105: =(Ordregiver!$E$19)*(Tilbudsgiver!S$19/1000)*(Ordregiver!$E$27/Ordregiver!$E$10)*IF($B105<=Ordregiver!$E$10,1,0) -> 
B106: 19 | C106: =IF(Ordregiver!$E$66="Ja",VLOOKUP(Ordregiver!$E$9-1+'IB - Hospitalstekstiler'!$B83,'Standard-fremskrivning '!$C$12:$R$40,12,FALSE),Ordregiver!$E$68) -> 0 | F106: =(Ordregiver!$E$19)*(Tilbudsgiver!E$19/1000)*(Ordregiver!$E$27/Ordregiver!$E$10)*IF($B106<=Ordregiver!$E$10,1,0) ->  | H106: =(Ordregiver!$E$19)*(Tilbudsgiver!G$19/1000)*(Ordregiver!$E$27/Ordregiver!$E$10)*IF($B106<=Ordregiver!$E$10,1,0) ->  | J106: =(Ordregiver!$E$19)*(Tilbudsgiver!I$19/1000)*(Ordregiver!$E$27/Ordregiver!$E$10)*IF($B106<=Ordregiver!$E$10,1,0) ->  | L106: =(Ordregiver!$E$19)*(Tilbudsgiver!K$19/1000)*(Ordregiver!$E$27/Ordregiver!$E$10)*IF($B106<=Ordregiver!$E$10,1,0) ->  | N106: =(Ordregiver!$E$19)*(Tilbudsgiver!M$19/1000)*(Ordregiver!$E$27/Ordregiver!$E$10)*IF($B106<=Ordregiver!$E$10,1,0) ->  | P106: =(Ordregiver!$E$19)*(Tilbudsgiver!O$19/1000)*(Ordregiver!$E$27/Ordregiver!$E$10)*IF($B106<=Ordregiver!$E$10,1,0) ->  | R106: =(Ordregiver!$E$19)*(Tilbudsgiver!Q$19/1000)*(Ordregiver!$E$27/Ordregiver!$E$10)*IF($B106<=Ordregiver!$E$10,1,0) ->  | T106: =(Ordregiver!$E$19)*(Tilbudsgiver!S$19/1000)*(Ordregiver!$E$27/Ordregiver!$E$10)*IF($B106<=Ordregiver!$E$10,1,0) -> 
B107: 20 | C107: =IF(Ordregiver!$E$66="Ja",VLOOKUP(Ordregiver!$E$9-1+'IB - Hospitalstekstiler'!$B84,'Standard-fremskrivning '!$C$12:$R$40,12,FALSE),Ordregiver!$E$68) -> 0 | F107: =(Ordregiver!$E$19)*(Tilbudsgiver!E$19/1000)*(Ordregiver!$E$27/Ordregiver!$E$10)*IF($B107<=Ordregiver!$E$10,1,0) ->  | H107: =(Ordregiver!$E$19)*(Tilbudsgiver!G$19/1000)*(Ordregiver!$E$27/Ordregiver!$E$10)*IF($B107<=Ordregiver!$E$10,1,0) ->  | J107: =(Ordregiver!$E$19)*(Tilbudsgiver!I$19/1000)*(Ordregiver!$E$27/Ordregiver!$E$10)*IF($B107<=Ordregiver!$E$10,1,0) ->  | L107: =(Ordregiver!$E$19)*(Tilbudsgiver!K$19/1000)*(Ordregiver!$E$27/Ordregiver!$E$10)*IF($B107<=Ordregiver!$E$10,1,0) ->  | N107: =(Ordregiver!$E$19)*(Tilbudsgiver!M$19/1000)*(Ordregiver!$E$27/Ordregiver!$E$10)*IF($B107<=Ordregiver!$E$10,1,0) ->  | P107: =(Ordregiver!$E$19)*(Tilbudsgiver!O$19/1000)*(Ordregiver!$E$27/Ordregiver!$E$10)*IF($B107<=Ordregiver!$E$10,1,0) ->  | R107: =(Ordregiver!$E$19)*(Tilbudsgiver!Q$19/1000)*(Ordregiver!$E$27/Ordregiver!$E$10)*IF($B107<=Ordregiver!$E$10,1,0) ->  | T107: =(Ordregiver!$E$19)*(Tilbudsgiver!S$19/1000)*(Ordregiver!$E$27/Ordregiver!$E$10)*IF($B107<=Ordregiver!$E$10,1,0) -> 
A110: Eksternalitetsmodul - Samfundsøkonomiske omkostninger fra fjernvarme
B111: År indeks | C111: Emissionsfaktor fjernvarme (kg CO2e/kWh) | E111: =Tilbudsgiver!E$11&" - Samlet udledning (tons CO2e/år)" -> PRODUKT 1 - Samlet udledning (tons CO2e/år) | F111: PD1 -Fjernvarmeforbrug (kWh/år) | G111: =Tilbudsgiver!G$11&" - Samlet udledning (tons CO2e/år)" -> PRODUKT 2 - Samlet udledning (tons CO2e/år) | H111: PD2 -Fjernvarmeforbrug (kWh/år) | I111: =Tilbudsgiver!I$11&" - Samlet udledning (tons CO2e/år)" -> PRODUKT 3 - Samlet udledning (tons CO2e/år) | J111: PD3 -Fjernvarmeforbrug (kWh/år) | K111: =Tilbudsgiver!K$11&" - Samlet udledning (tons CO2e/år)" -> PRODUKT 4 - Samlet udledning (tons CO2e/år) | L111: PD4 -Fjernvarmeforbrug (kWh/år) | M111: =Tilbudsgiver!M$11&" - Samlet udledning (tons CO2e/år)" -> PRODUKT 5 - Samlet udledning (tons CO2e/år) | N111: PD5 -Fjernvarmeforbrug (kWh/år) | O111: =Tilbudsgiver!O$11&" - Samlet udledning (tons CO2e/år)" -> PRODUKT 6 - Samlet udledning (tons CO2e/år) | P111: PD6 -Fjernvarmeforbrug (kWh/år) | Q111: =Tilbudsgiver!Q$11&" - Samlet udledning (tons CO2e/år)" -> PRODUKT 7 - Samlet udledning (tons CO2e/år) | R111: PD7 -Fjernvarmeforbrug (kWh/år) | S111: =Tilbudsgiver!S$11&" - Samlet udledning (tons CO2e/år)" -> PRODUKT 8 - Samlet udledning (tons CO2e/år) | T111: PD8 -Fjernvarmeforbrug (kWh/år)
B112: 1 | C112: =IF(Ordregiver!$E$66="Ja",VLOOKUP(Ordregiver!$E$9-1+'IB - Hospitalstekstiler'!$B88,'Standard-fremskrivning '!$C$12:$V$40,18,FALSE),Ordregiver!$E$68) -> 0.04627 | E112: =(F112*$C112)/1000 ->  | F112: =(Ordregiver!$E$20)*(Tilbudsgiver!E$19/1000)*(Ordregiver!$E$27/Ordregiver!$E$10)*IF($B112<=Ordregiver!$E$10,1,0) ->  | G112: =(H112*$C112)/1000 ->  | H112: =(Ordregiver!$E$20)*(Tilbudsgiver!G$19/1000)*(Ordregiver!$E$27/Ordregiver!$E$10)*IF($B112<=Ordregiver!$E$10,1,0) ->  | I112: =(J112*$C112)/1000 ->  | J112: =(Ordregiver!$E$20)*(Tilbudsgiver!I$19/1000)*(Ordregiver!$E$27/Ordregiver!$E$10)*IF($B112<=Ordregiver!$E$10,1,0) ->  | K112: =(L112*$C112)/1000 ->  | L112: =(Ordregiver!$E$20)*(Tilbudsgiver!K$19/1000)*(Ordregiver!$E$27/Ordregiver!$E$10)*IF($B112<=Ordregiver!$E$10,1,0) ->  | M112: =(N112*$C112)/1000 ->  | N112: =(Ordregiver!$E$20)*(Tilbudsgiver!M$19/1000)*(Ordregiver!$E$27/Ordregiver!$E$10)*IF($B112<=Ordregiver!$E$10,1,0) ->  | O112: =(P112*$C112)/1000 ->  | P112: =(Ordregiver!$E$20)*(Tilbudsgiver!O$19/1000)*(Ordregiver!$E$27/Ordregiver!$E$10)*IF($B112<=Ordregiver!$E$10,1,0) ->  | Q112: =(R112*$C112)/1000 ->  | R112: =(Ordregiver!$E$20)*(Tilbudsgiver!Q$19/1000)*(Ordregiver!$E$27/Ordregiver!$E$10)*IF($B112<=Ordregiver!$E$10,1,0) ->  | S112: =(T112*$C112)/1000 ->  | T112: =(Ordregiver!$E$20)*(Tilbudsgiver!S$19/1000)*(Ordregiver!$E$27/Ordregiver!$E$10)*IF($B112<=Ordregiver!$E$10,1,0) -> 
B113: 2 | C113: =IF(Ordregiver!$E$66="Ja",VLOOKUP(Ordregiver!$E$9-1+'IB - Hospitalstekstiler'!$B89,'Standard-fremskrivning '!$C$12:$V$40,18,FALSE),Ordregiver!$E$68) -> 0.04388 | E113: =(F113*$C113)/1000 ->  | F113: =(Ordregiver!$E$20)*(Tilbudsgiver!E$19/1000)*(Ordregiver!$E$27/Ordregiver!$E$10)*IF($B113<=Ordregiver!$E$10,1,0) ->  | H113: =(Ordregiver!$E$20)*(Tilbudsgiver!G$19/1000)*(Ordregiver!$E$27/Ordregiver!$E$10)*IF($B113<=Ordregiver!$E$10,1,0) ->  | J113: =(Ordregiver!$E$20)*(Tilbudsgiver!I$19/1000)*(Ordregiver!$E$27/Ordregiver!$E$10)*IF($B113<=Ordregiver!$E$10,1,0) ->  | L113: =(Ordregiver!$E$20)*(Tilbudsgiver!K$19/1000)*(Ordregiver!$E$27/Ordregiver!$E$10)*IF($B113<=Ordregiver!$E$10,1,0) ->  | N113: =(Ordregiver!$E$20)*(Tilbudsgiver!M$19/1000)*(Ordregiver!$E$27/Ordregiver!$E$10)*IF($B113<=Ordregiver!$E$10,1,0) ->  | P113: =(Ordregiver!$E$20)*(Tilbudsgiver!O$19/1000)*(Ordregiver!$E$27/Ordregiver!$E$10)*IF($B113<=Ordregiver!$E$10,1,0) ->  | R113: =(Ordregiver!$E$20)*(Tilbudsgiver!Q$19/1000)*(Ordregiver!$E$27/Ordregiver!$E$10)*IF($B113<=Ordregiver!$E$10,1,0) ->  | T113: =(Ordregiver!$E$20)*(Tilbudsgiver!S$19/1000)*(Ordregiver!$E$27/Ordregiver!$E$10)*IF($B113<=Ordregiver!$E$10,1,0) -> 
B114: 3 | C114: =IF(Ordregiver!$E$66="Ja",VLOOKUP(Ordregiver!$E$9-1+'IB - Hospitalstekstiler'!$B90,'Standard-fremskrivning '!$C$12:$V$40,18,FALSE),Ordregiver!$E$68) -> 0.04035 | F114: =(Ordregiver!$E$20)*(Tilbudsgiver!E$19/1000)*(Ordregiver!$E$27/Ordregiver!$E$10)*IF($B114<=Ordregiver!$E$10,1,0) ->  | H114: =(Ordregiver!$E$20)*(Tilbudsgiver!G$19/1000)*(Ordregiver!$E$27/Ordregiver!$E$10)*IF($B114<=Ordregiver!$E$10,1,0) ->  | J114: =(Ordregiver!$E$20)*(Tilbudsgiver!I$19/1000)*(Ordregiver!$E$27/Ordregiver!$E$10)*IF($B114<=Ordregiver!$E$10,1,0) ->  | L114: =(Ordregiver!$E$20)*(Tilbudsgiver!K$19/1000)*(Ordregiver!$E$27/Ordregiver!$E$10)*IF($B114<=Ordregiver!$E$10,1,0) ->  | N114: =(Ordregiver!$E$20)*(Tilbudsgiver!M$19/1000)*(Ordregiver!$E$27/Ordregiver!$E$10)*IF($B114<=Ordregiver!$E$10,1,0) ->  | P114: =(Ordregiver!$E$20)*(Tilbudsgiver!O$19/1000)*(Ordregiver!$E$27/Ordregiver!$E$10)*IF($B114<=Ordregiver!$E$10,1,0) ->  | R114: =(Ordregiver!$E$20)*(Tilbudsgiver!Q$19/1000)*(Ordregiver!$E$27/Ordregiver!$E$10)*IF($B114<=Ordregiver!$E$10,1,0) ->  | T114: =(Ordregiver!$E$20)*(Tilbudsgiver!S$19/1000)*(Ordregiver!$E$27/Ordregiver!$E$10)*IF($B114<=Ordregiver!$E$10,1,0) -> 
B115: 4 | C115: =IF(Ordregiver!$E$66="Ja",VLOOKUP(Ordregiver!$E$9-1+'IB - Hospitalstekstiler'!$B91,'Standard-fremskrivning '!$C$12:$V$40,18,FALSE),Ordregiver!$E$68) -> 0.03936 | F115: =(Ordregiver!$E$20)*(Tilbudsgiver!E$19/1000)*(Ordregiver!$E$27/Ordregiver!$E$10)*IF($B115<=Ordregiver!$E$10,1,0) ->  | H115: =(Ordregiver!$E$20)*(Tilbudsgiver!G$19/1000)*(Ordregiver!$E$27/Ordregiver!$E$10)*IF($B115<=Ordregiver!$E$10,1,0) ->  | J115: =(Ordregiver!$E$20)*(Tilbudsgiver!I$19/1000)*(Ordregiver!$E$27/Ordregiver!$E$10)*IF($B115<=Ordregiver!$E$10,1,0) ->  | L115: =(Ordregiver!$E$20)*(Tilbudsgiver!K$19/1000)*(Ordregiver!$E$27/Ordregiver!$E$10)*IF($B115<=Ordregiver!$E$10,1,0) ->  | N115: =(Ordregiver!$E$20)*(Tilbudsgiver!M$19/1000)*(Ordregiver!$E$27/Ordregiver!$E$10)*IF($B115<=Ordregiver!$E$10,1,0) ->  | P115: =(Ordregiver!$E$20)*(Tilbudsgiver!O$19/1000)*(Ordregiver!$E$27/Ordregiver!$E$10)*IF($B115<=Ordregiver!$E$10,1,0) ->  | R115: =(Ordregiver!$E$20)*(Tilbudsgiver!Q$19/1000)*(Ordregiver!$E$27/Ordregiver!$E$10)*IF($B115<=Ordregiver!$E$10,1,0) ->  | T115: =(Ordregiver!$E$20)*(Tilbudsgiver!S$19/1000)*(Ordregiver!$E$27/Ordregiver!$E$10)*IF($B115<=Ordregiver!$E$10,1,0) -> 
B116: 5 | C116: =IF(Ordregiver!$E$66="Ja",VLOOKUP(Ordregiver!$E$9-1+'IB - Hospitalstekstiler'!$B92,'Standard-fremskrivning '!$C$12:$V$40,18,FALSE),Ordregiver!$E$68) -> 0.03393 | F116: =(Ordregiver!$E$20)*(Tilbudsgiver!E$19/1000)*(Ordregiver!$E$27/Ordregiver!$E$10)*IF($B116<=Ordregiver!$E$10,1,0) ->  | H116: =(Ordregiver!$E$20)*(Tilbudsgiver!G$19/1000)*(Ordregiver!$E$27/Ordregiver!$E$10)*IF($B116<=Ordregiver!$E$10,1,0) ->  | J116: =(Ordregiver!$E$20)*(Tilbudsgiver!I$19/1000)*(Ordregiver!$E$27/Ordregiver!$E$10)*IF($B116<=Ordregiver!$E$10,1,0) ->  | L116: =(Ordregiver!$E$20)*(Tilbudsgiver!K$19/1000)*(Ordregiver!$E$27/Ordregiver!$E$10)*IF($B116<=Ordregiver!$E$10,1,0) ->  | N116: =(Ordregiver!$E$20)*(Tilbudsgiver!M$19/1000)*(Ordregiver!$E$27/Ordregiver!$E$10)*IF($B116<=Ordregiver!$E$10,1,0) ->  | P116: =(Ordregiver!$E$20)*(Tilbudsgiver!O$19/1000)*(Ordregiver!$E$27/Ordregiver!$E$10)*IF($B116<=Ordregiver!$E$10,1,0) ->  | R116: =(Ordregiver!$E$20)*(Tilbudsgiver!Q$19/1000)*(Ordregiver!$E$27/Ordregiver!$E$10)*IF($B116<=Ordregiver!$E$10,1,0) ->  | T116: =(Ordregiver!$E$20)*(Tilbudsgiver!S$19/1000)*(Ordregiver!$E$27/Ordregiver!$E$10)*IF($B116<=Ordregiver!$E$10,1,0) -> 
B117: 6 | C117: =IF(Ordregiver!$E$66="Ja",VLOOKUP(Ordregiver!$E$9-1+'IB - Hospitalstekstiler'!$B93,'Standard-fremskrivning '!$C$12:$V$40,18,FALSE),Ordregiver!$E$68) -> 0.03372 | F117: =(Ordregiver!$E$20)*(Tilbudsgiver!E$19/1000)*(Ordregiver!$E$27/Ordregiver!$E$10)*IF($B117<=Ordregiver!$E$10,1,0) ->  | H117: =(Ordregiver!$E$20)*(Tilbudsgiver!G$19/1000)*(Ordregiver!$E$27/Ordregiver!$E$10)*IF($B117<=Ordregiver!$E$10,1,0) ->  | J117: =(Ordregiver!$E$20)*(Tilbudsgiver!I$19/1000)*(Ordregiver!$E$27/Ordregiver!$E$10)*IF($B117<=Ordregiver!$E$10,1,0) ->  | L117: =(Ordregiver!$E$20)*(Tilbudsgiver!K$19/1000)*(Ordregiver!$E$27/Ordregiver!$E$10)*IF($B117<=Ordregiver!$E$10,1,0) ->  | N117: =(Ordregiver!$E$20)*(Tilbudsgiver!M$19/1000)*(Ordregiver!$E$27/Ordregiver!$E$10)*IF($B117<=Ordregiver!$E$10,1,0) ->  | P117: =(Ordregiver!$E$20)*(Tilbudsgiver!O$19/1000)*(Ordregiver!$E$27/Ordregiver!$E$10)*IF($B117<=Ordregiver!$E$10,1,0) ->  | R117: =(Ordregiver!$E$20)*(Tilbudsgiver!Q$19/1000)*(Ordregiver!$E$27/Ordregiver!$E$10)*IF($B117<=Ordregiver!$E$10,1,0) ->  | T117: =(Ordregiver!$E$20)*(Tilbudsgiver!S$19/1000)*(Ordregiver!$E$27/Ordregiver!$E$10)*IF($B117<=Ordregiver!$E$10,1,0) -> 
B118: 7 | C118: =IF(Ordregiver!$E$66="Ja",VLOOKUP(Ordregiver!$E$9-1+'IB - Hospitalstekstiler'!$B94,'Standard-fremskrivning '!$C$12:$V$40,18,FALSE),Ordregiver!$E$68) -> 0.03383 | F118: =(Ordregiver!$E$20)*(Tilbudsgiver!E$19/1000)*(Ordregiver!$E$27/Ordregiver!$E$10)*IF($B118<=Ordregiver!$E$10,1,0) ->  | H118: =(Ordregiver!$E$20)*(Tilbudsgiver!G$19/1000)*(Ordregiver!$E$27/Ordregiver!$E$10)*IF($B118<=Ordregiver!$E$10,1,0) ->  | J118: =(Ordregiver!$E$20)*(Tilbudsgiver!I$19/1000)*(Ordregiver!$E$27/Ordregiver!$E$10)*IF($B118<=Ordregiver!$E$10,1,0) ->  | L118: =(Ordregiver!$E$20)*(Tilbudsgiver!K$19/1000)*(Ordregiver!$E$27/Ordregiver!$E$10)*IF($B118<=Ordregiver!$E$10,1,0) ->  | N118: =(Ordregiver!$E$20)*(Tilbudsgiver!M$19/1000)*(Ordregiver!$E$27/Ordregiver!$E$10)*IF($B118<=Ordregiver!$E$10,1,0) ->  | P118: =(Ordregiver!$E$20)*(Tilbudsgiver!O$19/1000)*(Ordregiver!$E$27/Ordregiver!$E$10)*IF($B118<=Ordregiver!$E$10,1,0) ->  | R118: =(Ordregiver!$E$20)*(Tilbudsgiver!Q$19/1000)*(Ordregiver!$E$27/Ordregiver!$E$10)*IF($B118<=Ordregiver!$E$10,1,0) ->  | T118: =(Ordregiver!$E$20)*(Tilbudsgiver!S$19/1000)*(Ordregiver!$E$27/Ordregiver!$E$10)*IF($B118<=Ordregiver!$E$10,1,0) -> 
B119: 8 | C119: =IF(Ordregiver!$E$66="Ja",VLOOKUP(Ordregiver!$E$9-1+'IB - Hospitalstekstiler'!$B95,'Standard-fremskrivning '!$C$12:$V$40,18,FALSE),Ordregiver!$E$68) -> 0.03347 | F119: =(Ordregiver!$E$20)*(Tilbudsgiver!E$19/1000)*(Ordregiver!$E$27/Ordregiver!$E$10)*IF($B119<=Ordregiver!$E$10,1,0) ->  | H119: =(Ordregiver!$E$20)*(Tilbudsgiver!G$19/1000)*(Ordregiver!$E$27/Ordregiver!$E$10)*IF($B119<=Ordregiver!$E$10,1,0) ->  | J119: =(Ordregiver!$E$20)*(Tilbudsgiver!I$19/1000)*(Ordregiver!$E$27/Ordregiver!$E$10)*IF($B119<=Ordregiver!$E$10,1,0) ->  | L119: =(Ordregiver!$E$20)*(Tilbudsgiver!K$19/1000)*(Ordregiver!$E$27/Ordregiver!$E$10)*IF($B119<=Ordregiver!$E$10,1,0) ->  | N119: =(Ordregiver!$E$20)*(Tilbudsgiver!M$19/1000)*(Ordregiver!$E$27/Ordregiver!$E$10)*IF($B119<=Ordregiver!$E$10,1,0) ->  | P119: =(Ordregiver!$E$20)*(Tilbudsgiver!O$19/1000)*(Ordregiver!$E$27/Ordregiver!$E$10)*IF($B119<=Ordregiver!$E$10,1,0) ->  | R119: =(Ordregiver!$E$20)*(Tilbudsgiver!Q$19/1000)*(Ordregiver!$E$27/Ordregiver!$E$10)*IF($B119<=Ordregiver!$E$10,1,0) ->  | T119: =(Ordregiver!$E$20)*(Tilbudsgiver!S$19/1000)*(Ordregiver!$E$27/Ordregiver!$E$10)*IF($B119<=Ordregiver!$E$10,1,0) -> 
B120: 9 | C120: =IF(Ordregiver!$E$66="Ja",VLOOKUP(Ordregiver!$E$9-1+'IB - Hospitalstekstiler'!$B96,'Standard-fremskrivning '!$C$12:$V$40,18,FALSE),Ordregiver!$E$68) -> 0.03137 | F120: =(Ordregiver!$E$20)*(Tilbudsgiver!E$19/1000)*(Ordregiver!$E$27/Ordregiver!$E$10)*IF($B120<=Ordregiver!$E$10,1,0) ->  | H120: =(Ordregiver!$E$20)*(Tilbudsgiver!G$19/1000)*(Ordregiver!$E$27/Ordregiver!$E$10)*IF($B120<=Ordregiver!$E$10,1,0) ->  | J120: =(Ordregiver!$E$20)*(Tilbudsgiver!I$19/1000)*(Ordregiver!$E$27/Ordregiver!$E$10)*IF($B120<=Ordregiver!$E$10,1,0) ->  | L120: =(Ordregiver!$E$20)*(Tilbudsgiver!K$19/1000)*(Ordregiver!$E$27/Ordregiver!$E$10)*IF($B120<=Ordregiver!$E$10,1,0) ->  | N120: =(Ordregiver!$E$20)*(Tilbudsgiver!M$19/1000)*(Ordregiver!$E$27/Ordregiver!$E$10)*IF($B120<=Ordregiver!$E$10,1,0) ->  | P120: =(Ordregiver!$E$20)*(Tilbudsgiver!O$19/1000)*(Ordregiver!$E$27/Ordregiver!$E$10)*IF($B120<=Ordregiver!$E$10,1,0) ->  | R120: =(Ordregiver!$E$20)*(Tilbudsgiver!Q$19/1000)*(Ordregiver!$E$27/Ordregiver!$E$10)*IF($B120<=Ordregiver!$E$10,1,0) ->  | T120: =(Ordregiver!$E$20)*(Tilbudsgiver!S$19/1000)*(Ordregiver!$E$27/Ordregiver!$E$10)*IF($B120<=Ordregiver!$E$10,1,0) -> 
B121: 10 | C121: =IF(Ordregiver!$E$66="Ja",VLOOKUP(Ordregiver!$E$9-1+'IB - Hospitalstekstiler'!$B97,'Standard-fremskrivning '!$C$12:$V$40,18,FALSE),Ordregiver!$E$68) -> 0.02888 | F121: =(Ordregiver!$E$20)*(Tilbudsgiver!E$19/1000)*(Ordregiver!$E$27/Ordregiver!$E$10)*IF($B121<=Ordregiver!$E$10,1,0) ->  | H121: =(Ordregiver!$E$20)*(Tilbudsgiver!G$19/1000)*(Ordregiver!$E$27/Ordregiver!$E$10)*IF($B121<=Ordregiver!$E$10,1,0) ->  | J121: =(Ordregiver!$E$20)*(Tilbudsgiver!I$19/1000)*(Ordregiver!$E$27/Ordregiver!$E$10)*IF($B121<=Ordregiver!$E$10,1,0) ->  | L121: =(Ordregiver!$E$20)*(Tilbudsgiver!K$19/1000)*(Ordregiver!$E$27/Ordregiver!$E$10)*IF($B121<=Ordregiver!$E$10,1,0) ->  | N121: =(Ordregiver!$E$20)*(Tilbudsgiver!M$19/1000)*(Ordregiver!$E$27/Ordregiver!$E$10)*IF($B121<=Ordregiver!$E$10,1,0) ->  | P121: =(Ordregiver!$E$20)*(Tilbudsgiver!O$19/1000)*(Ordregiver!$E$27/Ordregiver!$E$10)*IF($B121<=Ordregiver!$E$10,1,0) ->  | R121: =(Ordregiver!$E$20)*(Tilbudsgiver!Q$19/1000)*(Ordregiver!$E$27/Ordregiver!$E$10)*IF($B121<=Ordregiver!$E$10,1,0) ->  | T121: =(Ordregiver!$E$20)*(Tilbudsgiver!S$19/1000)*(Ordregiver!$E$27/Ordregiver!$E$10)*IF($B121<=Ordregiver!$E$10,1,0) -> 
B122: 11 | C122: =IF(Ordregiver!$E$66="Ja",VLOOKUP(Ordregiver!$E$9-1+'IB - Hospitalstekstiler'!$B98,'Standard-fremskrivning '!$C$12:$V$40,18,FALSE),Ordregiver!$E$68) -> 0.02459 | F122: =(Ordregiver!$E$20)*(Tilbudsgiver!E$19/1000)*(Ordregiver!$E$27/Ordregiver!$E$10)*IF($B122<=Ordregiver!$E$10,1,0) ->  | H122: =(Ordregiver!$E$20)*(Tilbudsgiver!G$19/1000)*(Ordregiver!$E$27/Ordregiver!$E$10)*IF($B122<=Ordregiver!$E$10,1,0) ->  | J122: =(Ordregiver!$E$20)*(Tilbudsgiver!I$19/1000)*(Ordregiver!$E$27/Ordregiver!$E$10)*IF($B122<=Ordregiver!$E$10,1,0) ->  | L122: =(Ordregiver!$E$20)*(Tilbudsgiver!K$19/1000)*(Ordregiver!$E$27/Ordregiver!$E$10)*IF($B122<=Ordregiver!$E$10,1,0) ->  | N122: =(Ordregiver!$E$20)*(Tilbudsgiver!M$19/1000)*(Ordregiver!$E$27/Ordregiver!$E$10)*IF($B122<=Ordregiver!$E$10,1,0) ->  | P122: =(Ordregiver!$E$20)*(Tilbudsgiver!O$19/1000)*(Ordregiver!$E$27/Ordregiver!$E$10)*IF($B122<=Ordregiver!$E$10,1,0) ->  | R122: =(Ordregiver!$E$20)*(Tilbudsgiver!Q$19/1000)*(Ordregiver!$E$27/Ordregiver!$E$10)*IF($B122<=Ordregiver!$E$10,1,0) ->  | T122: =(Ordregiver!$E$20)*(Tilbudsgiver!S$19/1000)*(Ordregiver!$E$27/Ordregiver!$E$10)*IF($B122<=Ordregiver!$E$10,1,0) -> 
B123: 12 | C123: =IF(Ordregiver!$E$66="Ja",VLOOKUP(Ordregiver!$E$9-1+'IB - Hospitalstekstiler'!$B99,'Standard-fremskrivning '!$C$12:$V$40,18,FALSE),Ordregiver!$E$68) -> 0.02459 | F123: =(Ordregiver!$E$20)*(Tilbudsgiver!E$19/1000)*(Ordregiver!$E$27/Ordregiver!$E$10)*IF($B123<=Ordregiver!$E$10,1,0) ->  | H123: =(Ordregiver!$E$20)*(Tilbudsgiver!G$19/1000)*(Ordregiver!$E$27/Ordregiver!$E$10)*IF($B123<=Ordregiver!$E$10,1,0) ->  | J123: =(Ordregiver!$E$20)*(Tilbudsgiver!I$19/1000)*(Ordregiver!$E$27/Ordregiver!$E$10)*IF($B123<=Ordregiver!$E$10,1,0) ->  | L123: =(Ordregiver!$E$20)*(Tilbudsgiver!K$19/1000)*(Ordregiver!$E$27/Ordregiver!$E$10)*IF($B123<=Ordregiver!$E$10,1,0) ->  | N123: =(Ordregiver!$E$20)*(Tilbudsgiver!M$19/1000)*(Ordregiver!$E$27/Ordregiver!$E$10)*IF($B123<=Ordregiver!$E$10,1,0) ->  | P123: =(Ordregiver!$E$20)*(Tilbudsgiver!O$19/1000)*(Ordregiver!$E$27/Ordregiver!$E$10)*IF($B123<=Ordregiver!$E$10,1,0) ->  | R123: =(Ordregiver!$E$20)*(Tilbudsgiver!Q$19/1000)*(Ordregiver!$E$27/Ordregiver!$E$10)*IF($B123<=Ordregiver!$E$10,1,0) ->  | T123: =(Ordregiver!$E$20)*(Tilbudsgiver!S$19/1000)*(Ordregiver!$E$27/Ordregiver!$E$10)*IF($B123<=Ordregiver!$E$10,1,0) -> 
B124: 13 | C124: =IF(Ordregiver!$E$66="Ja",VLOOKUP(Ordregiver!$E$9-1+'IB - Hospitalstekstiler'!$B100,'Standard-fremskrivning '!$C$12:$V$40,18,FALSE),Ordregiver!$E$68) -> 0.02459 | F124: =(Ordregiver!$E$20)*(Tilbudsgiver!E$19/1000)*(Ordregiver!$E$27/Ordregiver!$E$10)*IF($B124<=Ordregiver!$E$10,1,0) ->  | H124: =(Ordregiver!$E$20)*(Tilbudsgiver!G$19/1000)*(Ordregiver!$E$27/Ordregiver!$E$10)*IF($B124<=Ordregiver!$E$10,1,0) ->  | J124: =(Ordregiver!$E$20)*(Tilbudsgiver!I$19/1000)*(Ordregiver!$E$27/Ordregiver!$E$10)*IF($B124<=Ordregiver!$E$10,1,0) ->  | L124: =(Ordregiver!$E$20)*(Tilbudsgiver!K$19/1000)*(Ordregiver!$E$27/Ordregiver!$E$10)*IF($B124<=Ordregiver!$E$10,1,0) ->  | N124: =(Ordregiver!$E$20)*(Tilbudsgiver!M$19/1000)*(Ordregiver!$E$27/Ordregiver!$E$10)*IF($B124<=Ordregiver!$E$10,1,0) ->  | P124: =(Ordregiver!$E$20)*(Tilbudsgiver!O$19/1000)*(Ordregiver!$E$27/Ordregiver!$E$10)*IF($B124<=Ordregiver!$E$10,1,0) ->  | R124: =(Ordregiver!$E$20)*(Tilbudsgiver!Q$19/1000)*(Ordregiver!$E$27/Ordregiver!$E$10)*IF($B124<=Ordregiver!$E$10,1,0) ->  | T124: =(Ordregiver!$E$20)*(Tilbudsgiver!S$19/1000)*(Ordregiver!$E$27/Ordregiver!$E$10)*IF($B124<=Ordregiver!$E$10,1,0) -> 
B125: 14 | C125: =IF(Ordregiver!$E$66="Ja",VLOOKUP(Ordregiver!$E$9-1+'IB - Hospitalstekstiler'!$B101,'Standard-fremskrivning '!$C$12:$V$40,18,FALSE),Ordregiver!$E$68) -> 0.02459 | F125: =(Ordregiver!$E$20)*(Tilbudsgiver!E$19/1000)*(Ordregiver!$E$27/Ordregiver!$E$10)*IF($B125<=Ordregiver!$E$10,1,0) ->  | H125: =(Ordregiver!$E$20)*(Tilbudsgiver!G$19/1000)*(Ordregiver!$E$27/Ordregiver!$E$10)*IF($B125<=Ordregiver!$E$10,1,0) ->  | J125: =(Ordregiver!$E$20)*(Tilbudsgiver!I$19/1000)*(Ordregiver!$E$27/Ordregiver!$E$10)*IF($B125<=Ordregiver!$E$10,1,0) ->  | L125: =(Ordregiver!$E$20)*(Tilbudsgiver!K$19/1000)*(Ordregiver!$E$27/Ordregiver!$E$10)*IF($B125<=Ordregiver!$E$10,1,0) ->  | N125: =(Ordregiver!$E$20)*(Tilbudsgiver!M$19/1000)*(Ordregiver!$E$27/Ordregiver!$E$10)*IF($B125<=Ordregiver!$E$10,1,0) ->  | P125: =(Ordregiver!$E$20)*(Tilbudsgiver!O$19/1000)*(Ordregiver!$E$27/Ordregiver!$E$10)*IF($B125<=Ordregiver!$E$10,1,0) ->  | R125: =(Ordregiver!$E$20)*(Tilbudsgiver!Q$19/1000)*(Ordregiver!$E$27/Ordregiver!$E$10)*IF($B125<=Ordregiver!$E$10,1,0) ->  | T125: =(Ordregiver!$E$20)*(Tilbudsgiver!S$19/1000)*(Ordregiver!$E$27/Ordregiver!$E$10)*IF($B125<=Ordregiver!$E$10,1,0) -> 
B126: 15 | C126: =IF(Ordregiver!$E$66="Ja",VLOOKUP(Ordregiver!$E$9-1+'IB - Hospitalstekstiler'!$B102,'Standard-fremskrivning '!$C$12:$V$40,18,FALSE),Ordregiver!$E$68) -> 0.02459 | F126: =(Ordregiver!$E$20)*(Tilbudsgiver!E$19/1000)*(Ordregiver!$E$27/Ordregiver!$E$10)*IF($B126<=Ordregiver!$E$10,1,0) ->  | H126: =(Ordregiver!$E$20)*(Tilbudsgiver!G$19/1000)*(Ordregiver!$E$27/Ordregiver!$E$10)*IF($B126<=Ordregiver!$E$10,1,0) ->  | J126: =(Ordregiver!$E$20)*(Tilbudsgiver!I$19/1000)*(Ordregiver!$E$27/Ordregiver!$E$10)*IF($B126<=Ordregiver!$E$10,1,0) ->  | L126: =(Ordregiver!$E$20)*(Tilbudsgiver!K$19/1000)*(Ordregiver!$E$27/Ordregiver!$E$10)*IF($B126<=Ordregiver!$E$10,1,0) ->  | N126: =(Ordregiver!$E$20)*(Tilbudsgiver!M$19/1000)*(Ordregiver!$E$27/Ordregiver!$E$10)*IF($B126<=Ordregiver!$E$10,1,0) ->  | P126: =(Ordregiver!$E$20)*(Tilbudsgiver!O$19/1000)*(Ordregiver!$E$27/Ordregiver!$E$10)*IF($B126<=Ordregiver!$E$10,1,0) ->  | R126: =(Ordregiver!$E$20)*(Tilbudsgiver!Q$19/1000)*(Ordregiver!$E$27/Ordregiver!$E$10)*IF($B126<=Ordregiver!$E$10,1,0) ->  | T126: =(Ordregiver!$E$20)*(Tilbudsgiver!S$19/1000)*(Ordregiver!$E$27/Ordregiver!$E$10)*IF($B126<=Ordregiver!$E$10,1,0) -> 
B127: 16 | C127: =IF(Ordregiver!$E$66="Ja",VLOOKUP(Ordregiver!$E$9-1+'IB - Hospitalstekstiler'!$B103,'Standard-fremskrivning '!$C$12:$V$40,18,FALSE),Ordregiver!$E$68) -> 0.02459 | F127: =(Ordregiver!$E$20)*(Tilbudsgiver!E$19/1000)*(Ordregiver!$E$27/Ordregiver!$E$10)*IF($B127<=Ordregiver!$E$10,1,0) ->  | H127: =(Ordregiver!$E$20)*(Tilbudsgiver!G$19/1000)*(Ordregiver!$E$27/Ordregiver!$E$10)*IF($B127<=Ordregiver!$E$10,1,0) ->  | J127: =(Ordregiver!$E$20)*(Tilbudsgiver!I$19/1000)*(Ordregiver!$E$27/Ordregiver!$E$10)*IF($B127<=Ordregiver!$E$10,1,0) ->  | L127: =(Ordregiver!$E$20)*(Tilbudsgiver!K$19/1000)*(Ordregiver!$E$27/Ordregiver!$E$10)*IF($B127<=Ordregiver!$E$10,1,0) ->  | N127: =(Ordregiver!$E$20)*(Tilbudsgiver!M$19/1000)*(Ordregiver!$E$27/Ordregiver!$E$10)*IF($B127<=Ordregiver!$E$10,1,0) ->  | P127: =(Ordregiver!$E$20)*(Tilbudsgiver!O$19/1000)*(Ordregiver!$E$27/Ordregiver!$E$10)*IF($B127<=Ordregiver!$E$10,1,0) ->  | R127: =(Ordregiver!$E$20)*(Tilbudsgiver!Q$19/1000)*(Ordregiver!$E$27/Ordregiver!$E$10)*IF($B127<=Ordregiver!$E$10,1,0) ->  | T127: =(Ordregiver!$E$20)*(Tilbudsgiver!S$19/1000)*(Ordregiver!$E$27/Ordregiver!$E$10)*IF($B127<=Ordregiver!$E$10,1,0) -> 
B128: 17 | C128: =IF(Ordregiver!$E$66="Ja",VLOOKUP(Ordregiver!$E$9-1+'IB - Hospitalstekstiler'!$B104,'Standard-fremskrivning '!$C$12:$V$40,18,FALSE),Ordregiver!$E$68) -> 0.02459 | F128: =(Ordregiver!$E$20)*(Tilbudsgiver!E$19/1000)*(Ordregiver!$E$27/Ordregiver!$E$10)*IF($B128<=Ordregiver!$E$10,1,0) ->  | G128: =(H128*$C128)/1000 ->  | H128: =(Ordregiver!$E$20)*(Tilbudsgiver!G$19/1000)*(Ordregiver!$E$27/Ordregiver!$E$10)*IF($B128<=Ordregiver!$E$10,1,0) ->  | I128: =(J128*$C128)/1000 ->  | J128: =(Ordregiver!$E$20)*(Tilbudsgiver!I$19/1000)*(Ordregiver!$E$27/Ordregiver!$E$10)*IF($B128<=Ordregiver!$E$10,1,0) ->  | K128: =(L128*$C128)/1000 ->  | L128: =(Ordregiver!$E$20)*(Tilbudsgiver!K$19/1000)*(Ordregiver!$E$27/Ordregiver!$E$10)*IF($B128<=Ordregiver!$E$10,1,0) ->  | M128: =(N128*$C128)/1000 ->  | N128: =(Ordregiver!$E$20)*(Tilbudsgiver!M$19/1000)*(Ordregiver!$E$27/Ordregiver!$E$10)*IF($B128<=Ordregiver!$E$10,1,0) ->  | O128: =(P128*$C128)/1000 ->  | P128: =(Ordregiver!$E$20)*(Tilbudsgiver!O$19/1000)*(Ordregiver!$E$27/Ordregiver!$E$10)*IF($B128<=Ordregiver!$E$10,1,0) ->  | Q128: =(R128*$C128)/1000 ->  | R128: =(Ordregiver!$E$20)*(Tilbudsgiver!Q$19/1000)*(Ordregiver!$E$27/Ordregiver!$E$10)*IF($B128<=Ordregiver!$E$10,1,0) ->  | S128: =(T128*$C128)/1000 ->  | T128: =(Ordregiver!$E$20)*(Tilbudsgiver!S$19/1000)*(Ordregiver!$E$27/Ordregiver!$E$10)*IF($B128<=Ordregiver!$E$10,1,0) -> 
B129: 18 | C129: =IF(Ordregiver!$E$66="Ja",VLOOKUP(Ordregiver!$E$9-1+'IB - Hospitalstekstiler'!$B105,'Standard-fremskrivning '!$C$12:$V$40,18,FALSE),Ordregiver!$E$68) -> 0.02459 | F129: =(Ordregiver!$E$20)*(Tilbudsgiver!E$19/1000)*(Ordregiver!$E$27/Ordregiver!$E$10)*IF($B129<=Ordregiver!$E$10,1,0) ->  | H129: =(Ordregiver!$E$20)*(Tilbudsgiver!G$19/1000)*(Ordregiver!$E$27/Ordregiver!$E$10)*IF($B129<=Ordregiver!$E$10,1,0) ->  | J129: =(Ordregiver!$E$20)*(Tilbudsgiver!I$19/1000)*(Ordregiver!$E$27/Ordregiver!$E$10)*IF($B129<=Ordregiver!$E$10,1,0) ->  | L129: =(Ordregiver!$E$20)*(Tilbudsgiver!K$19/1000)*(Ordregiver!$E$27/Ordregiver!$E$10)*IF($B129<=Ordregiver!$E$10,1,0) ->  | N129: =(Ordregiver!$E$20)*(Tilbudsgiver!M$19/1000)*(Ordregiver!$E$27/Ordregiver!$E$10)*IF($B129<=Ordregiver!$E$10,1,0) ->  | P129: =(Ordregiver!$E$20)*(Tilbudsgiver!O$19/1000)*(Ordregiver!$E$27/Ordregiver!$E$10)*IF($B129<=Ordregiver!$E$10,1,0) ->  | R129: =(Ordregiver!$E$20)*(Tilbudsgiver!Q$19/1000)*(Ordregiver!$E$27/Ordregiver!$E$10)*IF($B129<=Ordregiver!$E$10,1,0) ->  | T129: =(Ordregiver!$E$20)*(Tilbudsgiver!S$19/1000)*(Ordregiver!$E$27/Ordregiver!$E$10)*IF($B129<=Ordregiver!$E$10,1,0) -> 
B130: 19 | C130: =IF(Ordregiver!$E$66="Ja",VLOOKUP(Ordregiver!$E$9-1+'IB - Hospitalstekstiler'!$B106,'Standard-fremskrivning '!$C$12:$V$40,18,FALSE),Ordregiver!$E$68) -> 0.02459 | F130: =(Ordregiver!$E$20)*(Tilbudsgiver!E$19/1000)*(Ordregiver!$E$27/Ordregiver!$E$10)*IF($B130<=Ordregiver!$E$10,1,0) ->  | H130: =(Ordregiver!$E$20)*(Tilbudsgiver!G$19/1000)*(Ordregiver!$E$27/Ordregiver!$E$10)*IF($B130<=Ordregiver!$E$10,1,0) ->  | J130: =(Ordregiver!$E$20)*(Tilbudsgiver!I$19/1000)*(Ordregiver!$E$27/Ordregiver!$E$10)*IF($B130<=Ordregiver!$E$10,1,0) ->  | L130: =(Ordregiver!$E$20)*(Tilbudsgiver!K$19/1000)*(Ordregiver!$E$27/Ordregiver!$E$10)*IF($B130<=Ordregiver!$E$10,1,0) ->  | N130: =(Ordregiver!$E$20)*(Tilbudsgiver!M$19/1000)*(Ordregiver!$E$27/Ordregiver!$E$10)*IF($B130<=Ordregiver!$E$10,1,0) ->  | P130: =(Ordregiver!$E$20)*(Tilbudsgiver!O$19/1000)*(Ordregiver!$E$27/Ordregiver!$E$10)*IF($B130<=Ordregiver!$E$10,1,0) ->  | R130: =(Ordregiver!$E$20)*(Tilbudsgiver!Q$19/1000)*(Ordregiver!$E$27/Ordregiver!$E$10)*IF($B130<=Ordregiver!$E$10,1,0) ->  | T130: =(Ordregiver!$E$20)*(Tilbudsgiver!S$19/1000)*(Ordregiver!$E$27/Ordregiver!$E$10)*IF($B130<=Ordregiver!$E$10,1,0) -> 
B131: 20 | C131: =IF(Ordregiver!$E$66="Ja",VLOOKUP(Ordregiver!$E$9-1+'IB - Hospitalstekstiler'!$B107,'Standard-fremskrivning '!$C$12:$V$40,18,FALSE),Ordregiver!$E$68) -> 0.02459 | F131: =(Ordregiver!$E$20)*(Tilbudsgiver!E$19/1000)*(Ordregiver!$E$27/Ordregiver!$E$10)*IF($B131<=Ordregiver!$E$10,1,0) ->  | H131: =(Ordregiver!$E$20)*(Tilbudsgiver!G$19/1000)*(Ordregiver!$E$27/Ordregiver!$E$10)*IF($B131<=Ordregiver!$E$10,1,0) ->  | J131: =(Ordregiver!$E$20)*(Tilbudsgiver!I$19/1000)*(Ordregiver!$E$27/Ordregiver!$E$10)*IF($B131<=Ordregiver!$E$10,1,0) ->  | L131: =(Ordregiver!$E$20)*(Tilbudsgiver!K$19/1000)*(Ordregiver!$E$27/Ordregiver!$E$10)*IF($B131<=Ordregiver!$E$10,1,0) ->  | N131: =(Ordregiver!$E$20)*(Tilbudsgiver!M$19/1000)*(Ordregiver!$E$27/Ordregiver!$E$10)*IF($B131<=Ordregiver!$E$10,1,0) ->  | P131: =(Ordregiver!$E$20)*(Tilbudsgiver!O$19/1000)*(Ordregiver!$E$27/Ordregiver!$E$10)*IF($B131<=Ordregiver!$E$10,1,0) ->  | R131: =(Ordregiver!$E$20)*(Tilbudsgiver!Q$19/1000)*(Ordregiver!$E$27/Ordregiver!$E$10)*IF($B131<=Ordregiver!$E$10,1,0) ->  | T131: =(Ordregiver!$E$20)*(Tilbudsgiver!S$19/1000)*(Ordregiver!$E$27/Ordregiver!$E$10)*IF($B131<=Ordregiver!$E$10,1,0) -> 
A134: Eksternalitetsmodul - Samfundsøkonomiske omkostninger fra fyringsolie
B135: År indeks | C135: Emissionsfaktor fyringsolie (kg CO2e/L) | E135: =Tilbudsgiver!E$11&" - Samlet udledning (tons CO2e/år)" -> PRODUKT 1 - Samlet udledning (tons CO2e/år) | F135: PD1 - Olieforbrug (L/år) | G135: =Tilbudsgiver!G$11&" - Samlet udledning (tons CO2e/år)" -> PRODUKT 2 - Samlet udledning (tons CO2e/år) | H135: PD2 - Olieforbrug (L/år) | I135: =Tilbudsgiver!I$11&" - Samlet udledning (tons CO2e/år)" -> PRODUKT 3 - Samlet udledning (tons CO2e/år) | J135: PD3 - Olieforbrug (L/år) | K135: =Tilbudsgiver!K$11&" - Samlet udledning (tons CO2e/år)" -> PRODUKT 4 - Samlet udledning (tons CO2e/år) | L135: PD4 - Olieforbrug (L/år) | M135: =Tilbudsgiver!M$11&" - Samlet udledning (tons CO2e/år)" -> PRODUKT 5 - Samlet udledning (tons CO2e/år) | N135: PD5 - Olieforbrug (L/år) | O135: =Tilbudsgiver!O$11&" - Samlet udledning (tons CO2e/år)" -> PRODUKT 6 - Samlet udledning (tons CO2e/år) | P135: PD6 - Olieforbrug (L/år) | Q135: =Tilbudsgiver!Q$11&" - Samlet udledning (tons CO2e/år)" -> PRODUKT 7 - Samlet udledning (tons CO2e/år) | R135: PD7 - Olieforbrug (L/år) | S135: =Tilbudsgiver!S$11&" - Samlet udledning (tons CO2e/år)" -> PRODUKT 8 - Samlet udledning (tons CO2e/år) | T135: PD8 - Olieforbrug (L/år)
B136: 1 | C136: =IF(Ordregiver!$E$66="Ja",VLOOKUP(Ordregiver!$E$9-1+'IB - Hospitalstekstiler'!$B112,'Standard-fremskrivning '!$C$12:$V$40,17,FALSE),Ordregiver!$E$68) -> 3.15 | E136: =(F136*$C136)/1000 ->  | F136: =(Ordregiver!$E$19)*(Tilbudsgiver!E$19/1000)*(Ordregiver!$E$27/Ordregiver!$E$10)*IF($B136<=Ordregiver!$E$10,1,0) ->  | G136: =(H136*$C136)/1000 ->  | H136: =(Ordregiver!$E$19)*(Tilbudsgiver!G$19/1000)*(Ordregiver!$E$27/Ordregiver!$E$10)*IF($B136<=Ordregiver!$E$10,1,0) ->  | I136: =(J136*$C136)/1000 ->  | J136: =(Ordregiver!$E$19)*(Tilbudsgiver!I$19/1000)*(Ordregiver!$E$27/Ordregiver!$E$10)*IF($B136<=Ordregiver!$E$10,1,0) ->  | K136: =(L136*$C136)/1000 ->  | L136: =(Ordregiver!$E$19)*(Tilbudsgiver!K$19/1000)*(Ordregiver!$E$27/Ordregiver!$E$10)*IF($B136<=Ordregiver!$E$10,1,0) ->  | M136: =(N136*$C136)/1000 ->  | N136: =(Ordregiver!$E$19)*(Tilbudsgiver!M$19/1000)*(Ordregiver!$E$27/Ordregiver!$E$10)*IF($B136<=Ordregiver!$E$10,1,0) ->  | O136: =(P136*$C136)/1000 ->  | P136: =(Ordregiver!$E$19)*(Tilbudsgiver!O$19/1000)*(Ordregiver!$E$27/Ordregiver!$E$10)*IF($B136<=Ordregiver!$E$10,1,0) ->  | Q136: =(R136*$C136)/1000 ->  | R136: =(Ordregiver!$E$19)*(Tilbudsgiver!Q$19/1000)*(Ordregiver!$E$27/Ordregiver!$E$10)*IF($B136<=Ordregiver!$E$10,1,0) ->  | S136: =(T136*$C136)/1000 ->  | T136: =(Ordregiver!$E$19)*(Tilbudsgiver!S$19/1000)*(Ordregiver!$E$27/Ordregiver!$E$10)*IF($B136<=Ordregiver!$E$10,1,0) -> 
B137: 2 | C137: =IF(Ordregiver!$E$66="Ja",VLOOKUP(Ordregiver!$E$9-1+'IB - Hospitalstekstiler'!$B113,'Standard-fremskrivning '!$C$12:$V$40,17,FALSE),Ordregiver!$E$68) -> 3.15 | E137: =(F137*$C137)/1000 ->  | F137: =(Ordregiver!$E$19)*(Tilbudsgiver!E$19/1000)*(Ordregiver!$E$27/Ordregiver!$E$10)*IF($B137<=Ordregiver!$E$10,1,0) ->  | H137: =(Ordregiver!$E$19)*(Tilbudsgiver!G$19/1000)*(Ordregiver!$E$27/Ordregiver!$E$10)*IF($B137<=Ordregiver!$E$10,1,0) ->  | J137: =(Ordregiver!$E$19)*(Tilbudsgiver!I$19/1000)*(Ordregiver!$E$27/Ordregiver!$E$10)*IF($B137<=Ordregiver!$E$10,1,0) ->  | L137: =(Ordregiver!$E$19)*(Tilbudsgiver!K$19/1000)*(Ordregiver!$E$27/Ordregiver!$E$10)*IF($B137<=Ordregiver!$E$10,1,0) ->  | N137: =(Ordregiver!$E$19)*(Tilbudsgiver!M$19/1000)*(Ordregiver!$E$27/Ordregiver!$E$10)*IF($B137<=Ordregiver!$E$10,1,0) ->  | P137: =(Ordregiver!$E$19)*(Tilbudsgiver!O$19/1000)*(Ordregiver!$E$27/Ordregiver!$E$10)*IF($B137<=Ordregiver!$E$10,1,0) ->  | R137: =(Ordregiver!$E$19)*(Tilbudsgiver!Q$19/1000)*(Ordregiver!$E$27/Ordregiver!$E$10)*IF($B137<=Ordregiver!$E$10,1,0) ->  | T137: =(Ordregiver!$E$19)*(Tilbudsgiver!S$19/1000)*(Ordregiver!$E$27/Ordregiver!$E$10)*IF($B137<=Ordregiver!$E$10,1,0) -> 
B138: 3 | C138: =IF(Ordregiver!$E$66="Ja",VLOOKUP(Ordregiver!$E$9-1+'IB - Hospitalstekstiler'!$B114,'Standard-fremskrivning '!$C$12:$V$40,17,FALSE),Ordregiver!$E$68) -> 3.15 | F138: =(Ordregiver!$E$19)*(Tilbudsgiver!E$19/1000)*(Ordregiver!$E$27/Ordregiver!$E$10)*IF($B138<=Ordregiver!$E$10,1,0) ->  | H138: =(Ordregiver!$E$19)*(Tilbudsgiver!G$19/1000)*(Ordregiver!$E$27/Ordregiver!$E$10)*IF($B138<=Ordregiver!$E$10,1,0) ->  | J138: =(Ordregiver!$E$19)*(Tilbudsgiver!I$19/1000)*(Ordregiver!$E$27/Ordregiver!$E$10)*IF($B138<=Ordregiver!$E$10,1,0) ->  | L138: =(Ordregiver!$E$19)*(Tilbudsgiver!K$19/1000)*(Ordregiver!$E$27/Ordregiver!$E$10)*IF($B138<=Ordregiver!$E$10,1,0) ->  | N138: =(Ordregiver!$E$19)*(Tilbudsgiver!M$19/1000)*(Ordregiver!$E$27/Ordregiver!$E$10)*IF($B138<=Ordregiver!$E$10,1,0) ->  | P138: =(Ordregiver!$E$19)*(Tilbudsgiver!O$19/1000)*(Ordregiver!$E$27/Ordregiver!$E$10)*IF($B138<=Ordregiver!$E$10,1,0) ->  | R138: =(Ordregiver!$E$19)*(Tilbudsgiver!Q$19/1000)*(Ordregiver!$E$27/Ordregiver!$E$10)*IF($B138<=Ordregiver!$E$10,1,0) ->  | T138: =(Ordregiver!$E$19)*(Tilbudsgiver!S$19/1000)*(Ordregiver!$E$27/Ordregiver!$E$10)*IF($B138<=Ordregiver!$E$10,1,0) -> 
B139: 4 | C139: =IF(Ordregiver!$E$66="Ja",VLOOKUP(Ordregiver!$E$9-1+'IB - Hospitalstekstiler'!$B115,'Standard-fremskrivning '!$C$12:$V$40,17,FALSE),Ordregiver!$E$68) -> 3.15 | F139: =(Ordregiver!$E$19)*(Tilbudsgiver!E$19/1000)*(Ordregiver!$E$27/Ordregiver!$E$10)*IF($B139<=Ordregiver!$E$10,1,0) ->  | H139: =(Ordregiver!$E$19)*(Tilbudsgiver!G$19/1000)*(Ordregiver!$E$27/Ordregiver!$E$10)*IF($B139<=Ordregiver!$E$10,1,0) ->  | J139: =(Ordregiver!$E$19)*(Tilbudsgiver!I$19/1000)*(Ordregiver!$E$27/Ordregiver!$E$10)*IF($B139<=Ordregiver!$E$10,1,0) ->  | L139: =(Ordregiver!$E$19)*(Tilbudsgiver!K$19/1000)*(Ordregiver!$E$27/Ordregiver!$E$10)*IF($B139<=Ordregiver!$E$10,1,0) ->  | N139: =(Ordregiver!$E$19)*(Tilbudsgiver!M$19/1000)*(Ordregiver!$E$27/Ordregiver!$E$10)*IF($B139<=Ordregiver!$E$10,1,0) ->  | P139: =(Ordregiver!$E$19)*(Tilbudsgiver!O$19/1000)*(Ordregiver!$E$27/Ordregiver!$E$10)*IF($B139<=Ordregiver!$E$10,1,0) ->  | R139: =(Ordregiver!$E$19)*(Tilbudsgiver!Q$19/1000)*(Ordregiver!$E$27/Ordregiver!$E$10)*IF($B139<=Ordregiver!$E$10,1,0) ->  | T139: =(Ordregiver!$E$19)*(Tilbudsgiver!S$19/1000)*(Ordregiver!$E$27/Ordregiver!$E$10)*IF($B139<=Ordregiver!$E$10,1,0) -> 
B140: 5 | C140: =IF(Ordregiver!$E$66="Ja",VLOOKUP(Ordregiver!$E$9-1+'IB - Hospitalstekstiler'!$B116,'Standard-fremskrivning '!$C$12:$V$40,17,FALSE),Ordregiver!$E$68) -> 3.15 | F140: =(Ordregiver!$E$19)*(Tilbudsgiver!E$19/1000)*(Ordregiver!$E$27/Ordregiver!$E$10)*IF($B140<=Ordregiver!$E$10,1,0) ->  | H140: =(Ordregiver!$E$19)*(Tilbudsgiver!G$19/1000)*(Ordregiver!$E$27/Ordregiver!$E$10)*IF($B140<=Ordregiver!$E$10,1,0) ->  | J140: =(Ordregiver!$E$19)*(Tilbudsgiver!I$19/1000)*(Ordregiver!$E$27/Ordregiver!$E$10)*IF($B140<=Ordregiver!$E$10,1,0) ->  | L140: =(Ordregiver!$E$19)*(Tilbudsgiver!K$19/1000)*(Ordregiver!$E$27/Ordregiver!$E$10)*IF($B140<=Ordregiver!$E$10,1,0) ->  | N140: =(Ordregiver!$E$19)*(Tilbudsgiver!M$19/1000)*(Ordregiver!$E$27/Ordregiver!$E$10)*IF($B140<=Ordregiver!$E$10,1,0) ->  | P140: =(Ordregiver!$E$19)*(Tilbudsgiver!O$19/1000)*(Ordregiver!$E$27/Ordregiver!$E$10)*IF($B140<=Ordregiver!$E$10,1,0) ->  | R140: =(Ordregiver!$E$19)*(Tilbudsgiver!Q$19/1000)*(Ordregiver!$E$27/Ordregiver!$E$10)*IF($B140<=Ordregiver!$E$10,1,0) ->  | T140: =(Ordregiver!$E$19)*(Tilbudsgiver!S$19/1000)*(Ordregiver!$E$27/Ordregiver!$E$10)*IF($B140<=Ordregiver!$E$10,1,0) -> 
B141: 6 | C141: =IF(Ordregiver!$E$66="Ja",VLOOKUP(Ordregiver!$E$9-1+'IB - Hospitalstekstiler'!$B117,'Standard-fremskrivning '!$C$12:$V$40,17,FALSE),Ordregiver!$E$68) -> 3.15 | F141: =(Ordregiver!$E$19)*(Tilbudsgiver!E$19/1000)*(Ordregiver!$E$27/Ordregiver!$E$10)*IF($B141<=Ordregiver!$E$10,1,0) ->  | H141: =(Ordregiver!$E$19)*(Tilbudsgiver!G$19/1000)*(Ordregiver!$E$27/Ordregiver!$E$10)*IF($B141<=Ordregiver!$E$10,1,0) ->  | J141: =(Ordregiver!$E$19)*(Tilbudsgiver!I$19/1000)*(Ordregiver!$E$27/Ordregiver!$E$10)*IF($B141<=Ordregiver!$E$10,1,0) ->  | L141: =(Ordregiver!$E$19)*(Tilbudsgiver!K$19/1000)*(Ordregiver!$E$27/Ordregiver!$E$10)*IF($B141<=Ordregiver!$E$10,1,0) ->  | N141: =(Ordregiver!$E$19)*(Tilbudsgiver!M$19/1000)*(Ordregiver!$E$27/Ordregiver!$E$10)*IF($B141<=Ordregiver!$E$10,1,0) ->  | P141: =(Ordregiver!$E$19)*(Tilbudsgiver!O$19/1000)*(Ordregiver!$E$27/Ordregiver!$E$10)*IF($B141<=Ordregiver!$E$10,1,0) ->  | R141: =(Ordregiver!$E$19)*(Tilbudsgiver!Q$19/1000)*(Ordregiver!$E$27/Ordregiver!$E$10)*IF($B141<=Ordregiver!$E$10,1,0) ->  | T141: =(Ordregiver!$E$19)*(Tilbudsgiver!S$19/1000)*(Ordregiver!$E$27/Ordregiver!$E$10)*IF($B141<=Ordregiver!$E$10,1,0) -> 
B142: 7 | C142: =IF(Ordregiver!$E$66="Ja",VLOOKUP(Ordregiver!$E$9-1+'IB - Hospitalstekstiler'!$B118,'Standard-fremskrivning '!$C$12:$V$40,17,FALSE),Ordregiver!$E$68) -> 3.15 | F142: =(Ordregiver!$E$19)*(Tilbudsgiver!E$19/1000)*(Ordregiver!$E$27/Ordregiver!$E$10)*IF($B142<=Ordregiver!$E$10,1,0) ->  | H142: =(Ordregiver!$E$19)*(Tilbudsgiver!G$19/1000)*(Ordregiver!$E$27/Ordregiver!$E$10)*IF($B142<=Ordregiver!$E$10,1,0) ->  | J142: =(Ordregiver!$E$19)*(Tilbudsgiver!I$19/1000)*(Ordregiver!$E$27/Ordregiver!$E$10)*IF($B142<=Ordregiver!$E$10,1,0) ->  | L142: =(Ordregiver!$E$19)*(Tilbudsgiver!K$19/1000)*(Ordregiver!$E$27/Ordregiver!$E$10)*IF($B142<=Ordregiver!$E$10,1,0) ->  | N142: =(Ordregiver!$E$19)*(Tilbudsgiver!M$19/1000)*(Ordregiver!$E$27/Ordregiver!$E$10)*IF($B142<=Ordregiver!$E$10,1,0) ->  | P142: =(Ordregiver!$E$19)*(Tilbudsgiver!O$19/1000)*(Ordregiver!$E$27/Ordregiver!$E$10)*IF($B142<=Ordregiver!$E$10,1,0) ->  | R142: =(Ordregiver!$E$19)*(Tilbudsgiver!Q$19/1000)*(Ordregiver!$E$27/Ordregiver!$E$10)*IF($B142<=Ordregiver!$E$10,1,0) ->  | T142: =(Ordregiver!$E$19)*(Tilbudsgiver!S$19/1000)*(Ordregiver!$E$27/Ordregiver!$E$10)*IF($B142<=Ordregiver!$E$10,1,0) -> 
B143: 8 | C143: =IF(Ordregiver!$E$66="Ja",VLOOKUP(Ordregiver!$E$9-1+'IB - Hospitalstekstiler'!$B119,'Standard-fremskrivning '!$C$12:$V$40,17,FALSE),Ordregiver!$E$68) -> 3.15 | F143: =(Ordregiver!$E$19)*(Tilbudsgiver!E$19/1000)*(Ordregiver!$E$27/Ordregiver!$E$10)*IF($B143<=Ordregiver!$E$10,1,0) ->  | H143: =(Ordregiver!$E$19)*(Tilbudsgiver!G$19/1000)*(Ordregiver!$E$27/Ordregiver!$E$10)*IF($B143<=Ordregiver!$E$10,1,0) ->  | J143: =(Ordregiver!$E$19)*(Tilbudsgiver!I$19/1000)*(Ordregiver!$E$27/Ordregiver!$E$10)*IF($B143<=Ordregiver!$E$10,1,0) ->  | L143: =(Ordregiver!$E$19)*(Tilbudsgiver!K$19/1000)*(Ordregiver!$E$27/Ordregiver!$E$10)*IF($B143<=Ordregiver!$E$10,1,0) ->  | N143: =(Ordregiver!$E$19)*(Tilbudsgiver!M$19/1000)*(Ordregiver!$E$27/Ordregiver!$E$10)*IF($B143<=Ordregiver!$E$10,1,0) ->  | P143: =(Ordregiver!$E$19)*(Tilbudsgiver!O$19/1000)*(Ordregiver!$E$27/Ordregiver!$E$10)*IF($B143<=Ordregiver!$E$10,1,0) ->  | R143: =(Ordregiver!$E$19)*(Tilbudsgiver!Q$19/1000)*(Ordregiver!$E$27/Ordregiver!$E$10)*IF($B143<=Ordregiver!$E$10,1,0) ->  | T143: =(Ordregiver!$E$19)*(Tilbudsgiver!S$19/1000)*(Ordregiver!$E$27/Ordregiver!$E$10)*IF($B143<=Ordregiver!$E$10,1,0) -> 
B144: 9 | C144: =IF(Ordregiver!$E$66="Ja",VLOOKUP(Ordregiver!$E$9-1+'IB - Hospitalstekstiler'!$B120,'Standard-fremskrivning '!$C$12:$V$40,17,FALSE),Ordregiver!$E$68) -> 3.15 | F144: =(Ordregiver!$E$19)*(Tilbudsgiver!E$19/1000)*(Ordregiver!$E$27/Ordregiver!$E$10)*IF($B144<=Ordregiver!$E$10,1,0) ->  | H144: =(Ordregiver!$E$19)*(Tilbudsgiver!G$19/1000)*(Ordregiver!$E$27/Ordregiver!$E$10)*IF($B144<=Ordregiver!$E$10,1,0) ->  | J144: =(Ordregiver!$E$19)*(Tilbudsgiver!I$19/1000)*(Ordregiver!$E$27/Ordregiver!$E$10)*IF($B144<=Ordregiver!$E$10,1,0) ->  | L144: =(Ordregiver!$E$19)*(Tilbudsgiver!K$19/1000)*(Ordregiver!$E$27/Ordregiver!$E$10)*IF($B144<=Ordregiver!$E$10,1,0) ->  | N144: =(Ordregiver!$E$19)*(Tilbudsgiver!M$19/1000)*(Ordregiver!$E$27/Ordregiver!$E$10)*IF($B144<=Ordregiver!$E$10,1,0) ->  | P144: =(Ordregiver!$E$19)*(Tilbudsgiver!O$19/1000)*(Ordregiver!$E$27/Ordregiver!$E$10)*IF($B144<=Ordregiver!$E$10,1,0) ->  | R144: =(Ordregiver!$E$19)*(Tilbudsgiver!Q$19/1000)*(Ordregiver!$E$27/Ordregiver!$E$10)*IF($B144<=Ordregiver!$E$10,1,0) ->  | T144: =(Ordregiver!$E$19)*(Tilbudsgiver!S$19/1000)*(Ordregiver!$E$27/Ordregiver!$E$10)*IF($B144<=Ordregiver!$E$10,1,0) -> 
B145: 10 | C145: =IF(Ordregiver!$E$66="Ja",VLOOKUP(Ordregiver!$E$9-1+'IB - Hospitalstekstiler'!$B121,'Standard-fremskrivning '!$C$12:$V$40,17,FALSE),Ordregiver!$E$68) -> 3.15 | F145: =(Ordregiver!$E$19)*(Tilbudsgiver!E$19/1000)*(Ordregiver!$E$27/Ordregiver!$E$10)*IF($B145<=Ordregiver!$E$10,1,0) ->  | H145: =(Ordregiver!$E$19)*(Tilbudsgiver!G$19/1000)*(Ordregiver!$E$27/Ordregiver!$E$10)*IF($B145<=Ordregiver!$E$10,1,0) ->  | J145: =(Ordregiver!$E$19)*(Tilbudsgiver!I$19/1000)*(Ordregiver!$E$27/Ordregiver!$E$10)*IF($B145<=Ordregiver!$E$10,1,0) ->  | L145: =(Ordregiver!$E$19)*(Tilbudsgiver!K$19/1000)*(Ordregiver!$E$27/Ordregiver!$E$10)*IF($B145<=Ordregiver!$E$10,1,0) ->  | N145: =(Ordregiver!$E$19)*(Tilbudsgiver!M$19/1000)*(Ordregiver!$E$27/Ordregiver!$E$10)*IF($B145<=Ordregiver!$E$10,1,0) ->  | P145: =(Ordregiver!$E$19)*(Tilbudsgiver!O$19/1000)*(Ordregiver!$E$27/Ordregiver!$E$10)*IF($B145<=Ordregiver!$E$10,1,0) ->  | R145: =(Ordregiver!$E$19)*(Tilbudsgiver!Q$19/1000)*(Ordregiver!$E$27/Ordregiver!$E$10)*IF($B145<=Ordregiver!$E$10,1,0) ->  | T145: =(Ordregiver!$E$19)*(Tilbudsgiver!S$19/1000)*(Ordregiver!$E$27/Ordregiver!$E$10)*IF($B145<=Ordregiver!$E$10,1,0) -> 
B146: 11 | C146: =IF(Ordregiver!$E$66="Ja",VLOOKUP(Ordregiver!$E$9-1+'IB - Hospitalstekstiler'!$B122,'Standard-fremskrivning '!$C$12:$V$40,17,FALSE),Ordregiver!$E$68) -> 3.15 | F146: =(Ordregiver!$E$19)*(Tilbudsgiver!E$19/1000)*(Ordregiver!$E$27/Ordregiver!$E$10)*IF($B146<=Ordregiver!$E$10,1,0) ->  | H146: =(Ordregiver!$E$19)*(Tilbudsgiver!G$19/1000)*(Ordregiver!$E$27/Ordregiver!$E$10)*IF($B146<=Ordregiver!$E$10,1,0) ->  | J146: =(Ordregiver!$E$19)*(Tilbudsgiver!I$19/1000)*(Ordregiver!$E$27/Ordregiver!$E$10)*IF($B146<=Ordregiver!$E$10,1,0) ->  | L146: =(Ordregiver!$E$19)*(Tilbudsgiver!K$19/1000)*(Ordregiver!$E$27/Ordregiver!$E$10)*IF($B146<=Ordregiver!$E$10,1,0) ->  | N146: =(Ordregiver!$E$19)*(Tilbudsgiver!M$19/1000)*(Ordregiver!$E$27/Ordregiver!$E$10)*IF($B146<=Ordregiver!$E$10,1,0) ->  | P146: =(Ordregiver!$E$19)*(Tilbudsgiver!O$19/1000)*(Ordregiver!$E$27/Ordregiver!$E$10)*IF($B146<=Ordregiver!$E$10,1,0) ->  | R146: =(Ordregiver!$E$19)*(Tilbudsgiver!Q$19/1000)*(Ordregiver!$E$27/Ordregiver!$E$10)*IF($B146<=Ordregiver!$E$10,1,0) ->  | T146: =(Ordregiver!$E$19)*(Tilbudsgiver!S$19/1000)*(Ordregiver!$E$27/Ordregiver!$E$10)*IF($B146<=Ordregiver!$E$10,1,0) -> 
B147: 12 | C147: =IF(Ordregiver!$E$66="Ja",VLOOKUP(Ordregiver!$E$9-1+'IB - Hospitalstekstiler'!$B123,'Standard-fremskrivning '!$C$12:$V$40,17,FALSE),Ordregiver!$E$68) -> 3.15 | F147: =(Ordregiver!$E$19)*(Tilbudsgiver!E$19/1000)*(Ordregiver!$E$27/Ordregiver!$E$10)*IF($B147<=Ordregiver!$E$10,1,0) ->  | H147: =(Ordregiver!$E$19)*(Tilbudsgiver!G$19/1000)*(Ordregiver!$E$27/Ordregiver!$E$10)*IF($B147<=Ordregiver!$E$10,1,0) ->  | J147: =(Ordregiver!$E$19)*(Tilbudsgiver!I$19/1000)*(Ordregiver!$E$27/Ordregiver!$E$10)*IF($B147<=Ordregiver!$E$10,1,0) ->  | L147: =(Ordregiver!$E$19)*(Tilbudsgiver!K$19/1000)*(Ordregiver!$E$27/Ordregiver!$E$10)*IF($B147<=Ordregiver!$E$10,1,0) ->  | N147: =(Ordregiver!$E$19)*(Tilbudsgiver!M$19/1000)*(Ordregiver!$E$27/Ordregiver!$E$10)*IF($B147<=Ordregiver!$E$10,1,0) ->  | P147: =(Ordregiver!$E$19)*(Tilbudsgiver!O$19/1000)*(Ordregiver!$E$27/Ordregiver!$E$10)*IF($B147<=Ordregiver!$E$10,1,0) ->  | R147: =(Ordregiver!$E$19)*(Tilbudsgiver!Q$19/1000)*(Ordregiver!$E$27/Ordregiver!$E$10)*IF($B147<=Ordregiver!$E$10,1,0) ->  | T147: =(Ordregiver!$E$19)*(Tilbudsgiver!S$19/1000)*(Ordregiver!$E$27/Ordregiver!$E$10)*IF($B147<=Ordregiver!$E$10,1,0) -> 
B148: 13 | C148: =IF(Ordregiver!$E$66="Ja",VLOOKUP(Ordregiver!$E$9-1+'IB - Hospitalstekstiler'!$B124,'Standard-fremskrivning '!$C$12:$V$40,17,FALSE),Ordregiver!$E$68) -> 3.15 | F148: =(Ordregiver!$E$19)*(Tilbudsgiver!E$19/1000)*(Ordregiver!$E$27/Ordregiver!$E$10)*IF($B148<=Ordregiver!$E$10,1,0) ->  | H148: =(Ordregiver!$E$19)*(Tilbudsgiver!G$19/1000)*(Ordregiver!$E$27/Ordregiver!$E$10)*IF($B148<=Ordregiver!$E$10,1,0) ->  | J148: =(Ordregiver!$E$19)*(Tilbudsgiver!I$19/1000)*(Ordregiver!$E$27/Ordregiver!$E$10)*IF($B148<=Ordregiver!$E$10,1,0) ->  | L148: =(Ordregiver!$E$19)*(Tilbudsgiver!K$19/1000)*(Ordregiver!$E$27/Ordregiver!$E$10)*IF($B148<=Ordregiver!$E$10,1,0) ->  | N148: =(Ordregiver!$E$19)*(Tilbudsgiver!M$19/1000)*(Ordregiver!$E$27/Ordregiver!$E$10)*IF($B148<=Ordregiver!$E$10,1,0) ->  | P148: =(Ordregiver!$E$19)*(Tilbudsgiver!O$19/1000)*(Ordregiver!$E$27/Ordregiver!$E$10)*IF($B148<=Ordregiver!$E$10,1,0) ->  | R148: =(Ordregiver!$E$19)*(Tilbudsgiver!Q$19/1000)*(Ordregiver!$E$27/Ordregiver!$E$10)*IF($B148<=Ordregiver!$E$10,1,0) ->  | T148: =(Ordregiver!$E$19)*(Tilbudsgiver!S$19/1000)*(Ordregiver!$E$27/Ordregiver!$E$10)*IF($B148<=Ordregiver!$E$10,1,0) -> 
B149: 14 | C149: =IF(Ordregiver!$E$66="Ja",VLOOKUP(Ordregiver!$E$9-1+'IB - Hospitalstekstiler'!$B125,'Standard-fremskrivning '!$C$12:$V$40,17,FALSE),Ordregiver!$E$68) -> 3.15 | F149: =(Ordregiver!$E$19)*(Tilbudsgiver!E$19/1000)*(Ordregiver!$E$27/Ordregiver!$E$10)*IF($B149<=Ordregiver!$E$10,1,0) ->  | H149: =(Ordregiver!$E$19)*(Tilbudsgiver!G$19/1000)*(Ordregiver!$E$27/Ordregiver!$E$10)*IF($B149<=Ordregiver!$E$10,1,0) ->  | J149: =(Ordregiver!$E$19)*(Tilbudsgiver!I$19/1000)*(Ordregiver!$E$27/Ordregiver!$E$10)*IF($B149<=Ordregiver!$E$10,1,0) ->  | L149: =(Ordregiver!$E$19)*(Tilbudsgiver!K$19/1000)*(Ordregiver!$E$27/Ordregiver!$E$10)*IF($B149<=Ordregiver!$E$10,1,0) ->  | N149: =(Ordregiver!$E$19)*(Tilbudsgiver!M$19/1000)*(Ordregiver!$E$27/Ordregiver!$E$10)*IF($B149<=Ordregiver!$E$10,1,0) ->  | P149: =(Ordregiver!$E$19)*(Tilbudsgiver!O$19/1000)*(Ordregiver!$E$27/Ordregiver!$E$10)*IF($B149<=Ordregiver!$E$10,1,0) ->  | R149: =(Ordregiver!$E$19)*(Tilbudsgiver!Q$19/1000)*(Ordregiver!$E$27/Ordregiver!$E$10)*IF($B149<=Ordregiver!$E$10,1,0) ->  | T149: =(Ordregiver!$E$19)*(Tilbudsgiver!S$19/1000)*(Ordregiver!$E$27/Ordregiver!$E$10)*IF($B149<=Ordregiver!$E$10,1,0) -> 
B150: 15 | C150: =IF(Ordregiver!$E$66="Ja",VLOOKUP(Ordregiver!$E$9-1+'IB - Hospitalstekstiler'!$B126,'Standard-fremskrivning '!$C$12:$V$40,17,FALSE),Ordregiver!$E$68) -> 3.15 | F150: =(Ordregiver!$E$19)*(Tilbudsgiver!E$19/1000)*(Ordregiver!$E$27/Ordregiver!$E$10)*IF($B150<=Ordregiver!$E$10,1,0) ->  | H150: =(Ordregiver!$E$19)*(Tilbudsgiver!G$19/1000)*(Ordregiver!$E$27/Ordregiver!$E$10)*IF($B150<=Ordregiver!$E$10,1,0) ->  | J150: =(Ordregiver!$E$19)*(Tilbudsgiver!I$19/1000)*(Ordregiver!$E$27/Ordregiver!$E$10)*IF($B150<=Ordregiver!$E$10,1,0) ->  | L150: =(Ordregiver!$E$19)*(Tilbudsgiver!K$19/1000)*(Ordregiver!$E$27/Ordregiver!$E$10)*IF($B150<=Ordregiver!$E$10,1,0) ->  | N150: =(Ordregiver!$E$19)*(Tilbudsgiver!M$19/1000)*(Ordregiver!$E$27/Ordregiver!$E$10)*IF($B150<=Ordregiver!$E$10,1,0) ->  | P150: =(Ordregiver!$E$19)*(Tilbudsgiver!O$19/1000)*(Ordregiver!$E$27/Ordregiver!$E$10)*IF($B150<=Ordregiver!$E$10,1,0) ->  | R150: =(Ordregiver!$E$19)*(Tilbudsgiver!Q$19/1000)*(Ordregiver!$E$27/Ordregiver!$E$10)*IF($B150<=Ordregiver!$E$10,1,0) ->  | T150: =(Ordregiver!$E$19)*(Tilbudsgiver!S$19/1000)*(Ordregiver!$E$27/Ordregiver!$E$10)*IF($B150<=Ordregiver!$E$10,1,0) -> 
B151: 16 | C151: =IF(Ordregiver!$E$66="Ja",VLOOKUP(Ordregiver!$E$9-1+'IB - Hospitalstekstiler'!$B127,'Standard-fremskrivning '!$C$12:$V$40,17,FALSE),Ordregiver!$E$68) -> 3.15 | F151: =(Ordregiver!$E$19)*(Tilbudsgiver!E$19/1000)*(Ordregiver!$E$27/Ordregiver!$E$10)*IF($B151<=Ordregiver!$E$10,1,0) ->  | H151: =(Ordregiver!$E$19)*(Tilbudsgiver!G$19/1000)*(Ordregiver!$E$27/Ordregiver!$E$10)*IF($B151<=Ordregiver!$E$10,1,0) ->  | J151: =(Ordregiver!$E$19)*(Tilbudsgiver!I$19/1000)*(Ordregiver!$E$27/Ordregiver!$E$10)*IF($B151<=Ordregiver!$E$10,1,0) ->  | L151: =(Ordregiver!$E$19)*(Tilbudsgiver!K$19/1000)*(Ordregiver!$E$27/Ordregiver!$E$10)*IF($B151<=Ordregiver!$E$10,1,0) ->  | N151: =(Ordregiver!$E$19)*(Tilbudsgiver!M$19/1000)*(Ordregiver!$E$27/Ordregiver!$E$10)*IF($B151<=Ordregiver!$E$10,1,0) ->  | P151: =(Ordregiver!$E$19)*(Tilbudsgiver!O$19/1000)*(Ordregiver!$E$27/Ordregiver!$E$10)*IF($B151<=Ordregiver!$E$10,1,0) ->  | R151: =(Ordregiver!$E$19)*(Tilbudsgiver!Q$19/1000)*(Ordregiver!$E$27/Ordregiver!$E$10)*IF($B151<=Ordregiver!$E$10,1,0) ->  | T151: =(Ordregiver!$E$19)*(Tilbudsgiver!S$19/1000)*(Ordregiver!$E$27/Ordregiver!$E$10)*IF($B151<=Ordregiver!$E$10,1,0) -> 
B152: 17 | C152: =IF(Ordregiver!$E$66="Ja",VLOOKUP(Ordregiver!$E$9-1+'IB - Hospitalstekstiler'!$B128,'Standard-fremskrivning '!$C$12:$V$40,17,FALSE),Ordregiver!$E$68) -> 3.15 | F152: =(Ordregiver!$E$19)*(Tilbudsgiver!E$19/1000)*(Ordregiver!$E$27/Ordregiver!$E$10)*IF($B152<=Ordregiver!$E$10,1,0) ->  | G152: =(H152*$C152)/1000 ->  | H152: =(Ordregiver!$E$19)*(Tilbudsgiver!G$19/1000)*(Ordregiver!$E$27/Ordregiver!$E$10)*IF($B152<=Ordregiver!$E$10,1,0) ->  | I152: =(J152*$C152)/1000 ->  | J152: =(Ordregiver!$E$19)*(Tilbudsgiver!I$19/1000)*(Ordregiver!$E$27/Ordregiver!$E$10)*IF($B152<=Ordregiver!$E$10,1,0) ->  | K152: =(L152*$C152)/1000 ->  | L152: =(Ordregiver!$E$19)*(Tilbudsgiver!K$19/1000)*(Ordregiver!$E$27/Ordregiver!$E$10)*IF($B152<=Ordregiver!$E$10,1,0) ->  | M152: =(N152*$C152)/1000 ->  | N152: =(Ordregiver!$E$19)*(Tilbudsgiver!M$19/1000)*(Ordregiver!$E$27/Ordregiver!$E$10)*IF($B152<=Ordregiver!$E$10,1,0) ->  | O152: =(P152*$C152)/1000 ->  | P152: =(Ordregiver!$E$19)*(Tilbudsgiver!O$19/1000)*(Ordregiver!$E$27/Ordregiver!$E$10)*IF($B152<=Ordregiver!$E$10,1,0) ->  | Q152: =(R152*$C152)/1000 ->  | R152: =(Ordregiver!$E$19)*(Tilbudsgiver!Q$19/1000)*(Ordregiver!$E$27/Ordregiver!$E$10)*IF($B152<=Ordregiver!$E$10,1,0) ->  | S152: =(T152*$C152)/1000 ->  | T152: =(Ordregiver!$E$19)*(Tilbudsgiver!S$19/1000)*(Ordregiver!$E$27/Ordregiver!$E$10)*IF($B152<=Ordregiver!$E$10,1,0) -> 
B153: 18 | C153: =IF(Ordregiver!$E$66="Ja",VLOOKUP(Ordregiver!$E$9-1+'IB - Hospitalstekstiler'!$B129,'Standard-fremskrivning '!$C$12:$V$40,17,FALSE),Ordregiver!$E$68) -> 3.15 | F153: =(Ordregiver!$E$19)*(Tilbudsgiver!E$19/1000)*(Ordregiver!$E$27/Ordregiver!$E$10)*IF($B153<=Ordregiver!$E$10,1,0) ->  | H153: =(Ordregiver!$E$19)*(Tilbudsgiver!G$19/1000)*(Ordregiver!$E$27/Ordregiver!$E$10)*IF($B153<=Ordregiver!$E$10,1,0) ->  | J153: =(Ordregiver!$E$19)*(Tilbudsgiver!I$19/1000)*(Ordregiver!$E$27/Ordregiver!$E$10)*IF($B153<=Ordregiver!$E$10,1,0) ->  | L153: =(Ordregiver!$E$19)*(Tilbudsgiver!K$19/1000)*(Ordregiver!$E$27/Ordregiver!$E$10)*IF($B153<=Ordregiver!$E$10,1,0) ->  | N153: =(Ordregiver!$E$19)*(Tilbudsgiver!M$19/1000)*(Ordregiver!$E$27/Ordregiver!$E$10)*IF($B153<=Ordregiver!$E$10,1,0) ->  | P153: =(Ordregiver!$E$19)*(Tilbudsgiver!O$19/1000)*(Ordregiver!$E$27/Ordregiver!$E$10)*IF($B153<=Ordregiver!$E$10,1,0) ->  | R153: =(Ordregiver!$E$19)*(Tilbudsgiver!Q$19/1000)*(Ordregiver!$E$27/Ordregiver!$E$10)*IF($B153<=Ordregiver!$E$10,1,0) ->  | T153: =(Ordregiver!$E$19)*(Tilbudsgiver!S$19/1000)*(Ordregiver!$E$27/Ordregiver!$E$10)*IF($B153<=Ordregiver!$E$10,1,0) -> 
B154: 19 | C154: =IF(Ordregiver!$E$66="Ja",VLOOKUP(Ordregiver!$E$9-1+'IB - Hospitalstekstiler'!$B130,'Standard-fremskrivning '!$C$12:$V$40,17,FALSE),Ordregiver!$E$68) -> 3.15 | F154: =(Ordregiver!$E$19)*(Tilbudsgiver!E$19/1000)*(Ordregiver!$E$27/Ordregiver!$E$10)*IF($B154<=Ordregiver!$E$10,1,0) ->  | H154: =(Ordregiver!$E$19)*(Tilbudsgiver!G$19/1000)*(Ordregiver!$E$27/Ordregiver!$E$10)*IF($B154<=Ordregiver!$E$10,1,0) ->  | J154: =(Ordregiver!$E$19)*(Tilbudsgiver!I$19/1000)*(Ordregiver!$E$27/Ordregiver!$E$10)*IF($B154<=Ordregiver!$E$10,1,0) ->  | L154: =(Ordregiver!$E$19)*(Tilbudsgiver!K$19/1000)*(Ordregiver!$E$27/Ordregiver!$E$10)*IF($B154<=Ordregiver!$E$10,1,0) ->  | N154: =(Ordregiver!$E$19)*(Tilbudsgiver!M$19/1000)*(Ordregiver!$E$27/Ordregiver!$E$10)*IF($B154<=Ordregiver!$E$10,1,0) ->  | P154: =(Ordregiver!$E$19)*(Tilbudsgiver!O$19/1000)*(Ordregiver!$E$27/Ordregiver!$E$10)*IF($B154<=Ordregiver!$E$10,1,0) ->  | R154: =(Ordregiver!$E$19)*(Tilbudsgiver!Q$19/1000)*(Ordregiver!$E$27/Ordregiver!$E$10)*IF($B154<=Ordregiver!$E$10,1,0) ->  | T154: =(Ordregiver!$E$19)*(Tilbudsgiver!S$19/1000)*(Ordregiver!$E$27/Ordregiver!$E$10)*IF($B154<=Ordregiver!$E$10,1,0) -> 
B155: 20 | C155: =IF(Ordregiver!$E$66="Ja",VLOOKUP(Ordregiver!$E$9-1+'IB - Hospitalstekstiler'!$B131,'Standard-fremskrivning '!$C$12:$V$40,17,FALSE),Ordregiver!$E$68) -> 3.15 | F155: =(Ordregiver!$E$19)*(Tilbudsgiver!E$19/1000)*(Ordregiver!$E$27/Ordregiver!$E$10)*IF($B155<=Ordregiver!$E$10,1,0) ->  | H155: =(Ordregiver!$E$19)*(Tilbudsgiver!G$19/1000)*(Ordregiver!$E$27/Ordregiver!$E$10)*IF($B155<=Ordregiver!$E$10,1,0) ->  | J155: =(Ordregiver!$E$19)*(Tilbudsgiver!I$19/1000)*(Ordregiver!$E$27/Ordregiver!$E$10)*IF($B155<=Ordregiver!$E$10,1,0) ->  | L155: =(Ordregiver!$E$19)*(Tilbudsgiver!K$19/1000)*(Ordregiver!$E$27/Ordregiver!$E$10)*IF($B155<=Ordregiver!$E$10,1,0) ->  | N155: =(Ordregiver!$E$19)*(Tilbudsgiver!M$19/1000)*(Ordregiver!$E$27/Ordregiver!$E$10)*IF($B155<=Ordregiver!$E$10,1,0) ->  | P155: =(Ordregiver!$E$19)*(Tilbudsgiver!O$19/1000)*(Ordregiver!$E$27/Ordregiver!$E$10)*IF($B155<=Ordregiver!$E$10,1,0) ->  | R155: =(Ordregiver!$E$19)*(Tilbudsgiver!Q$19/1000)*(Ordregiver!$E$27/Ordregiver!$E$10)*IF($B155<=Ordregiver!$E$10,1,0) ->  | T155: =(Ordregiver!$E$19)*(Tilbudsgiver!S$19/1000)*(Ordregiver!$E$27/Ordregiver!$E$10)*IF($B155<=Ordregiver!$E$10,1,0) -> 
A157: Eksternalitetsmodul - Samfundsøkonomiske omkostninger (kr.)
B158: År indeks | C158: Samfundsmæssig omkostningsfaktor (DKK) | E158: =E87&" - Samfundsøkonomiske omkostninger (kr.)" -> PRODUKT 1 - Samlet udledning (tons CO2e/år) - Samfundsøkonomiske omkostninger (kr.) | F158: =E87&" - Samlet udledning (tons CO2e)" -> PRODUKT 1 - Samlet udledning (tons CO2e/år) - Samlet udledning (tons CO2e) | G158: =G87&" - Samfundsøkonomiske omkostninger (kr.)" -> PRODUKT 2 - Samlet udledning (tons CO2e/år) - Samfundsøkonomiske omkostninger (kr.) | H158: =G87&" - Samlet udledning (tons CO2e)" -> PRODUKT 2 - Samlet udledning (tons CO2e/år) - Samlet udledning (tons CO2e) | I158: =I87&" - Samfundsøkonomiske omkostninger (kr.)" -> PRODUKT 3 - Samlet udledning (tons CO2e/år) - Samfundsøkonomiske omkostninger (kr.) | J158: =I87&" - Samlet udledning (tons CO2e)" -> PRODUKT 3 - Samlet udledning (tons CO2e/år) - Samlet udledning (tons CO2e) | K158: =K87&" - Samfundsøkonomiske omkostninger (kr.)" -> PRODUKT 4 - Samlet udledning (tons CO2e/år) - Samfundsøkonomiske omkostninger (kr.) | L158: =K87&" - Samlet udledning (tons CO2e)" -> PRODUKT 4 - Samlet udledning (tons CO2e/år) - Samlet udledning (tons CO2e) | M158: =M87&" - Samfundsøkonomiske omkostninger (kr.)" -> PRODUKT 5 - Samlet udledning (tons CO2e/år) - Samfundsøkonomiske omkostninger (kr.) | N158: =M87&" - Samlet udledning (tons CO2e)" -> PRODUKT 5 - Samlet udledning (tons CO2e/år) - Samlet udledning (tons CO2e) | O158: =O87&" - Samfundsøkonomiske omkostninger (kr.)" -> PRODUKT 6 - Samlet udledning (tons CO2e/år) - Samfundsøkonomiske omkostninger (kr.) | P158: =O87&" - Samlet udledning (tons CO2e)" -> PRODUKT 6 - Samlet udledning (tons CO2e/år) - Samlet udledning (tons CO2e) | Q158: =Q87&" - Samfundsøkonomiske omkostninger (kr.)" -> PRODUKT 7 - Samlet udledning (tons CO2e/år) - Samfundsøkonomiske omkostninger (kr.) | R158: =Q87&" - Samlet udledning (tons CO2e)" -> PRODUKT 7 - Samlet udledning (tons CO2e/år) - Samlet udledning (tons CO2e) | S158: =S87&" - Samfundsøkonomiske omkostninger (kr.)" -> PRODUKT 8 - Samlet udledning (tons CO2e/år) - Samfundsøkonomiske omkostninger (kr.) | T158: =S87&" - Samlet udledning (tons CO2e)" -> PRODUKT 8 - Samlet udledning (tons CO2e/år) - Samlet udledning (tons CO2e)
B159: 1 | C159: =IF(Ordregiver!$E$78="Ja",Ordregiver!$E$79,Ordregiver!$E$80) -> 1500 | E159: =F159*$C159*(1+Ordregiver!$E$14)^-($B159) ->  | F159: =E42+E65+E88+E112+E136 ->  | G159: =H159*$C159*(1+Ordregiver!$E$14)^-($B159) ->  | H159: =G42+G65+G88+G112+G136 ->  | I159: =J159*$C159*(1+Ordregiver!$E$14)^-($B159) ->  | J159: =I42+I65+I88+I112+I136 ->  | K159: =L159*$C159*(1+Ordregiver!$E$14)^-($B159) ->  | L159: =K42+K65+K88+K112+K136 ->  | M159: =N159*$C159*(1+Ordregiver!$E$14)^-($B159) ->  | N159: =M42+M65+M88+M112+M136 ->  | O159: =P159*$C159*(1+Ordregiver!$E$14)^-($B159) ->  | P159: =O42+O65+O88+O112+O136 ->  | Q159: =R159*$C159*(1+Ordregiver!$E$14)^-($B159) ->  | R159: =Q42+Q65+Q88+Q112+Q136 ->  | S159: =T159*$C159*(1+Ordregiver!$E$14)^-($B159) ->  | T159: =S42+S65+S88+S112+S136 -> 
B160: 2 | C160: =IF(Ordregiver!$E$78="Ja",Ordregiver!$E$79,Ordregiver!$E$80) -> 1500 | E160: =F160*$C160*(1+Ordregiver!$E$14)^-($B160) ->  | F160: =E43+E66+E89+E113+E137 ->  | G160: =H160*$C160*(1+Ordregiver!$E$14)^-($B160) ->  | I160: =J160*$C160*(1+Ordregiver!$E$14)^-($B160) ->  | K160: =L160*$C160*(1+Ordregiver!$E$14)^-($B160) ->  | M160: =N160*$C160*(1+Ordregiver!$E$14)^-($B160) ->  | O160: =P160*$C160*(1+Ordregiver!$E$14)^-($B160) ->  | Q160: =R160*$C160*(1+Ordregiver!$E$14)^-($B160) ->  | S160: =T160*$C160*(1+Ordregiver!$E$14)^-($B160) -> 
B161: 3 | C161: =IF(Ordregiver!$E$78="Ja",Ordregiver!$E$79,Ordregiver!$E$80) -> 1500 | E161: =F161*$C161*(1+Ordregiver!$E$14)^-($B161) ->  | G161: =H161*$C161*(1+Ordregiver!$E$14)^-($B161) ->  | I161: =J161*$C161*(1+Ordregiver!$E$14)^-($B161) ->  | K161: =L161*$C161*(1+Ordregiver!$E$14)^-($B161) ->  | M161: =N161*$C161*(1+Ordregiver!$E$14)^-($B161) ->  | O161: =P161*$C161*(1+Ordregiver!$E$14)^-($B161) ->  | Q161: =R161*$C161*(1+Ordregiver!$E$14)^-($B161) ->  | S161: =T161*$C161*(1+Ordregiver!$E$14)^-($B161) -> 
B162: 4 | C162: =IF(Ordregiver!$E$78="Ja",Ordregiver!$E$79,Ordregiver!$E$80) -> 1500 | E162: =F162*$C162*(1+Ordregiver!$E$14)^-($B162) ->  | G162: =H162*$C162*(1+Ordregiver!$E$14)^-($B162) ->  | I162: =J162*$C162*(1+Ordregiver!$E$14)^-($B162) ->  | K162: =L162*$C162*(1+Ordregiver!$E$14)^-($B162) ->  | M162: =N162*$C162*(1+Ordregiver!$E$14)^-($B162) ->  | O162: =P162*$C162*(1+Ordregiver!$E$14)^-($B162) ->  | Q162: =R162*$C162*(1+Ordregiver!$E$14)^-($B162) ->  | S162: =T162*$C162*(1+Ordregiver!$E$14)^-($B162) -> 
B163: 5 | C163: =IF(Ordregiver!$E$78="Ja",Ordregiver!$E$79,Ordregiver!$E$80) -> 1500 | E163: =F163*$C163*(1+Ordregiver!$E$14)^-($B163) ->  | G163: =H163*$C163*(1+Ordregiver!$E$14)^-($B163) ->  | I163: =J163*$C163*(1+Ordregiver!$E$14)^-($B163) ->  | K163: =L163*$C163*(1+Ordregiver!$E$14)^-($B163) ->  | M163: =N163*$C163*(1+Ordregiver!$E$14)^-($B163) ->  | O163: =P163*$C163*(1+Ordregiver!$E$14)^-($B163) ->  | Q163: =R163*$C163*(1+Ordregiver!$E$14)^-($B163) ->  | S163: =T163*$C163*(1+Ordregiver!$E$14)^-($B163) -> 
B164: 6 | C164: =IF(Ordregiver!$E$78="Ja",Ordregiver!$E$79,Ordregiver!$E$80) -> 1500 | E164: =F164*$C164*(1+Ordregiver!$E$14)^-($B164) ->  | G164: =H164*$C164*(1+Ordregiver!$E$14)^-($B164) ->  | I164: =J164*$C164*(1+Ordregiver!$E$14)^-($B164) ->  | K164: =L164*$C164*(1+Ordregiver!$E$14)^-($B164) ->  | M164: =N164*$C164*(1+Ordregiver!$E$14)^-($B164) ->  | O164: =P164*$C164*(1+Ordregiver!$E$14)^-($B164) ->  | Q164: =R164*$C164*(1+Ordregiver!$E$14)^-($B164) ->  | S164: =T164*$C164*(1+Ordregiver!$E$14)^-($B164) -> 
B165: 7 | C165: =IF(Ordregiver!$E$78="Ja",Ordregiver!$E$79,Ordregiver!$E$80) -> 1500 | E165: =F165*$C165*(1+Ordregiver!$E$14)^-($B165) ->  | G165: =H165*$C165*(1+Ordregiver!$E$14)^-($B165) ->  | I165: =J165*$C165*(1+Ordregiver!$E$14)^-($B165) ->  | K165: =L165*$C165*(1+Ordregiver!$E$14)^-($B165) ->  | M165: =N165*$C165*(1+Ordregiver!$E$14)^-($B165) ->  | O165: =P165*$C165*(1+Ordregiver!$E$14)^-($B165) ->  | Q165: =R165*$C165*(1+Ordregiver!$E$14)^-($B165) ->  | S165: =T165*$C165*(1+Ordregiver!$E$14)^-($B165) -> 
B166: 8 | C166: =IF(Ordregiver!$E$78="Ja",Ordregiver!$E$79,Ordregiver!$E$80) -> 1500 | E166: =F166*$C166*(1+Ordregiver!$E$14)^-($B166) ->  | G166: =H166*$C166*(1+Ordregiver!$E$14)^-($B166) ->  | I166: =J166*$C166*(1+Ordregiver!$E$14)^-($B166) ->  | K166: =L166*$C166*(1+Ordregiver!$E$14)^-($B166) ->  | M166: =N166*$C166*(1+Ordregiver!$E$14)^-($B166) ->  | O166: =P166*$C166*(1+Ordregiver!$E$14)^-($B166) ->  | Q166: =R166*$C166*(1+Ordregiver!$E$14)^-($B166) ->  | S166: =T166*$C166*(1+Ordregiver!$E$14)^-($B166) -> 
B167: 9 | C167: =IF(Ordregiver!$E$78="Ja",Ordregiver!$E$79,Ordregiver!$E$80) -> 1500 | E167: =F167*$C167*(1+Ordregiver!$E$14)^-($B167) ->  | G167: =H167*$C167*(1+Ordregiver!$E$14)^-($B167) ->  | I167: =J167*$C167*(1+Ordregiver!$E$14)^-($B167) ->  | K167: =L167*$C167*(1+Ordregiver!$E$14)^-($B167) ->  | M167: =N167*$C167*(1+Ordregiver!$E$14)^-($B167) ->  | O167: =P167*$C167*(1+Ordregiver!$E$14)^-($B167) ->  | Q167: =R167*$C167*(1+Ordregiver!$E$14)^-($B167) ->  | S167: =T167*$C167*(1+Ordregiver!$E$14)^-($B167) -> 
B168: 10 | C168: =IF(Ordregiver!$E$78="Ja",Ordregiver!$E$79,Ordregiver!$E$80) -> 1500 | E168: =F168*$C168*(1+Ordregiver!$E$14)^-($B168) ->  | G168: =H168*$C168*(1+Ordregiver!$E$14)^-($B168) ->  | I168: =J168*$C168*(1+Ordregiver!$E$14)^-($B168) ->  | K168: =L168*$C168*(1+Ordregiver!$E$14)^-($B168) ->  | M168: =N168*$C168*(1+Ordregiver!$E$14)^-($B168) ->  | O168: =P168*$C168*(1+Ordregiver!$E$14)^-($B168) ->  | Q168: =R168*$C168*(1+Ordregiver!$E$14)^-($B168) ->  | S168: =T168*$C168*(1+Ordregiver!$E$14)^-($B168) -> 
B169: 11 | C169: =IF(Ordregiver!$E$78="Ja",Ordregiver!$E$79,Ordregiver!$E$80) -> 1500 | E169: =F169*$C169*(1+Ordregiver!$E$14)^-($B169) ->  | G169: =H169*$C169*(1+Ordregiver!$E$14)^-($B169) ->  | I169: =J169*$C169*(1+Ordregiver!$E$14)^-($B169) ->  | K169: =L169*$C169*(1+Ordregiver!$E$14)^-($B169) ->  | M169: =N169*$C169*(1+Ordregiver!$E$14)^-($B169) ->  | O169: =P169*$C169*(1+Ordregiver!$E$14)^-($B169) ->  | Q169: =R169*$C169*(1+Ordregiver!$E$14)^-($B169) ->  | S169: =T169*$C169*(1+Ordregiver!$E$14)^-($B169) -> 
B170: 12 | C170: =IF(Ordregiver!$E$78="Ja",Ordregiver!$E$79,Ordregiver!$E$80) -> 1500 | E170: =F170*$C170*(1+Ordregiver!$E$14)^-($B170) ->  | G170: =H170*$C170*(1+Ordregiver!$E$14)^-($B170) ->  | I170: =J170*$C170*(1+Ordregiver!$E$14)^-($B170) ->  | K170: =L170*$C170*(1+Ordregiver!$E$14)^-($B170) ->  | M170: =N170*$C170*(1+Ordregiver!$E$14)^-($B170) ->  | O170: =P170*$C170*(1+Ordregiver!$E$14)^-($B170) ->  | Q170: =R170*$C170*(1+Ordregiver!$E$14)^-($B170) ->  | S170: =T170*$C170*(1+Ordregiver!$E$14)^-($B170) -> 
B171: 13 | C171: =IF(Ordregiver!$E$78="Ja",Ordregiver!$E$79,Ordregiver!$E$80) -> 1500 | E171: =F171*$C171*(1+Ordregiver!$E$14)^-($B171) ->  | G171: =H171*$C171*(1+Ordregiver!$E$14)^-($B171) ->  | I171: =J171*$C171*(1+Ordregiver!$E$14)^-($B171) ->  | K171: =L171*$C171*(1+Ordregiver!$E$14)^-($B171) ->  | M171: =N171*$C171*(1+Ordregiver!$E$14)^-($B171) ->  | O171: =P171*$C171*(1+Ordregiver!$E$14)^-($B171) ->  | Q171: =R171*$C171*(1+Ordregiver!$E$14)^-($B171) ->  | S171: =T171*$C171*(1+Ordregiver!$E$14)^-($B171) -> 
B172: 14 | C172: =IF(Ordregiver!$E$78="Ja",Ordregiver!$E$79,Ordregiver!$E$80) -> 1500 | E172: =F172*$C172*(1+Ordregiver!$E$14)^-($B172) ->  | G172: =H172*$C172*(1+Ordregiver!$E$14)^-($B172) ->  | I172: =J172*$C172*(1+Ordregiver!$E$14)^-($B172) ->  | K172: =L172*$C172*(1+Ordregiver!$E$14)^-($B172) ->  | M172: =N172*$C172*(1+Ordregiver!$E$14)^-($B172) ->  | O172: =P172*$C172*(1+Ordregiver!$E$14)^-($B172) ->  | Q172: =R172*$C172*(1+Ordregiver!$E$14)^-($B172) ->  | S172: =T172*$C172*(1+Ordregiver!$E$14)^-($B172) -> 
B173: 15 | C173: =IF(Ordregiver!$E$78="Ja",Ordregiver!$E$79,Ordregiver!$E$80) -> 1500 | E173: =F173*$C173*(1+Ordregiver!$E$14)^-($B173) ->  | G173: =H173*$C173*(1+Ordregiver!$E$14)^-($B173) ->  | I173: =J173*$C173*(1+Ordregiver!$E$14)^-($B173) ->  | K173: =L173*$C173*(1+Ordregiver!$E$14)^-($B173) ->  | M173: =N173*$C173*(1+Ordregiver!$E$14)^-($B173) ->  | O173: =P173*$C173*(1+Ordregiver!$E$14)^-($B173) ->  | Q173: =R173*$C173*(1+Ordregiver!$E$14)^-($B173) ->  | S173: =T173*$C173*(1+Ordregiver!$E$14)^-($B173) -> 
B174: 16 | C174: =IF(Ordregiver!$E$78="Ja",Ordregiver!$E$79,Ordregiver!$E$80) -> 1500 | E174: =F174*$C174*(1+Ordregiver!$E$14)^-($B174) ->  | G174: =H174*$C174*(1+Ordregiver!$E$14)^-($B174) ->  | I174: =J174*$C174*(1+Ordregiver!$E$14)^-($B174) ->  | K174: =L174*$C174*(1+Ordregiver!$E$14)^-($B174) ->  | M174: =N174*$C174*(1+Ordregiver!$E$14)^-($B174) ->  | O174: =P174*$C174*(1+Ordregiver!$E$14)^-($B174) ->  | Q174: =R174*$C174*(1+Ordregiver!$E$14)^-($B174) ->  | S174: =T174*$C174*(1+Ordregiver!$E$14)^-($B174) -> 
B175: 17 | C175: =IF(Ordregiver!$E$78="Ja",Ordregiver!$E$79,Ordregiver!$E$80) -> 1500 | E175: =F175*$C175*(1+Ordregiver!$E$14)^-($B175) ->  | G175: =H175*$C175*(1+Ordregiver!$E$14)^-($B175) ->  | H175: =G58+G81+G104+G128+G152 ->  | I175: =J175*$C175*(1+Ordregiver!$E$14)^-($B175) ->  | J175: =I58+I81+I104+I128+I152 ->  | K175: =L175*$C175*(1+Ordregiver!$E$14)^-($B175) ->  | L175: =K58+K81+K104+K128+K152 ->  | M175: =N175*$C175*(1+Ordregiver!$E$14)^-($B175) ->  | N175: =M58+M81+M104+M128+M152 ->  | O175: =P175*$C175*(1+Ordregiver!$E$14)^-($B175) ->  | P175: =O58+O81+O104+O128+O152 ->  | Q175: =R175*$C175*(1+Ordregiver!$E$14)^-($B175) ->  | R175: =Q58+Q81+Q104+Q128+Q152 ->  | S175: =T175*$C175*(1+Ordregiver!$E$14)^-($B175) -> 
B176: 18 | C176: =IF(Ordregiver!$E$78="Ja",Ordregiver!$E$79,Ordregiver!$E$80) -> 1500 | E176: =F176*$C176*(1+Ordregiver!$E$14)^-($B176) ->  | G176: =H176*$C176*(1+Ordregiver!$E$14)^-($B176) ->  | I176: =J176*$C176*(1+Ordregiver!$E$14)^-($B176) ->  | K176: =L176*$C176*(1+Ordregiver!$E$14)^-($B176) ->  | M176: =N176*$C176*(1+Ordregiver!$E$14)^-($B176) ->  | O176: =P176*$C176*(1+Ordregiver!$E$14)^-($B176) ->  | Q176: =R176*$C176*(1+Ordregiver!$E$14)^-($B176) ->  | S176: =T176*$C176*(1+Ordregiver!$E$14)^-($B176) -> 
B177: 19 | C177: =IF(Ordregiver!$E$78="Ja",Ordregiver!$E$79,Ordregiver!$E$80) -> 1500 | E177: =F177*$C177*(1+Ordregiver!$E$14)^-($B177) ->  | G177: =H177*$C177*(1+Ordregiver!$E$14)^-($B177) ->  | I177: =J177*$C177*(1+Ordregiver!$E$14)^-($B177) ->  | K177: =L177*$C177*(1+Ordregiver!$E$14)^-($B177) ->  | M177: =N177*$C177*(1+Ordregiver!$E$14)^-($B177) ->  | O177: =P177*$C177*(1+Ordregiver!$E$14)^-($B177) ->  | Q177: =R177*$C177*(1+Ordregiver!$E$14)^-($B177) ->  | S177: =T177*$C177*(1+Ordregiver!$E$14)^-($B177) -> 
B178: 20 | C178: =IF(Ordregiver!$E$78="Ja",Ordregiver!$E$79,Ordregiver!$E$80) -> 1500 | E178: =F178*$C178*(1+Ordregiver!$E$14)^-($B178) ->  | G178: =H178*$C178*(1+Ordregiver!$E$14)^-($B178) ->  | I178: =J178*$C178*(1+Ordregiver!$E$14)^-($B178) ->  | K178: =L178*$C178*(1+Ordregiver!$E$14)^-($B178) ->  | M178: =N178*$C178*(1+Ordregiver!$E$14)^-($B178) ->  | O178: =P178*$C178*(1+Ordregiver!$E$14)^-($B178) ->  | Q178: =R178*$C178*(1+Ordregiver!$E$14)^-($B178) ->  | S178: =T178*$C178*(1+Ordregiver!$E$14)^-($B178) -> 
A180: Akkumulerede omkostninger (graf)
B181: År indeks | C181: År indeks | E181: PRODUKT 1 | G181: PRODUKT 2 | I181: PRODUKT 3 | K181: PRODUKT 4 | M181: PRODUKT 5 | O181: PRODUKT 6 | Q181: PRODUKT 7 | S181: PRODUKT 8
B182: 1 | C182: =IF($B182<=Ordregiver!$E$10,B182,"") ->  | E182: =(Tilbudsgiver!E$37*Tilbudsgiver!E$16+E18)+IF(Ordregiver!$E$56="Ja",'IB - Hospitalstekstiler'!E159,0) ->  | G182: =(Tilbudsgiver!G$37*Tilbudsgiver!G$16+G18)+IF(Ordregiver!$E$56="Ja",'IB - Hospitalstekstiler'!G159,0) ->  | I182: =(Tilbudsgiver!I$37*Tilbudsgiver!I$16+I18)+IF(Ordregiver!$E$56="Ja",'IB - Hospitalstekstiler'!I159,0) ->  | K182: =(Tilbudsgiver!K$37*Tilbudsgiver!K$16+K18)+IF(Ordregiver!$E$56="Ja",'IB - Hospitalstekstiler'!K159,0) ->  | M182: =(Tilbudsgiver!M$37*Tilbudsgiver!M$16+M18)+IF(Ordregiver!$E$56="Ja",'IB - Hospitalstekstiler'!M159,0) ->  | O182: =(Tilbudsgiver!O$37*Tilbudsgiver!O$16+O18)+IF(Ordregiver!$E$56="Ja",'IB - Hospitalstekstiler'!O159,0) ->  | Q182: =(Tilbudsgiver!Q$37*Tilbudsgiver!Q$16+Q18)+IF(Ordregiver!$E$56="Ja",'IB - Hospitalstekstiler'!Q159,0) ->  | S182: =(Tilbudsgiver!S$37*Tilbudsgiver!S$16+S18)+IF(Ordregiver!$E$56="Ja",'IB - Hospitalstekstiler'!S159,0) -> 
B183: 2 | C183: =IF($B183<=Ordregiver!$E$10,B183,"") ->  | E183: =(E182+E19)+IF(Ordregiver!$E$56="Ja",'IB - Hospitalstekstiler'!E160,0) ->  | G183: =(G182+G19)+IF(Ordregiver!$E$56="Ja",'IB - Hospitalstekstiler'!G160,0) ->  | I183: =(I182+I19)+IF(Ordregiver!$E$56="Ja",'IB - Hospitalstekstiler'!I160,0) ->  | K183: =(K182+K19)+IF(Ordregiver!$E$56="Ja",'IB - Hospitalstekstiler'!K160,0) ->  | M183: =(M182+M19)+IF(Ordregiver!$E$56="Ja",'IB - Hospitalstekstiler'!M160,0) ->  | O183: =(O182+O19)+IF(Ordregiver!$E$56="Ja",'IB - Hospitalstekstiler'!O160,0) ->  | Q183: =(Q182+Q19)+IF(Ordregiver!$E$56="Ja",'IB - Hospitalstekstiler'!Q160,0) ->  | S183: =(S182+S19)+IF(Ordregiver!$E$56="Ja",'IB - Hospitalstekstiler'!S160,0) -> 
B184: 3 | C184: =IF($B184<=Ordregiver!$E$10,B184,"") ->  | E184: =(E183+E20)+IF(Ordregiver!$E$56="Ja",'IB - Hospitalstekstiler'!E161,0) ->  | G184: =(G183+G20)+IF(Ordregiver!$E$56="Ja",'IB - Hospitalstekstiler'!G161,0) ->  | I184: =(I183+I20)+IF(Ordregiver!$E$56="Ja",'IB - Hospitalstekstiler'!I161,0) ->  | K184: =(K183+K20)+IF(Ordregiver!$E$56="Ja",'IB - Hospitalstekstiler'!K161,0) ->  | M184: =(M183+M20)+IF(Ordregiver!$E$56="Ja",'IB - Hospitalstekstiler'!M161,0) ->  | O184: =(O183+O20)+IF(Ordregiver!$E$56="Ja",'IB - Hospitalstekstiler'!O161,0) ->  | Q184: =(Q183+Q20)+IF(Ordregiver!$E$56="Ja",'IB - Hospitalstekstiler'!Q161,0) ->  | S184: =(S183+S20)+IF(Ordregiver!$E$56="Ja",'IB - Hospitalstekstiler'!S161,0) -> 
B185: 4 | C185: =IF($B185<=Ordregiver!$E$10,B185,"") ->  | E185: =(E184+E21)+IF(Ordregiver!$E$56="Ja",'IB - Hospitalstekstiler'!E162,0) ->  | G185: =(G184+G21)+IF(Ordregiver!$E$56="Ja",'IB - Hospitalstekstiler'!G162,0) ->  | I185: =(I184+I21)+IF(Ordregiver!$E$56="Ja",'IB - Hospitalstekstiler'!I162,0) ->  | K185: =(K184+K21)+IF(Ordregiver!$E$56="Ja",'IB - Hospitalstekstiler'!K162,0) ->  | M185: =(M184+M21)+IF(Ordregiver!$E$56="Ja",'IB - Hospitalstekstiler'!M162,0) ->  | O185: =(O184+O21)+IF(Ordregiver!$E$56="Ja",'IB - Hospitalstekstiler'!O162,0) ->  | Q185: =(Q184+Q21)+IF(Ordregiver!$E$56="Ja",'IB - Hospitalstekstiler'!Q162,0) ->  | S185: =(S184+S21)+IF(Ordregiver!$E$56="Ja",'IB - Hospitalstekstiler'!S162,0) -> 
B186: 5 | C186: =IF($B186<=Ordregiver!$E$10,B186,"") ->  | E186: =(E185+E22)+IF(Ordregiver!$E$56="Ja",'IB - Hospitalstekstiler'!E163,0) ->  | G186: =(G185+G22)+IF(Ordregiver!$E$56="Ja",'IB - Hospitalstekstiler'!G163,0) ->  | I186: =(I185+I22)+IF(Ordregiver!$E$56="Ja",'IB - Hospitalstekstiler'!I163,0) ->  | K186: =(K185+K22)+IF(Ordregiver!$E$56="Ja",'IB - Hospitalstekstiler'!K163,0) ->  | M186: =(M185+M22)+IF(Ordregiver!$E$56="Ja",'IB - Hospitalstekstiler'!M163,0) ->  | O186: =(O185+O22)+IF(Ordregiver!$E$56="Ja",'IB - Hospitalstekstiler'!O163,0) ->  | Q186: =(Q185+Q22)+IF(Ordregiver!$E$56="Ja",'IB - Hospitalstekstiler'!Q163,0) ->  | S186: =(S185+S22)+IF(Ordregiver!$E$56="Ja",'IB - Hospitalstekstiler'!S163,0) -> 
B187: 6 | C187: =IF($B187<=Ordregiver!$E$10,B187,"") ->  | E187: =(E186+E23)+IF(Ordregiver!$E$56="Ja",'IB - Hospitalstekstiler'!E164,0) ->  | G187: =(G186+G23)+IF(Ordregiver!$E$56="Ja",'IB - Hospitalstekstiler'!G164,0) ->  | I187: =(I186+I23)+IF(Ordregiver!$E$56="Ja",'IB - Hospitalstekstiler'!I164,0) ->  | K187: =(K186+K23)+IF(Ordregiver!$E$56="Ja",'IB - Hospitalstekstiler'!K164,0) ->  | M187: =(M186+M23)+IF(Ordregiver!$E$56="Ja",'IB - Hospitalstekstiler'!M164,0) ->  | O187: =(O186+O23)+IF(Ordregiver!$E$56="Ja",'IB - Hospitalstekstiler'!O164,0) ->  | Q187: =(Q186+Q23)+IF(Ordregiver!$E$56="Ja",'IB - Hospitalstekstiler'!Q164,0) ->  | S187: =(S186+S23)+IF(Ordregiver!$E$56="Ja",'IB - Hospitalstekstiler'!S164,0) -> 
B188: 7 | C188: =IF($B188<=Ordregiver!$E$10,B188,"") ->  | E188: =(E187+E24)+IF(Ordregiver!$E$56="Ja",'IB - Hospitalstekstiler'!E165,0) ->  | G188: =(G187+G24)+IF(Ordregiver!$E$56="Ja",'IB - Hospitalstekstiler'!G165,0) ->  | I188: =(I187+I24)+IF(Ordregiver!$E$56="Ja",'IB - Hospitalstekstiler'!I165,0) ->  | K188: =(K187+K24)+IF(Ordregiver!$E$56="Ja",'IB - Hospitalstekstiler'!K165,0) ->  | M188: =(M187+M24)+IF(Ordregiver!$E$56="Ja",'IB - Hospitalstekstiler'!M165,0) ->  | O188: =(O187+O24)+IF(Ordregiver!$E$56="Ja",'IB - Hospitalstekstiler'!O165,0) ->  | Q188: =(Q187+Q24)+IF(Ordregiver!$E$56="Ja",'IB - Hospitalstekstiler'!Q165,0) ->  | S188: =(S187+S24)+IF(Ordregiver!$E$56="Ja",'IB - Hospitalstekstiler'!S165,0) -> 
B189: 8 | C189: =IF($B189<=Ordregiver!$E$10,B189,"") ->  | E189: =(E188+E25)+IF(Ordregiver!$E$56="Ja",'IB - Hospitalstekstiler'!E166,0) ->  | G189: =(G188+G25)+IF(Ordregiver!$E$56="Ja",'IB - Hospitalstekstiler'!G166,0) ->  | I189: =(I188+I25)+IF(Ordregiver!$E$56="Ja",'IB - Hospitalstekstiler'!I166,0) ->  | K189: =(K188+K25)+IF(Ordregiver!$E$56="Ja",'IB - Hospitalstekstiler'!K166,0) ->  | M189: =(M188+M25)+IF(Ordregiver!$E$56="Ja",'IB - Hospitalstekstiler'!M166,0) ->  | O189: =(O188+O25)+IF(Ordregiver!$E$56="Ja",'IB - Hospitalstekstiler'!O166,0) ->  | Q189: =(Q188+Q25)+IF(Ordregiver!$E$56="Ja",'IB - Hospitalstekstiler'!Q166,0) ->  | S189: =(S188+S25)+IF(Ordregiver!$E$56="Ja",'IB - Hospitalstekstiler'!S166,0) -> 
B190: 9 | C190: =IF($B190<=Ordregiver!$E$10,B190,"") ->  | E190: =(E189+E26)+IF(Ordregiver!$E$56="Ja",'IB - Hospitalstekstiler'!E167,0) ->  | G190: =(G189+G26)+IF(Ordregiver!$E$56="Ja",'IB - Hospitalstekstiler'!G167,0) ->  | I190: =(I189+I26)+IF(Ordregiver!$E$56="Ja",'IB - Hospitalstekstiler'!I167,0) ->  | K190: =(K189+K26)+IF(Ordregiver!$E$56="Ja",'IB - Hospitalstekstiler'!K167,0) ->  | M190: =(M189+M26)+IF(Ordregiver!$E$56="Ja",'IB - Hospitalstekstiler'!M167,0) ->  | O190: =(O189+O26)+IF(Ordregiver!$E$56="Ja",'IB - Hospitalstekstiler'!O167,0) ->  | Q190: =(Q189+Q26)+IF(Ordregiver!$E$56="Ja",'IB - Hospitalstekstiler'!Q167,0) ->  | S190: =(S189+S26)+IF(Ordregiver!$E$56="Ja",'IB - Hospitalstekstiler'!S167,0) -> 
B191: 10 | C191: =IF($B191<=Ordregiver!$E$10,B191,"") ->  | E191: =(E190+E27)+IF(Ordregiver!$E$56="Ja",'IB - Hospitalstekstiler'!E168,0) ->  | G191: =(G190+G27)+IF(Ordregiver!$E$56="Ja",'IB - Hospitalstekstiler'!G168,0) ->  | I191: =(I190+I27)+IF(Ordregiver!$E$56="Ja",'IB - Hospitalstekstiler'!I168,0) ->  | K191: =(K190+K27)+IF(Ordregiver!$E$56="Ja",'IB - Hospitalstekstiler'!K168,0) ->  | M191: =(M190+M27)+IF(Ordregiver!$E$56="Ja",'IB - Hospitalstekstiler'!M168,0) ->  | O191: =(O190+O27)+IF(Ordregiver!$E$56="Ja",'IB - Hospitalstekstiler'!O168,0) ->  | Q191: =(Q190+Q27)+IF(Ordregiver!$E$56="Ja",'IB - Hospitalstekstiler'!Q168,0) ->  | S191: =(S190+S27)+IF(Ordregiver!$E$56="Ja",'IB - Hospitalstekstiler'!S168,0) -> 
B192: 11 | C192: =IF($B192<=Ordregiver!$E$10,B192,"") ->  | E192: =(E191+E28)+IF(Ordregiver!$E$56="Ja",'IB - Hospitalstekstiler'!E169,0) ->  | G192: =(G191+G28)+IF(Ordregiver!$E$56="Ja",'IB - Hospitalstekstiler'!G169,0) ->  | I192: =(I191+I28)+IF(Ordregiver!$E$56="Ja",'IB - Hospitalstekstiler'!I169,0) ->  | K192: =(K191+K28)+IF(Ordregiver!$E$56="Ja",'IB - Hospitalstekstiler'!K169,0) ->  | M192: =(M191+M28)+IF(Ordregiver!$E$56="Ja",'IB - Hospitalstekstiler'!M169,0) ->  | O192: =(O191+O28)+IF(Ordregiver!$E$56="Ja",'IB - Hospitalstekstiler'!O169,0) ->  | Q192: =(Q191+Q28)+IF(Ordregiver!$E$56="Ja",'IB - Hospitalstekstiler'!Q169,0) ->  | S192: =(S191+S28)+IF(Ordregiver!$E$56="Ja",'IB - Hospitalstekstiler'!S169,0) -> 
B193: 12 | C193: =IF($B193<=Ordregiver!$E$10,B193,"") ->  | E193: =(E192+E29)+IF(Ordregiver!$E$56="Ja",'IB - Hospitalstekstiler'!E170,0) ->  | G193: =(G192+G29)+IF(Ordregiver!$E$56="Ja",'IB - Hospitalstekstiler'!G170,0) ->  | I193: =(I192+I29)+IF(Ordregiver!$E$56="Ja",'IB - Hospitalstekstiler'!I170,0) ->  | K193: =(K192+K29)+IF(Ordregiver!$E$56="Ja",'IB - Hospitalstekstiler'!K170,0) ->  | M193: =(M192+M29)+IF(Ordregiver!$E$56="Ja",'IB - Hospitalstekstiler'!M170,0) ->  | O193: =(O192+O29)+IF(Ordregiver!$E$56="Ja",'IB - Hospitalstekstiler'!O170,0) ->  | Q193: =(Q192+Q29)+IF(Ordregiver!$E$56="Ja",'IB - Hospitalstekstiler'!Q170,0) ->  | S193: =(S192+S29)+IF(Ordregiver!$E$56="Ja",'IB - Hospitalstekstiler'!S170,0) -> 
B194: 13 | C194: =IF($B194<=Ordregiver!$E$10,B194,"") ->  | E194: =(E193+E30)+IF(Ordregiver!$E$56="Ja",'IB - Hospitalstekstiler'!E171,0) ->  | G194: =(G193+G30)+IF(Ordregiver!$E$56="Ja",'IB - Hospitalstekstiler'!G171,0) ->  | I194: =(I193+I30)+IF(Ordregiver!$E$56="Ja",'IB - Hospitalstekstiler'!I171,0) ->  | K194: =(K193+K30)+IF(Ordregiver!$E$56="Ja",'IB - Hospitalstekstiler'!K171,0) ->  | M194: =(M193+M30)+IF(Ordregiver!$E$56="Ja",'IB - Hospitalstekstiler'!M171,0) ->  | O194: =(O193+O30)+IF(Ordregiver!$E$56="Ja",'IB - Hospitalstekstiler'!O171,0) ->  | Q194: =(Q193+Q30)+IF(Ordregiver!$E$56="Ja",'IB - Hospitalstekstiler'!Q171,0) ->  | S194: =(S193+S30)+IF(Ordregiver!$E$56="Ja",'IB - Hospitalstekstiler'!S171,0) -> 
B195: 14 | C195: =IF($B195<=Ordregiver!$E$10,B195,"") ->  | E195: =(E194+E31)+IF(Ordregiver!$E$56="Ja",'IB - Hospitalstekstiler'!E172,0) ->  | G195: =(G194+G31)+IF(Ordregiver!$E$56="Ja",'IB - Hospitalstekstiler'!G172,0) ->  | I195: =(I194+I31)+IF(Ordregiver!$E$56="Ja",'IB - Hospitalstekstiler'!I172,0) ->  | K195: =(K194+K31)+IF(Ordregiver!$E$56="Ja",'IB - Hospitalstekstiler'!K172,0) ->  | M195: =(M194+M31)+IF(Ordregiver!$E$56="Ja",'IB - Hospitalstekstiler'!M172,0) ->  | O195: =(O194+O31)+IF(Ordregiver!$E$56="Ja",'IB - Hospitalstekstiler'!O172,0) ->  | Q195: =(Q194+Q31)+IF(Ordregiver!$E$56="Ja",'IB - Hospitalstekstiler'!Q172,0) ->  | S195: =(S194+S31)+IF(Ordregiver!$E$56="Ja",'IB - Hospitalstekstiler'!S172,0) -> 
B196: 15 | C196: =IF($B196<=Ordregiver!$E$10,B196,"") ->  | E196: =(E195+E32)+IF(Ordregiver!$E$56="Ja",'IB - Hospitalstekstiler'!E173,0) ->  | G196: =(G195+G32)+IF(Ordregiver!$E$56="Ja",'IB - Hospitalstekstiler'!G173,0) ->  | I196: =(I195+I32)+IF(Ordregiver!$E$56="Ja",'IB - Hospitalstekstiler'!I173,0) ->  | K196: =(K195+K32)+IF(Ordregiver!$E$56="Ja",'IB - Hospitalstekstiler'!K173,0) ->  | M196: =(M195+M32)+IF(Ordregiver!$E$56="Ja",'IB - Hospitalstekstiler'!M173,0) ->  | O196: =(O195+O32)+IF(Ordregiver!$E$56="Ja",'IB - Hospitalstekstiler'!O173,0) ->  | Q196: =(Q195+Q32)+IF(Ordregiver!$E$56="Ja",'IB - Hospitalstekstiler'!Q173,0) ->  | S196: =(S195+S32)+IF(Ordregiver!$E$56="Ja",'IB - Hospitalstekstiler'!S173,0) -> 
B197: 16 | C197: =IF($B197<=Ordregiver!$E$10,B197,"") ->  | E197: =(E196+E33)+IF(Ordregiver!$E$56="Ja",'IB - Hospitalstekstiler'!E174,0) ->  | G197: =(G196+G33)+IF(Ordregiver!$E$56="Ja",'IB - Hospitalstekstiler'!G174,0) ->  | I197: =(I196+I33)+IF(Ordregiver!$E$56="Ja",'IB - Hospitalstekstiler'!I174,0) ->  | K197: =(K196+K33)+IF(Ordregiver!$E$56="Ja",'IB - Hospitalstekstiler'!K174,0) ->  | M197: =(M196+M33)+IF(Ordregiver!$E$56="Ja",'IB - Hospitalstekstiler'!M174,0) ->  | O197: =(O196+O33)+IF(Ordregiver!$E$56="Ja",'IB - Hospitalstekstiler'!O174,0) ->  | Q197: =(Q196+Q33)+IF(Ordregiver!$E$56="Ja",'IB - Hospitalstekstiler'!Q174,0) ->  | S197: =(S196+S33)+IF(Ordregiver!$E$56="Ja",'IB - Hospitalstekstiler'!S174,0) -> 
B198: 17 | C198: =IF($B198<=Ordregiver!$E$10,B198,"") ->  | E198: =(E197+E34)+IF(Ordregiver!$E$56="Ja",'IB - Hospitalstekstiler'!E175,0) ->  | G198: =(G197+G34)+IF(Ordregiver!$E$56="Ja",'IB - Hospitalstekstiler'!G175,0) ->  | I198: =(I197+I34)+IF(Ordregiver!$E$56="Ja",'IB - Hospitalstekstiler'!I175,0) ->  | K198: =(K197+K34)+IF(Ordregiver!$E$56="Ja",'IB - Hospitalstekstiler'!K175,0) ->  | M198: =(M197+M34)+IF(Ordregiver!$E$56="Ja",'IB - Hospitalstekstiler'!M175,0) ->  | O198: =(O197+O34)+IF(Ordregiver!$E$56="Ja",'IB - Hospitalstekstiler'!O175,0) ->  | Q198: =(Q197+Q34)+IF(Ordregiver!$E$56="Ja",'IB - Hospitalstekstiler'!Q175,0) ->  | S198: =(S197+S34)+IF(Ordregiver!$E$56="Ja",'IB - Hospitalstekstiler'!S175,0) -> 
B199: 18 | C199: =IF($B199<=Ordregiver!$E$10,B199,"") ->  | E199: =(E198+E35)+IF(Ordregiver!$E$56="Ja",'IB - Hospitalstekstiler'!E176,0) ->  | G199: =(G198+G35)+IF(Ordregiver!$E$56="Ja",'IB - Hospitalstekstiler'!G176,0) ->  | I199: =(I198+I35)+IF(Ordregiver!$E$56="Ja",'IB - Hospitalstekstiler'!I176,0) ->  | K199: =(K198+K35)+IF(Ordregiver!$E$56="Ja",'IB - Hospitalstekstiler'!K176,0) ->  | M199: =(M198+M35)+IF(Ordregiver!$E$56="Ja",'IB - Hospitalstekstiler'!M176,0) ->  | O199: =(O198+O35)+IF(Ordregiver!$E$56="Ja",'IB - Hospitalstekstiler'!O176,0) ->  | Q199: =(Q198+Q35)+IF(Ordregiver!$E$56="Ja",'IB - Hospitalstekstiler'!Q176,0) ->  | S199: =(S198+S35)+IF(Ordregiver!$E$56="Ja",'IB - Hospitalstekstiler'!S176,0) -> 
B200: 19 | C200: =IF($B200<=Ordregiver!$E$10,B200,"") ->  | E200: =(E199+E36)+IF(Ordregiver!$E$56="Ja",'IB - Hospitalstekstiler'!E177,0) ->  | G200: =(G199+G36)+IF(Ordregiver!$E$56="Ja",'IB - Hospitalstekstiler'!G177,0) ->  | I200: =(I199+I36)+IF(Ordregiver!$E$56="Ja",'IB - Hospitalstekstiler'!I177,0) ->  | K200: =(K199+K36)+IF(Ordregiver!$E$56="Ja",'IB - Hospitalstekstiler'!K177,0) ->  | M200: =(M199+M36)+IF(Ordregiver!$E$56="Ja",'IB - Hospitalstekstiler'!M177,0) ->  | O200: =(O199+O36)+IF(Ordregiver!$E$56="Ja",'IB - Hospitalstekstiler'!O177,0) ->  | Q200: =(Q199+Q36)+IF(Ordregiver!$E$56="Ja",'IB - Hospitalstekstiler'!Q177,0) ->  | S200: =(S199+S36)+IF(Ordregiver!$E$56="Ja",'IB - Hospitalstekstiler'!S177,0) -> 
B201: 20 | C201: =IF($B201<=Ordregiver!$E$10,B201,"") ->  | E201: =(E200+E37)+IF(Ordregiver!$E$56="Ja",'IB - Hospitalstekstiler'!E178,0) ->  | G201: =(G200+G37)+IF(Ordregiver!$E$56="Ja",'IB - Hospitalstekstiler'!G178,0) ->  | I201: =(I200+I37)+IF(Ordregiver!$E$56="Ja",'IB - Hospitalstekstiler'!I178,0) ->  | K201: =(K200+K37)+IF(Ordregiver!$E$56="Ja",'IB - Hospitalstekstiler'!K178,0) ->  | M201: =(M200+M37)+IF(Ordregiver!$E$56="Ja",'IB - Hospitalstekstiler'!M178,0) ->  | O201: =(O200+O37)+IF(Ordregiver!$E$56="Ja",'IB - Hospitalstekstiler'!O178,0) ->  | Q201: =(Q200+Q37)+IF(Ordregiver!$E$56="Ja",'IB - Hospitalstekstiler'!Q178,0) ->  | S201: =(S200+S37)+IF(Ordregiver!$E$56="Ja",'IB - Hospitalstekstiler'!S178,0) -> 
